Workbook

Sheet ورقة1
B2: الكود | C2: اسم الحساب | D2: المندوب | E2: المشرف | F2: الفئة الاساسية | G2: الفئة الفرعية | I2: كود الصنف | J2: اسم الصنف | K2: السعر | M2: المندوب | N2: المشرف | O2: نوع الفاتورة | P2: نوع السند
B3: 100 | C3: محل 1 | D3: 1 | E3: 1 | F3: محلات | G3: محلات | I3: 1000 | J3: الصنف رقم 1 | K3: 14.75 | M3: 3 | N3: 2 | O3: بالحساب | P3: بالحساب | Q3: محلات
B4: 101 | C4: محل 2 | D4: 2 | E4: 2 | F4: محلات | G4: محلات | I4: 1001 | J4: الصنف رقم 2 | K4: 7.5 | M4: 1 | N4: 1 | O4: تحويلات مخزنية | P4: تحويلات مخزنية | Q4: عميل خاص
B5: 102 | C5: محل 3 | D5: 3 | E5: 1 | F5: محلات | G5: محلات | I5: 1002 | J5: الصنف رقم 3 | K5: 8.1 | M5: 2 | O5: مجانى | P5: مرتجع داخلى | Q5: عملاء خارج بنك
B6: 103 | C6: محل 4 | D6: 4 | E6: 1 | F6: محلات | G6: محلات | I6: 1003 | J6: الصنف رقم 4 | K6: 999 | M6: 5 | O6: ملغاة | Q6: عملاء بنك
B7: 104 | C7: محل 5 | D7: 2 | E7: 2 | F7: محلات | G7: محلات | I7: 1004 | J7: الصنف رقم 5 | K7: 39 | M7: 4 | O7: مرتجع داخلى
B8: 105 | C8: محل 6 | D8: 3 | E8: 2 | F8: محلات | G8: محلات | I8: 1005 | J8: الصنف رقم 6 | K8: 17.725
B9: 106 | C9: محل 7 | D9: 4 | E9: 2 | F9: محلات | G9: محلات | I9: 1006 | J9: الصنف رقم 7 | K9: 10
B10: 107 | C10: معارض خاصة | F10: عميل خاص | G10: عميل خاص | I10: 1007 | J10: الصنف رقم 8 | K10: 6
B11: 108 | C11: عميل نقدى | F11: عميل خاص | G11: عميل خاص | I11: 1008 | J11: الصنف رقم 9 | K11: 16.75
B12: 109 | C12: العميل 1 | D12: 1 | E12: 2 | F12: عملاء خارج بنك | G12: العميل1 | I12: 1009 | J12: الصنف رقم 10 | K12: 12.75
B13: 110 | C13: العميل 2 | D13: 2 | E13: 2 | F13: عملاء خارج بنك | G13: العميل1 | I13: 1010 | J13: الصنف رقم 11 | K13: 2
B14: 111 | C14: العميل 3 | D14: 3 | E14: 1 | F14: عملاء خارج بنك | G14: العميل1 | I14: 1011 | J14: الصنف رقم 12 | K14: 1
B15: 112 | C15: العميل 4 | D15: 4 | E15: 2 | F15: عملاء خارج بنك | G15: العميل1 | I15: 1012 | J15: الصنف رقم 13 | K15: 1
B16: 113 | C16: العميل 5 | D16: 3 | E16: 1 | F16: عملاء خارج بنك | G16: العميل1 | I16: 1013 | J16: الصنف رقم 14 | K16: 10.5
B17: 114 | C17: العميل 6 | D17: 1 | E17: 1 | F17: عملاء خارج بنك | G17: العميل1 | I17: 1014 | J17: الصنف رقم 15 | K17: 5.245
B18: 115 | C18: العميل 7 | D18: 3 | E18: 1 | F18: عملاء خارج بنك | G18: العميل1 | I18: 1015 | J18: الصنف رقم 16 | K18: 2.75
B19: 116 | C19: العميل 8 | D19: 2 | E19: 2 | F19: عملاء بنك | G19: العميل1 | I19: 1016 | J19: الصنف رقم 17 | K19: 9
B20: 117 | C20: العميل 9 | D20: 1 | E20: 2 | F20: عملاء بنك | G20: العميل 9 | I20: 1017 | J20: الصنف رقم 18 | K20: 200
B21: 118 | C21: العميل 10 | D21: 4 | E21: 2 | F21: عملاء بنك | G21: العميل 9 | I21: 1018 | J21: الصنف رقم 19 | K21: 3.85
B22: 119 | C22: العميل 11 | D22: 1 | E22: 1 | F22: عملاء بنك | G22: العميل 9 | I22: 1019 | J22: الصنف رقم 20 | K22: 1.925
B23: 120 | C23: العميل 12 | D23: 2 | E23: 2 | F23: عملاء بنك | G23: العميل 9 | I23: 1020 | J23: الصنف رقم 21 | K23: 3.5

Sheet sales
B2: رقم الفاتورة | C2: 100 | D2: المندوب | E2: =IFERROR(VLOOKUP(C5,ورقة1!$B$3:$G$1048576,3,0),) -> 2
B3: التاريخ | C3: 2018-08-01 | D3: المشرف | E3: =IFERROR(VLOOKUP(C5,ورقة1!$B$3:$G$1048576,4,0),) -> 2
B4: نوع الفاتورة | C4: بالحساب | D4: الفئة الاساسية | E4: =IFERROR(VLOOKUP(C5,ورقة1!$B$3:$G$1048576,5,0),) -> محلات
B5: كود العميل | C5: 101 | D5: الفئة الفرعية | E5: =IFERROR(VLOOKUP(C5,ورقة1!$B$3:$G$1048576,6,0),) -> محلات
B6: العميل | C6: =IFERROR(VLOOKUP(C5,ورقة1!$B$2:$G$1048576,2,0),) -> محل 2
B7: الكود | C7: الصنف | D7: السعر | E7: الكمية | F7: الاجمالى
B8: 1000 | C8: =IFERROR(VLOOKUP(B8,ورقة1!$I$3:$K$1048576,2,0),) -> الصنف رقم 1 | D8: =IFERROR(VLOOKUP(B8,ورقة1!$I$3:$K$1048576,3,0),0) -> 14.75 | E8: 1 | F8: =D8*E8 -> 14.75
B9: 1050 | C9: =IFERROR(VLOOKUP(B9,ورقة1!$I$3:$K$1048576,2,0),) -> 0 | D9: =IFERROR(VLOOKUP(B9,ورقة1!$I$3:$K$1048576,3,0),0) -> 0 | E9: 1 | F9: =D9*E9 -> 0
B10: 1003 | C10: =IFERROR(VLOOKUP(B10,ورقة1!$I$3:$K$1048576,2,0),) -> الصنف رقم 4 | D10: =IFERROR(VLOOKUP(B10,ورقة1!$I$3:$K$1048576,3,0),0) -> 999 | E10: 2 | F10: 1998
B11: 1002 | C11: =IFERROR(VLOOKUP(B11,ورقة1!$I$3:$K$1048576,2,0),) -> الصنف رقم 3 | D11: =IFERROR(VLOOKUP(B11,ورقة1!$I$3:$K$1048576,3,0),0) -> 8.1 | E11: 3 | F11: 24.3
C12: =IFERROR(VLOOKUP(B12,ورقة1!$I$3:$K$1048576,2,0),) -> 0 | D12: =IFERROR(VLOOKUP(B12,ورقة1!$I$3:$K$1048576,3,0),0) -> 0 | F12: 0
C13: =IFERROR(VLOOKUP(B13,ورقة1!$I$3:$K$1048576,2,0),) -> 0 | D13: =IFERROR(VLOOKUP(B13,ورقة1!$I$3:$K$1048576,3,0),0) -> 0 | F13: 0
C14: =IFERROR(VLOOKUP(B14,ورقة1!$I$3:$K$1048576,2,0),) -> 0 | D14: =IFERROR(VLOOKUP(B14,ورقة1!$I$3:$K$1048576,3,0),0) -> 0 | F14: 0
C15: =IFERROR(VLOOKUP(B15,ورقة1!$I$3:$K$1048576,2,0),) -> 0 | D15: =IFERROR(VLOOKUP(B15,ورقة1!$I$3:$K$1048576,3,0),0) -> 0 | F15: 0
C16: =IFERROR(VLOOKUP(B16,ورقة1!$I$3:$K$1048576,2,0),) -> 0 | D16: =IFERROR(VLOOKUP(B16,ورقة1!$I$3:$K$1048576,3,0),0) -> 0 | F16: 0
C17: =IFERROR(VLOOKUP(B17,ورقة1!$I$3:$K$1048576,2,0),) -> 0 | D17: =IFERROR(VLOOKUP(B17,ورقة1!$I$3:$K$1048576,3,0),0) -> 0 | F17: 0
C18: =IFERROR(VLOOKUP(B18,ورقة1!$I$3:$K$1048576,2,0),) -> 0 | D18: =IFERROR(VLOOKUP(B18,ورقة1!$I$3:$K$1048576,3,0),0) -> 0 | F18: 0
C19: =IFERROR(VLOOKUP(B19,ورقة1!$I$3:$K$1048576,2,0),) -> 0 | D19: =IFERROR(VLOOKUP(B19,ورقة1!$I$3:$K$1048576,3,0),0) -> 0 | F19: 0
C20: =IFERROR(VLOOKUP(B20,ورقة1!$I$3:$K$1048576,2,0),) -> 0 | D20: =IFERROR(VLOOKUP(B20,ورقة1!$I$3:$K$1048576,3,0),0) -> 0 | F20: 0
C21: =IFERROR(VLOOKUP(B21,ورقة1!$I$3:$K$1048576,2,0),) -> 0 | D21: =IFERROR(VLOOKUP(B21,ورقة1!$I$3:$K$1048576,3,0),0) -> 0 | F21: 0
C22: =IFERROR(VLOOKUP(B22,ورقة1!$I$3:$K$1048576,2,0),) -> 0 | D22: =IFERROR(VLOOKUP(B22,ورقة1!$I$3:$K$1048576,3,0),0) -> 0 | F22: 0
C23: =IFERROR(VLOOKUP(B23,ورقة1!$I$3:$K$1048576,2,0),) -> 0 | D23: =IFERROR(VLOOKUP(B23,ورقة1!$I$3:$K$1048576,3,0),0) -> 0 | F23: 0
C24: =IFERROR(VLOOKUP(B24,ورقة1!$I$3:$K$1048576,2,0),) -> 0 | D24: =IFERROR(VLOOKUP(B24,ورقة1!$I$3:$K$1048576,3,0),0) -> 0 | F24: 0
C25: =IFERROR(VLOOKUP(B25,ورقة1!$I$3:$K$1048576,2,0),) -> 0 | D25: =IFERROR(VLOOKUP(B25,ورقة1!$I$3:$K$1048576,3,0),0) -> 0 | F25: 0
C26: =IFERROR(VLOOKUP(B26,ورقة1!$I$3:$K$1048576,2,0),) -> 0 | D26: =IFERROR(VLOOKUP(B26,ورقة1!$I$3:$K$1048576,3,0),0) -> 0 | F26: 0
C27: =IFERROR(VLOOKUP(B27,ورقة1!$I$3:$K$1048576,2,0),) -> 0 | D27: =IFERROR(VLOOKUP(B27,ورقة1!$I$3:$K$1048576,3,0),0) -> 0 | F27: 0
C28: =IFERROR(VLOOKUP(B28,ورقة1!$I$3:$K$1048576,2,0),) -> 0 | D28: =IFERROR(VLOOKUP(B28,ورقة1!$I$3:$K$1048576,3,0),0) -> 0 | F28: 0
C29: =IFERROR(VLOOKUP(B29,ورقة1!$I$3:$K$1048576,2,0),) -> 0 | D29: =IFERROR(VLOOKUP(B29,ورقة1!$I$3:$K$1048576,3,0),0) -> 0 | F29: 0
C30: =IFERROR(VLOOKUP(B30,ورقة1!$I$3:$K$1048576,2,0),) -> 0 | D30: =IFERROR(VLOOKUP(B30,ورقة1!$I$3:$K$1048576,3,0),0) -> 0 | F30: 0
C31: =IFERROR(VLOOKUP(B31,ورقة1!$I$3:$K$1048576,2,0),) -> 0 | D31: =IFERROR(VLOOKUP(B31,ورقة1!$I$3:$K$1048576,3,0),0) -> 0 | F31: 0
B32: إجمالى الفاتورة | D32: =SUM(F8:F31) -> 2037.05
B33: معدل الخصم | D33: =D34/D32 -> 0
B34: قيمة الخصم
B35: صافى قيمة الفاتورة | D35: =D32-D34 -> 2037.05
B37: رقم الفاتورة | C37: =C2+1 -> 101 | D37: المندوب | E37: =IFERROR(VLOOKUP(C40,ورقة1!$B$3:$G$1048576,3,0),) -> 0
B38: التاريخ | C38: 1900-01-05 | D38: المشرف | E38: =IFERROR(VLOOKUP(C40,ورقة1!$B$3:$G$1048576,4,0),) -> 0
B39: نوع الفاتورة | C39: بالحساب | D39: الفئة الاساسية | E39: =IFERROR(VLOOKUP(C40,ورقة1!$B$3:$G$1048576,5,0),) -> 0
B40: كود العميل | C40: 150 | D40: الفئة الفرعية | E40: =IFERROR(VLOOKUP(C40,ورقة1!$B$3:$G$1048576,6,0),) -> 0
B41: العميل | C41: =IFERROR(VLOOKUP(C40,ورقة1!$B$2:$G$1048576,2,0),) -> 0
B42: الكود | C42: الصنف | D42: السعر | E42: الكمية | F42: الاجمالى
B43: 1010 | C43: =IFERROR(VLOOKUP(B43,ورقة1!$I$3:$K$1048576,2,0),) -> الصنف رقم 11 | D43: =IFERROR(VLOOKUP(B43,ورقة1!$I$3:$K$1048576,3,0),0) -> 2 | E43: 5 | F43: =D43*E43 -> 10
B44: 1020 | C44: =IFERROR(VLOOKUP(B44,ورقة1!$I$3:$K$1048576,2,0),) -> الصنف رقم 21 | D44: =IFERROR(VLOOKUP(B44,ورقة1!$I$3:$K$1048576,3,0),0) -> 3.5 | E44: 3 | F44: =D44*E44 -> 10.5
B45: 1022 | C45: =IFERROR(VLOOKUP(B45,ورقة1!$I$3:$K$1048576,2,0),) -> 0 | D45: =IFERROR(VLOOKUP(B45,ورقة1!$I$3:$K$1048576,3,0),0) -> 0 | E45: 1 | F45: 0
B46: 1030 | C46: =IFERROR(VLOOKUP(B46,ورقة1!$I$3:$K$1048576,2,0),) -> 0 | D46: =IFERROR(VLOOKUP(B46,ورقة1!$I$3:$K$1048576,3,0),0) -> 0 | F46: 0
C47: =IFERROR(VLOOKUP(B47,ورقة1!$I$3:$K$1048576,2,0),) -> 0 | D47: =IFERROR(VLOOKUP(B47,ورقة1!$I$3:$K$1048576,3,0),0) -> 0 | F47: 0
C48: =IFERROR(VLOOKUP(B48,ورقة1!$I$3:$K$1048576,2,0),) -> 0 | D48: =IFERROR(VLOOKUP(B48,ورقة1!$I$3:$K$1048576,3,0),0) -> 0 | F48: 0
C49: =IFERROR(VLOOKUP(B49,ورقة1!$I$3:$K$1048576,2,0),) -> 0 | D49: =IFERROR(VLOOKUP(B49,ورقة1!$I$3:$K$1048576,3,0),0) -> 0 | F49: 0
C50: =IFERROR(VLOOKUP(B50,ورقة1!$I$3:$K$1048576,2,0),) -> 0 | D50: =IFERROR(VLOOKUP(B50,ورقة1!$I$3:$K$1048576,3,0),0) -> 0 | F50: 0
C51: =IFERROR(VLOOKUP(B51,ورقة1!$I$3:$K$1048576,2,0),) -> 0 | D51: =IFERROR(VLOOKUP(B51,ورقة1!$I$3:$K$1048576,3,0),0) -> 0 | F51: 0
C52: =IFERROR(VLOOKUP(B52,ورقة1!$I$3:$K$1048576,2,0),) -> 0 | D52: =IFERROR(VLOOKUP(B52,ورقة1!$I$3:$K$1048576,3,0),0) -> 0 | F52: 0
C53: =IFERROR(VLOOKUP(B53,ورقة1!$I$3:$K$1048576,2,0),) -> 0 | D53: =IFERROR(VLOOKUP(B53,ورقة1!$I$3:$K$1048576,3,0),0) -> 0 | F53: 0
C54: =IFERROR(VLOOKUP(B54,ورقة1!$I$3:$K$1048576,2,0),) -> 0 | D54: =IFERROR(VLOOKUP(B54,ورقة1!$I$3:$K$1048576,3,0),0) -> 0 | F54: 0
C55: =IFERROR(VLOOKUP(B55,ورقة1!$I$3:$K$1048576,2,0),) -> 0 | D55: =IFERROR(VLOOKUP(B55,ورقة1!$I$3:$K$1048576,3,0),0) -> 0 | F55: 0
C56: =IFERROR(VLOOKUP(B56,ورقة1!$I$3:$K$1048576,2,0),) -> 0 | D56: =IFERROR(VLOOKUP(B56,ورقة1!$I$3:$K$1048576,3,0),0) -> 0 | F56: 0
C57: =IFERROR(VLOOKUP(B57,ورقة1!$I$3:$K$1048576,2,0),) -> 0 | D57: =IFERROR(VLOOKUP(B57,ورقة1!$I$3:$K$1048576,3,0),0) -> 0 | F57: 0
C58: =IFERROR(VLOOKUP(B58,ورقة1!$I$3:$K$1048576,2,0),) -> 0 | D58: =IFERROR(VLOOKUP(B58,ورقة1!$I$3:$K$1048576,3,0),0) -> 0 | F58: 0
C59: =IFERROR(VLOOKUP(B59,ورقة1!$I$3:$K$1048576,2,0),) -> 0 | D59: =IFERROR(VLOOKUP(B59,ورقة1!$I$3:$K$1048576,3,0),0) -> 0 | F59: 0
C60: =IFERROR(VLOOKUP(B60,ورقة1!$I$3:$K$1048576,2,0),) -> 0 | D60: =IFERROR(VLOOKUP(B60,ورقة1!$I$3:$K$1048576,3,0),0) -> 0 | F60: 0
C61: =IFERROR(VLOOKUP(B61,ورقة1!$I$3:$K$1048576,2,0),) -> 0 | D61: =IFERROR(VLOOKUP(B61,ورقة1!$I$3:$K$1048576,3,0),0) -> 0 | F61: 0
C62: =IFERROR(VLOOKUP(B62,ورقة1!$I$3:$K$1048576,2,0),) -> 0 | D62: =IFERROR(VLOOKUP(B62,ورقة1!$I$3:$K$1048576,3,0),0) -> 0 | F62: 0
C63: =IFERROR(VLOOKUP(B63,ورقة1!$I$3:$K$1048576,2,0),) -> 0 | D63: =IFERROR(VLOOKUP(B63,ورقة1!$I$3:$K$1048576,3,0),0) -> 0 | F63: 0
C64: =IFERROR(VLOOKUP(B64,ورقة1!$I$3:$K$1048576,2,0),) -> 0 | D64: =IFERROR(VLOOKUP(B64,ورقة1!$I$3:$K$1048576,3,0),0) -> 0 | F64: 0
C65: =IFERROR(VLOOKUP(B65,ورقة1!$I$3:$K$1048576,2,0),) -> 0 | D65: =IFERROR(VLOOKUP(B65,ورقة1!$I$3:$K$1048576,3,0),0) -> 0 | F65: 0
C66: =IFERROR(VLOOKUP(B66,ورقة1!$I$3:$K$1048576,2,0),) -> 0 | D66: =IFERROR(VLOOKUP(B66,ورقة1!$I$3:$K$1048576,3,0),0) -> 0 | F66: 0
B67: إجمالى الفاتورة | D67: =SUM(F43:F66) -> 20.5
B68: معدل الخصم | D68: =D69/100 -> 0
B69: قيمة الخصم
B70: صافى قيمة الفاتورة | D70: =D67-D69 -> 20.5
B72: رقم الفاتورة | C72: =C37+1 -> 102 | D72: المندوب | E72: =IFERROR(VLOOKUP(C75,ورقة1!$B$3:$G$1048576,3,0),) -> 0
B73: التاريخ | D73: المشرف | E73: =IFERROR(VLOOKUP(C75,ورقة1!$B$3:$G$1048576,4,0),) -> 0
B74: نوع الفاتورة | D74: الفئة الاساسية | E74: =IFERROR(VLOOKUP(C75,ورقة1!$B$3:$G$1048576,5,0),) -> 0
B75: كود العميل | D75: الفئة الفرعية | E75: =IFERROR(VLOOKUP(C75,ورقة1!$B$3:$G$1048576,6,0),) -> 0
B76: العميل | C76: =IFERROR(VLOOKUP(C75,ورقة1!$B$2:$G$1048576,2,0),) -> 0
B77: الكود | C77: الصنف | D77: السعر | E77: الكمية | F77: الاجمالى
C78: =IFERROR(VLOOKUP(B78,ورقة1!$I$3:$K$1048576,2,0),) -> 0 | D78: =IFERROR(VLOOKUP(B78,ورقة1!$I$3:$K$1048576,3,0),0) -> 0 | F78: =D78*E78 -> 0
C79: =IFERROR(VLOOKUP(B79,ورقة1!$I$3:$K$1048576,2,0),) -> 0 | D79: =IFERROR(VLOOKUP(B79,ورقة1!$I$3:$K$1048576,3,0),0) -> 0 | F79: =D79*E79 -> 0
C80: =IFERROR(VLOOKUP(B80,ورقة1!$I$3:$K$1048576,2,0),) -> 0 | D80: =IFERROR(VLOOKUP(B80,ورقة1!$I$3:$K$1048576,3,0),0) -> 0 | F80: 0
C81: =IFERROR(VLOOKUP(B81,ورقة1!$I$3:$K$1048576,2,0),) -> 0 | D81: =IFERROR(VLOOKUP(B81,ورقة1!$I$3:$K$1048576,3,0),0) -> 0 | F81: 0
C82: =IFERROR(VLOOKUP(B82,ورقة1!$I$3:$K$1048576,2,0),) -> 0 | D82: =IFERROR(VLOOKUP(B82,ورقة1!$I$3:$K$1048576,3,0),0) -> 0 | F82: 0
C83: =IFERROR(VLOOKUP(B83,ورقة1!$I$3:$K$1048576,2,0),) -> 0 | D83: =IFERROR(VLOOKUP(B83,ورقة1!$I$3:$K$1048576,3,0),0) -> 0 | F83: 0
C84: =IFERROR(VLOOKUP(B84,ورقة1!$I$3:$K$1048576,2,0),) -> 0 | D84: =IFERROR(VLOOKUP(B84,ورقة1!$I$3:$K$1048576,3,0),0) -> 0 | F84: 0
C85: =IFERROR(VLOOKUP(B85,ورقة1!$I$3:$K$1048576,2,0),) -> 0 | D85: =IFERROR(VLOOKUP(B85,ورقة1!$I$3:$K$1048576,3,0),0) -> 0 | F85: 0
C86: =IFERROR(VLOOKUP(B86,ورقة1!$I$3:$K$1048576,2,0),) -> 0 | D86: =IFERROR(VLOOKUP(B86,ورقة1!$I$3:$K$1048576,3,0),0) -> 0 | F86: 0
C87: =IFERROR(VLOOKUP(B87,ورقة1!$I$3:$K$1048576,2,0),) -> 0 | D87: =IFERROR(VLOOKUP(B87,ورقة1!$I$3:$K$1048576,3,0),0) -> 0 | F87: 0
C88: =IFERROR(VLOOKUP(B88,ورقة1!$I$3:$K$1048576,2,0),) -> 0 | D88: =IFERROR(VLOOKUP(B88,ورقة1!$I$3:$K$1048576,3,0),0) -> 0 | F88: 0
C89: =IFERROR(VLOOKUP(B89,ورقة1!$I$3:$K$1048576,2,0),) -> 0 | D89: =IFERROR(VLOOKUP(B89,ورقة1!$I$3:$K$1048576,3,0),0) -> 0 | F89: 0
C90: =IFERROR(VLOOKUP(B90,ورقة1!$I$3:$K$1048576,2,0),) -> 0 | D90: =IFERROR(VLOOKUP(B90,ورقة1!$I$3:$K$1048576,3,0),0) -> 0 | F90: 0
C91: =IFERROR(VLOOKUP(B91,ورقة1!$I$3:$K$1048576,2,0),) -> 0 | D91: =IFERROR(VLOOKUP(B91,ورقة1!$I$3:$K$1048576,3,0),0) -> 0 | F91: 0
C92: =IFERROR(VLOOKUP(B92,ورقة1!$I$3:$K$1048576,2,0),) -> 0 | D92: =IFERROR(VLOOKUP(B92,ورقة1!$I$3:$K$1048576,3,0),0) -> 0 | F92: 0
C93: =IFERROR(VLOOKUP(B93,ورقة1!$I$3:$K$1048576,2,0),) -> 0 | D93: =IFERROR(VLOOKUP(B93,ورقة1!$I$3:$K$1048576,3,0),0) -> 0 | F93: 0
C94: =IFERROR(VLOOKUP(B94,ورقة1!$I$3:$K$1048576,2,0),) -> 0 | D94: =IFERROR(VLOOKUP(B94,ورقة1!$I$3:$K$1048576,3,0),0) -> 0 | F94: 0
C95: =IFERROR(VLOOKUP(B95,ورقة1!$I$3:$K$1048576,2,0),) -> 0 | D95: =IFERROR(VLOOKUP(B95,ورقة1!$I$3:$K$1048576,3,0),0) -> 0 | F95: 0
C96: =IFERROR(VLOOKUP(B96,ورقة1!$I$3:$K$1048576,2,0),) -> 0 | D96: =IFERROR(VLOOKUP(B96,ورقة1!$I$3:$K$1048576,3,0),0) -> 0 | F96: 0
C97: =IFERROR(VLOOKUP(B97,ورقة1!$I$3:$K$1048576,2,0),) -> 0 | D97: =IFERROR(VLOOKUP(B97,ورقة1!$I$3:$K$1048576,3,0),0) -> 0 | F97: 0
C98: =IFERROR(VLOOKUP(B98,ورقة1!$I$3:$K$1048576,2,0),) -> 0 | D98: =IFERROR(VLOOKUP(B98,ورقة1!$I$3:$K$1048576,3,0),0) -> 0 | F98: 0
C99: =IFERROR(VLOOKUP(B99,ورقة1!$I$3:$K$1048576,2,0),) -> 0 | D99: =IFERROR(VLOOKUP(B99,ورقة1!$I$3:$K$1048576,3,0),0) -> 0 | F99: 0
C100: =IFERROR(VLOOKUP(B100,ورقة1!$I$3:$K$1048576,2,0),) -> 0 | D100: =IFERROR(VLOOKUP(B100,ورقة1!$I$3:$K$1048576,3,0),0) -> 0 | F100: 0
C101: =IFERROR(VLOOKUP(B101,ورقة1!$I$3:$K$1048576,2,0),) -> 0 | D101: =IFERROR(VLOOKUP(B101,ورقة1!$I$3:$K$1048576,3,0),0) -> 0 | F101: 0
B102: إجمالى الفاتورة | D102: =SUM(F78:F101) -> 0
B103: معدل الخصم | D103: =D104/100 -> 0
B104: قيمة الخصم
B105: صافى قيمة الفاتورة | D105: =D102-D104 -> 0
B107: رقم الفاتورة | C107: =C72+1 -> 103 | D107: المندوب | E107: =IFERROR(VLOOKUP(C110,ورقة1!$B$3:$G$1048576,3,0),) -> 0
B108: التاريخ | D108: المشرف | E108: =IFERROR(VLOOKUP(C110,ورقة1!$B$3:$G$1048576,4,0),) -> 0
B109: نوع الفاتورة | D109: الفئة الاساسية | E109: =IFERROR(VLOOKUP(C110,ورقة1!$B$3:$G$1048576,5,0),) -> 0
B110: كود العميل | D110: الفئة الفرعية | E110: =IFERROR(VLOOKUP(C110,ورقة1!$B$3:$G$1048576,6,0),) -> 0
B111: العميل | C111: =IFERROR(VLOOKUP(C110,ورقة1!$B$2:$G$1048576,2,0),) -> 0
B112: الكود | C112: الصنف | D112: السعر | E112: الكمية | F112: الاجمالى
C113: =IFERROR(VLOOKUP(B113,ورقة1!$I$3:$K$1048576,2,0),) -> 0 | D113: =IFERROR(VLOOKUP(B113,ورقة1!$I$3:$K$1048576,3,0),0) -> 0 | F113: =D113*E113 -> 0
C114: =IFERROR(VLOOKUP(B114,ورقة1!$I$3:$K$1048576,2,0),) -> 0 | D114: =IFERROR(VLOOKUP(B114,ورقة1!$I$3:$K$1048576,3,0),0) -> 0 | F114: =D114*E114 -> 0
C115: =IFERROR(VLOOKUP(B115,ورقة1!$I$3:$K$1048576,2,0),) -> 0 | D115: =IFERROR(VLOOKUP(B115,ورقة1!$I$3:$K$1048576,3,0),0) -> 0 | F115: 0
C116: =IFERROR(VLOOKUP(B116,ورقة1!$I$3:$K$1048576,2,0),) -> 0 | D116: =IFERROR(VLOOKUP(B116,ورقة1!$I$3:$K$1048576,3,0),0) -> 0 | F116: 0
C117: =IFERROR(VLOOKUP(B117,ورقة1!$I$3:$K$1048576,2,0),) -> 0 | D117: =IFERROR(VLOOKUP(B117,ورقة1!$I$3:$K$1048576,3,0),0) -> 0 | F117: 0
C118: =IFERROR(VLOOKUP(B118,ورقة1!$I$3:$K$1048576,2,0),) -> 0 | D118: =IFERROR(VLOOKUP(B118,ورقة1!$I$3:$K$1048576,3,0),0) -> 0 | F118: 0
C119: =IFERROR(VLOOKUP(B119,ورقة1!$I$3:$K$1048576,2,0),) -> 0 | D119: =IFERROR(VLOOKUP(B119,ورقة1!$I$3:$K$1048576,3,0),0) -> 0 | F119: 0
C120: =IFERROR(VLOOKUP(B120,ورقة1!$I$3:$K$1048576,2,0),) -> 0 | D120: =IFERROR(VLOOKUP(B120,ورقة1!$I$3:$K$1048576,3,0),0) -> 0 | F120: 0
C121: =IFERROR(VLOOKUP(B121,ورقة1!$I$3:$K$1048576,2,0),) -> 0 | D121: =IFERROR(VLOOKUP(B121,ورقة1!$I$3:$K$1048576,3,0),0) -> 0 | F121: 0
C122: =IFERROR(VLOOKUP(B122,ورقة1!$I$3:$K$1048576,2,0),) -> 0 | D122: =IFERROR(VLOOKUP(B122,ورقة1!$I$3:$K$1048576,3,0),0) -> 0 | F122: 0
C123: =IFERROR(VLOOKUP(B123,ورقة1!$I$3:$K$1048576,2,0),) -> 0 | D123: =IFERROR(VLOOKUP(B123,ورقة1!$I$3:$K$1048576,3,0),0) -> 0 | F123: 0
C124: =IFERROR(VLOOKUP(B124,ورقة1!$I$3:$K$1048576,2,0),) -> 0 | D124: =IFERROR(VLOOKUP(B124,ورقة1!$I$3:$K$1048576,3,0),0) -> 0 | F124: 0
C125: =IFERROR(VLOOKUP(B125,ورقة1!$I$3:$K$1048576,2,0),) -> 0 | D125: =IFERROR(VLOOKUP(B125,ورقة1!$I$3:$K$1048576,3,0),0) -> 0 | F125: 0
C126: =IFERROR(VLOOKUP(B126,ورقة1!$I$3:$K$1048576,2,0),) -> 0 | D126: =IFERROR(VLOOKUP(B126,ورقة1!$I$3:$K$1048576,3,0),0) -> 0 | F126: 0
C127: =IFERROR(VLOOKUP(B127,ورقة1!$I$3:$K$1048576,2,0),) -> 0 | D127: =IFERROR(VLOOKUP(B127,ورقة1!$I$3:$K$1048576,3,0),0) -> 0 | F127: 0
C128: =IFERROR(VLOOKUP(B128,ورقة1!$I$3:$K$1048576,2,0),) -> 0 | D128: =IFERROR(VLOOKUP(B128,ورقة1!$I$3:$K$1048576,3,0),0) -> 0 | F128: 0
C129: =IFERROR(VLOOKUP(B129,ورقة1!$I$3:$K$1048576,2,0),) -> 0 | D129: =IFERROR(VLOOKUP(B129,ورقة1!$I$3:$K$1048576,3,0),0) -> 0 | F129: 0
C130: =IFERROR(VLOOKUP(B130,ورقة1!$I$3:$K$1048576,2,0),) -> 0 | D130: =IFERROR(VLOOKUP(B130,ورقة1!$I$3:$K$1048576,3,0),0) -> 0 | F130: 0
C131: =IFERROR(VLOOKUP(B131,ورقة1!$I$3:$K$1048576,2,0),) -> 0 | D131: =IFERROR(VLOOKUP(B131,ورقة1!$I$3:$K$1048576,3,0),0) -> 0 | F131: 0
C132: =IFERROR(VLOOKUP(B132,ورقة1!$I$3:$K$1048576,2,0),) -> 0 | D132: =IFERROR(VLOOKUP(B132,ورقة1!$I$3:$K$1048576,3,0),0) -> 0 | F132: 0
C133: =IFERROR(VLOOKUP(B133,ورقة1!$I$3:$K$1048576,2,0),) -> 0 | D133: =IFERROR(VLOOKUP(B133,ورقة1!$I$3:$K$1048576,3,0),0) -> 0 | F133: 0
C134: =IFERROR(VLOOKUP(B134,ورقة1!$I$3:$K$1048576,2,0),) -> 0 | D134: =IFERROR(VLOOKUP(B134,ورقة1!$I$3:$K$1048576,3,0),0) -> 0 | F134: 0
C135: =IFERROR(VLOOKUP(B135,ورقة1!$I$3:$K$1048576,2,0),) -> 0 | D135: =IFERROR(VLOOKUP(B135,ورقة1!$I$3:$K$1048576,3,0),0) -> 0 | F135: 0
C136: =IFERROR(VLOOKUP(B136,ورقة1!$I$3:$K$1048576,2,0),) -> 0 | D136: =IFERROR(VLOOKUP(B136,ورقة1!$I$3:$K$1048576,3,0),0) -> 0 | F136: 0
B137: إجمالى الفاتورة | D137: =SUM(F113:F136) -> 0
B138: معدل الخصم | D138: =D139/100 -> 0
B139: قيمة الخصم
B140: صافى قيمة الفاتورة | D140: =D137-D139 -> 0
B142: رقم الفاتورة | C142: =C107+1 -> 104 | D142: المندوب | E142: =IFERROR(VLOOKUP(C145,ورقة1!$B$3:$G$1048576,3,0),) -> 0
B143: التاريخ | D143: المشرف | E143: =IFERROR(VLOOKUP(C145,ورقة1!$B$3:$G$1048576,4,0),) -> 0
B144: نوع الفاتورة | D144: الفئة الاساسية | E144: =IFERROR(VLOOKUP(C145,ورقة1!$B$3:$G$1048576,5,0),) -> 0
B145: كود العميل | D145: الفئة الفرعية | E145: =IFERROR(VLOOKUP(C145,ورقة1!$B$3:$G$1048576,6,0),) -> 0
B146: العميل | C146: =IFERROR(VLOOKUP(C145,ورقة1!$B$2:$G$1048576,2,0),) -> 0
B147: الكود | C147: الصنف | D147: السعر | E147: الكمية | F147: الاجمالى
C148: =IFERROR(VLOOKUP(B148,ورقة1!$I$3:$K$1048576,2,0),) -> 0 | D148: =IFERROR(VLOOKUP(B148,ورقة1!$I$3:$K$1048576,3,0),0) -> 0 | F148: =D148*E148 -> 0
C149: =IFERROR(VLOOKUP(B149,ورقة1!$I$3:$K$1048576,2,0),) -> 0 | D149: =IFERROR(VLOOKUP(B149,ورقة1!$I$3:$K$1048576,3,0),0) -> 0 | F149: =D149*E149 -> 0
C150: =IFERROR(VLOOKUP(B150,ورقة1!$I$3:$K$1048576,2,0),) -> 0 | D150: =IFERROR(VLOOKUP(B150,ورقة1!$I$3:$K$1048576,3,0),0) -> 0 | F150: 0
C151: =IFERROR(VLOOKUP(B151,ورقة1!$I$3:$K$1048576,2,0),) -> 0 | D151: =IFERROR(VLOOKUP(B151,ورقة1!$I$3:$K$1048576,3,0),0) -> 0 | F151: 0
C152: =IFERROR(VLOOKUP(B152,ورقة1!$I$3:$K$1048576,2,0),) -> 0 | D152: =IFERROR(VLOOKUP(B152,ورقة1!$I$3:$K$1048576,3,0),0) -> 0 | F152: 0
C153: =IFERROR(VLOOKUP(B153,ورقة1!$I$3:$K$1048576,2,0),) -> 0 | D153: =IFERROR(VLOOKUP(B153,ورقة1!$I$3:$K$1048576,3,0),0) -> 0 | F153: 0
C154: =IFERROR(VLOOKUP(B154,ورقة1!$I$3:$K$1048576,2,0),) -> 0 | D154: =IFERROR(VLOOKUP(B154,ورقة1!$I$3:$K$1048576,3,0),0) -> 0 | F154: 0
C155: =IFERROR(VLOOKUP(B155,ورقة1!$I$3:$K$1048576,2,0),) -> 0 | D155: =IFERROR(VLOOKUP(B155,ورقة1!$I$3:$K$1048576,3,0),0) -> 0 | F155: 0
C156: =IFERROR(VLOOKUP(B156,ورقة1!$I$3:$K$1048576,2,0),) -> 0 | D156: =IFERROR(VLOOKUP(B156,ورقة1!$I$3:$K$1048576,3,0),0) -> 0 | F156: 0
C157: =IFERROR(VLOOKUP(B157,ورقة1!$I$3:$K$1048576,2,0),) -> 0 | D157: =IFERROR(VLOOKUP(B157,ورقة1!$I$3:$K$1048576,3,0),0) -> 0 | F157: 0
C158: =IFERROR(VLOOKUP(B158,ورقة1!$I$3:$K$1048576,2,0),) -> 0 | D158: =IFERROR(VLOOKUP(B158,ورقة1!$I$3:$K$1048576,3,0),0) -> 0 | F158: 0
C159: =IFERROR(VLOOKUP(B159,ورقة1!$I$3:$K$1048576,2,0),) -> 0 | D159: =IFERROR(VLOOKUP(B159,ورقة1!$I$3:$K$1048576,3,0),0) -> 0 | F159: 0
C160: =IFERROR(VLOOKUP(B160,ورقة1!$I$3:$K$1048576,2,0),) -> 0 | D160: =IFERROR(VLOOKUP(B160,ورقة1!$I$3:$K$1048576,3,0),0) -> 0 | F160: 0
C161: =IFERROR(VLOOKUP(B161,ورقة1!$I$3:$K$1048576,2,0),) -> 0 | D161: =IFERROR(VLOOKUP(B161,ورقة1!$I$3:$K$1048576,3,0),0) -> 0 | F161: 0
C162: =IFERROR(VLOOKUP(B162,ورقة1!$I$3:$K$1048576,2,0),) -> 0 | D162: =IFERROR(VLOOKUP(B162,ورقة1!$I$3:$K$1048576,3,0),0) -> 0 | F162: 0
C163: =IFERROR(VLOOKUP(B163,ورقة1!$I$3:$K$1048576,2,0),) -> 0 | D163: =IFERROR(VLOOKUP(B163,ورقة1!$I$3:$K$1048576,3,0),0) -> 0 | F163: 0
C164: =IFERROR(VLOOKUP(B164,ورقة1!$I$3:$K$1048576,2,0),) -> 0 | D164: =IFERROR(VLOOKUP(B164,ورقة1!$I$3:$K$1048576,3,0),0) -> 0 | F164: 0
C165: =IFERROR(VLOOKUP(B165,ورقة1!$I$3:$K$1048576,2,0),) -> 0 | D165: =IFERROR(VLOOKUP(B165,ورقة1!$I$3:$K$1048576,3,0),0) -> 0 | F165: 0
C166: =IFERROR(VLOOKUP(B166,ورقة1!$I$3:$K$1048576,2,0),) -> 0 | D166: =IFERROR(VLOOKUP(B166,ورقة1!$I$3:$K$1048576,3,0),0) -> 0 | F166: 0
C167: =IFERROR(VLOOKUP(B167,ورقة1!$I$3:$K$1048576,2,0),) -> 0 | D167: =IFERROR(VLOOKUP(B167,ورقة1!$I$3:$K$1048576,3,0),0) -> 0 | F167: 0
C168: =IFERROR(VLOOKUP(B168,ورقة1!$I$3:$K$1048576,2,0),) -> 0 | D168: =IFERROR(VLOOKUP(B168,ورقة1!$I$3:$K$1048576,3,0),0) -> 0 | F168: 0
C169: =IFERROR(VLOOKUP(B169,ورقة1!$I$3:$K$1048576,2,0),) -> 0 | D169: =IFERROR(VLOOKUP(B169,ورقة1!$I$3:$K$1048576,3,0),0) -> 0 | F169: 0
C170: =IFERROR(VLOOKUP(B170,ورقة1!$I$3:$K$1048576,2,0),) -> 0 | D170: =IFERROR(VLOOKUP(B170,ورقة1!$I$3:$K$1048576,3,0),0) -> 0 | F170: 0
C171: =IFERROR(VLOOKUP(B171,ورقة1!$I$3:$K$1048576,2,0),) -> 0 | D171: =IFERROR(VLOOKUP(B171,ورقة1!$I$3:$K$1048576,3,0),0) -> 0 | F171: 0
B172: إجمالى الفاتورة | D172: =SUM(F148:F171) -> 0
B173: معدل الخصم | D173: =D174/100 -> 0
B174: قيمة الخصم
B175: صافى قيمة الفاتورة | D175: =D172-D174 -> 0
B177: رقم الفاتورة | C177: =C142+1 -> 105 | D177: المندوب | E177: =IFERROR(VLOOKUP(C180,ورقة1!$B$3:$G$1048576,3,0),) -> 0
B178: التاريخ | D178: المشرف | E178: =IFERROR(VLOOKUP(C180,ورقة1!$B$3:$G$1048576,4,0),) -> 0
B179: نوع الفاتورة | D179: الفئة الاساسية | E179: =IFERROR(VLOOKUP(C180,ورقة1!$B$3:$G$1048576,5,0),) -> 0
B180: كود العميل | D180: الفئة الفرعية | E180: =IFERROR(VLOOKUP(C180,ورقة1!$B$3:$G$1048576,6,0),) -> 0
B181: العميل | C181: =IFERROR(VLOOKUP(C180,ورقة1!$B$2:$G$1048576,2,0),) -> 0
B182: الكود | C182: الصنف | D182: السعر | E182: الكمية | F182: الاجمالى
C183: =IFERROR(VLOOKUP(B183,ورقة1!$I$3:$K$1048576,2,0),) -> 0 | D183: =IFERROR(VLOOKUP(B183,ورقة1!$I$3:$K$1048576,3,0),0) -> 0 | F183: =D183*E183 -> 0
C184: =IFERROR(VLOOKUP(B184,ورقة1!$I$3:$K$1048576,2,0),) -> 0 | D184: =IFERROR(VLOOKUP(B184,ورقة1!$I$3:$K$1048576,3,0),0) -> 0 | F184: =D184*E184 -> 0
C185: =IFERROR(VLOOKUP(B185,ورقة1!$I$3:$K$1048576,2,0),) -> 0 | D185: =IFERROR(VLOOKUP(B185,ورقة1!$I$3:$K$1048576,3,0),0) -> 0 | F185: 0
C186: =IFERROR(VLOOKUP(B186,ورقة1!$I$3:$K$1048576,2,0),) -> 0 | D186: =IFERROR(VLOOKUP(B186,ورقة1!$I$3:$K$1048576,3,0),0) -> 0 | F186: 0
C187: =IFERROR(VLOOKUP(B187,ورقة1!$I$3:$K$1048576,2,0),) -> 0 | D187: =IFERROR(VLOOKUP(B187,ورقة1!$I$3:$K$1048576,3,0),0) -> 0 | F187: 0
C188: =IFERROR(VLOOKUP(B188,ورقة1!$I$3:$K$1048576,2,0),) -> 0 | D188: =IFERROR(VLOOKUP(B188,ورقة1!$I$3:$K$1048576,3,0),0) -> 0 | F188: 0
C189: =IFERROR(VLOOKUP(B189,ورقة1!$I$3:$K$1048576,2,0),) -> 0 | D189: =IFERROR(VLOOKUP(B189,ورقة1!$I$3:$K$1048576,3,0),0) -> 0 | F189: 0
C190: =IFERROR(VLOOKUP(B190,ورقة1!$I$3:$K$1048576,2,0),) -> 0 | D190: =IFERROR(VLOOKUP(B190,ورقة1!$I$3:$K$1048576,3,0),0) -> 0 | F190: 0
C191: =IFERROR(VLOOKUP(B191,ورقة1!$I$3:$K$1048576,2,0),) -> 0 | D191: =IFERROR(VLOOKUP(B191,ورقة1!$I$3:$K$1048576,3,0),0) -> 0 | F191: 0
C192: =IFERROR(VLOOKUP(B192,ورقة1!$I$3:$K$1048576,2,0),) -> 0 | D192: =IFERROR(VLOOKUP(B192,ورقة1!$I$3:$K$1048576,3,0),0) -> 0 | F192: 0
C193: =IFERROR(VLOOKUP(B193,ورقة1!$I$3:$K$1048576,2,0),) -> 0 | D193: =IFERROR(VLOOKUP(B193,ورقة1!$I$3:$K$1048576,3,0),0) -> 0 | F193: 0
C194: =IFERROR(VLOOKUP(B194,ورقة1!$I$3:$K$1048576,2,0),) -> 0 | D194: =IFERROR(VLOOKUP(B194,ورقة1!$I$3:$K$1048576,3,0),0) -> 0 | F194: 0
C195: =IFERROR(VLOOKUP(B195,ورقة1!$I$3:$K$1048576,2,0),) -> 0 | D195: =IFERROR(VLOOKUP(B195,ورقة1!$I$3:$K$1048576,3,0),0) -> 0 | F195: 0
C196: =IFERROR(VLOOKUP(B196,ورقة1!$I$3:$K$1048576,2,0),) -> 0 | D196: =IFERROR(VLOOKUP(B196,ورقة1!$I$3:$K$1048576,3,0),0) -> 0 | F196: 0
C197: =IFERROR(VLOOKUP(B197,ورقة1!$I$3:$K$1048576,2,0),) -> 0 | D197: =IFERROR(VLOOKUP(B197,ورقة1!$I$3:$K$1048576,3,0),0) -> 0 | F197: 0
C198: =IFERROR(VLOOKUP(B198,ورقة1!$I$3:$K$1048576,2,0),) -> 0 | D198: =IFERROR(VLOOKUP(B198,ورقة1!$I$3:$K$1048576,3,0),0) -> 0 | F198: 0
C199: =IFERROR(VLOOKUP(B199,ورقة1!$I$3:$K$1048576,2,0),) -> 0 | D199: =IFERROR(VLOOKUP(B199,ورقة1!$I$3:$K$1048576,3,0),0) -> 0 | F199: 0
C200: =IFERROR(VLOOKUP(B200,ورقة1!$I$3:$K$1048576,2,0),) -> 0 | D200: =IFERROR(VLOOKUP(B200,ورقة1!$I$3:$K$1048576,3,0),0) -> 0 | F200: 0
C201: =IFERROR(VLOOKUP(B201,ورقة1!$I$3:$K$1048576,2,0),) -> 0 | D201: =IFERROR(VLOOKUP(B201,ورقة1!$I$3:$K$1048576,3,0),0) -> 0 | F201: 0
C202: =IFERROR(VLOOKUP(B202,ورقة1!$I$3:$K$1048576,2,0),) -> 0 | D202: =IFERROR(VLOOKUP(B202,ورقة1!$I$3:$K$1048576,3,0),0) -> 0 | F202: 0
C203: =IFERROR(VLOOKUP(B203,ورقة1!$I$3:$K$1048576,2,0),) -> 0 | D203: =IFERROR(VLOOKUP(B203,ورقة1!$I$3:$K$1048576,3,0),0) -> 0 | F203: 0
C204: =IFERROR(VLOOKUP(B204,ورقة1!$I$3:$K$1048576,2,0),) -> 0 | D204: =IFERROR(VLOOKUP(B204,ورقة1!$I$3:$K$1048576,3,0),0) -> 0 | F204: 0
C205: =IFERROR(VLOOKUP(B205,ورقة1!$I$3:$K$1048576,2,0),) -> 0 | D205: =IFERROR(VLOOKUP(B205,ورقة1!$I$3:$K$1048576,3,0),0) -> 0 | F205: 0
C206: =IFERROR(VLOOKUP(B206,ورقة1!$I$3:$K$1048576,2,0),) -> 0 | D206: =IFERROR(VLOOKUP(B206,ورقة1!$I$3:$K$1048576,3,0),0) -> 0 | F206: 0
... 1534 more rows

Sheet sales(1)
B2: التاريخ | C2: رقم الفاتورة | D2: نوع الفاتورة | E2: المشرف | F2: المندوب | G2: كود العميل | H2: العميل | I2: صافى الفاتورة | J2: الخصم | K2: الاجمالى | L2: الفئة الاساسية | M2: الفئة الفرعية | N2: اسم الصفحة
B3: =sales!C3 -> 2018-08-01 | C3: =sales!C2 -> 100 | D3: =sales!C4 -> بالحساب | E3: =sales!E3 -> 2 | F3: =sales!E2 -> 2 | G3: =Return!C5 -> 100 | H3: =Return!C6 -> محل 1 | I3: =sales!D35 -> 2037.05 | J3: =sales!D34 -> 0 | K3: =sales!D32 -> 2037.05 | L3: =sales!E4 -> محلات | M3: =sales!E5 -> محلات | N3: sales(1)
B4: =sales!C38 -> 1900-01-05 | C4: =sales!C37 -> 101 | D4: =sales!C39 -> بالحساب | E4: =sales!E38 -> 0 | F4: =sales!E37 -> 0 | G4: =sales!C40 -> 150 | H4: =sales!C41 -> 0 | I4: =sales!D70 -> 20.5 | J4: =sales!D69 -> 0 | K4: =sales!D67 -> 20.5 | L4: =sales!E39 -> 0 | M4: =sales!E40 -> 0 | N4: sales(1)
B5: =sales!C73 -> 00:00:00 | C5: =sales!C72 -> 102 | D5: =sales!C74 -> 0 | E5: =sales!E73 -> 0 | F5: =sales!E72 -> 0 | G5: =sales!C75 -> 0 | H5: =sales!C76 -> 0 | I5: =sales!D105 -> 0 | J5: =sales!D104 -> 0 | K5: =sales!D102 -> 0 | L5: =sales!E74 -> 0 | M5: =sales!E75 -> 0 | N5: sales(1)
B6: =sales!C108 -> 00:00:00 | C6: =sales!C107 -> 103 | D6: =sales!C109 -> 0 | E6: =sales!E108 -> 0 | F6: =sales!E107 -> 0 | G6: =sales!C110 -> 0 | H6: =sales!C111 -> 0 | I6: =sales!D140 -> 0 | J6: =sales!D139 -> 0 | K6: =sales!D137 -> 0 | L6: =sales!E109 -> 0 | M6: =sales!E110 -> 0 | N6: sales(1)
B7: =sales!C143 -> 00:00:00 | C7: =sales!C142 -> 104 | D7: =sales!C144 -> 0 | E7: =sales!E143 -> 0 | F7: =sales!E142 -> 0 | G7: =sales!C145 -> 0 | H7: =sales!C146 -> 0 | I7: =sales!D175 -> 0 | J7: =sales!D174 -> 0 | K7: =sales!D172 -> 0 | L7: =sales!E144 -> 0 | M7: =sales!E145 -> 0 | N7: sales(1)
B8: =sales!C178 -> 00:00:00 | C8: =sales!C177 -> 105 | D8: =sales!C179 -> 0 | E8: =sales!E178 -> 0 | F8: =sales!E177 -> 0 | G8: =sales!C180 -> 0 | H8: =sales!C181 -> 0 | I8: =sales!D210 -> 0 | J8: =sales!D209 -> 0 | K8: =sales!D207 -> 0 | L8: =sales!E179 -> 0 | M8: =sales!E180 -> 0 | N8: sales(1)
B9: =sales!C213 -> 00:00:00 | C9: =sales!C212 -> 106 | D9: =sales!C214 -> 0 | E9: =sales!E213 -> 0 | F9: =sales!E212 -> 0 | G9: =sales!C215 -> 0 | H9: =sales!C216 -> 0 | I9: =sales!D245 -> 0 | J9: =sales!D244 -> 0 | K9: =sales!D242 -> 0 | L9: =sales!E214 -> 0 | M9: =sales!E215 -> 0 | N9: sales(1)
B10: =sales!C248 -> 00:00:00 | C10: =sales!C247 -> 107 | D10: =sales!C249 -> 0 | E10: =sales!E248 -> 0 | F10: =sales!E247 -> 0 | G10: =sales!C250 -> 0 | H10: =sales!C251 -> 0 | I10: =sales!D280 -> 0 | J10: =sales!D279 -> 0 | K10: =sales!D277 -> 0 | L10: =sales!E249 -> 0 | M10: =sales!E250 -> 0 | N10: sales(1)
B11: =sales!C283 -> 00:00:00 | C11: =sales!C282 -> 108 | D11: =sales!C284 -> 0 | E11: =sales!E283 -> 0 | F11: =sales!E282 -> 0 | G11: =sales!C285 -> 0 | H11: =sales!C286 -> 0 | I11: =sales!D315 -> 0 | J11: =sales!D314 -> 0 | K11: =sales!D312 -> 0 | L11: =sales!E284 -> 0 | M11: =sales!E285 -> 0 | N11: sales(1)
B12: =sales!C318 -> 00:00:00 | C12: =sales!C317 -> 109 | D12: =sales!C319 -> 0 | E12: =sales!E318 -> 0 | F12: =sales!E317 -> 0 | G12: =sales!C320 -> 0 | H12: =sales!C321 -> 0 | I12: =sales!D350 -> 0 | J12: =sales!D349 -> 0 | K12: =sales!D347 -> 0 | L12: =sales!E319 -> 0 | M12: =sales!E320 -> 0 | N12: sales(1)
B13: =sales!C353 -> 00:00:00 | C13: =sales!C352 -> 110 | D13: =sales!C354 -> 0 | E13: =sales!E353 -> 0 | F13: =sales!E352 -> 0 | G13: =sales!C355 -> 0 | H13: =sales!C356 -> 0 | I13: =sales!D385 -> 0 | J13: =sales!D384 -> 0 | K13: =sales!D382 -> 0 | L13: =sales!E354 -> 0 | M13: =sales!E355 -> 0 | N13: sales(1)
B14: =sales!C388 -> 00:00:00 | C14: =sales!C387 -> 111 | D14: =sales!C389 -> 0 | E14: =sales!E388 -> 0 | F14: =sales!E387 -> 0 | G14: =sales!C390 -> 0 | H14: =sales!C391 -> 0 | I14: =sales!D420 -> 0 | J14: =sales!D419 -> 0 | K14: =sales!D417 -> 0 | L14: =sales!E389 -> 0 | M14: =sales!E390 -> 0 | N14: sales(1)
B15: =sales!C423 -> 00:00:00 | C15: =sales!C422 -> 112 | D15: =sales!C424 -> 0 | E15: =sales!E423 -> 0 | F15: =sales!E422 -> 0 | G15: =sales!C425 -> 0 | H15: =sales!C426 -> 0 | I15: =sales!D455 -> 0 | J15: =sales!D454 -> 0 | K15: =sales!D452 -> 0 | L15: =sales!E424 -> 0 | M15: =sales!E425 -> 0 | N15: sales(1)
B16: =sales!C458 -> 00:00:00 | C16: =sales!C457 -> 113 | D16: =sales!C459 -> 0 | E16: =sales!E458 -> 0 | F16: =sales!E457 -> 0 | G16: =sales!C460 -> 0 | H16: =sales!C461 -> 0 | I16: =sales!D490 -> 0 | J16: =sales!D489 -> 0 | K16: =sales!D487 -> 0 | L16: =sales!E459 -> 0 | M16: =sales!E460 -> 0 | N16: sales(1)
B17: =sales!C493 -> 00:00:00 | C17: =sales!C492 -> 114 | D17: =sales!C494 -> 0 | E17: =sales!E493 -> 0 | F17: =sales!E492 -> 0 | G17: =sales!C495 -> 0 | H17: =sales!C496 -> 0 | I17: =sales!D525 -> 0 | J17: =sales!D524 -> 0 | K17: =sales!D522 -> 0 | L17: =sales!E494 -> 0 | M17: =sales!E495 -> 0 | N17: sales(1)
B18: =sales!C528 -> 00:00:00 | C18: =sales!C527 -> 115 | D18: =sales!C529 -> 0 | E18: =sales!E528 -> 0 | F18: =sales!E527 -> 0 | G18: =sales!C530 -> 0 | H18: =sales!C531 -> 0 | I18: =sales!D560 -> 0 | J18: =sales!D559 -> 0 | K18: =sales!D557 -> 0 | L18: =sales!E529 -> 0 | M18: =sales!E530 -> 0 | N18: sales(1)
B19: =sales!C563 -> 00:00:00 | C19: =sales!C562 -> 116 | D19: =sales!C564 -> 0 | E19: =sales!E563 -> 0 | F19: =sales!E562 -> 0 | G19: =sales!C565 -> 0 | H19: =sales!C566 -> 0 | I19: =sales!D595 -> 0 | J19: =sales!D594 -> 0 | K19: =sales!D592 -> 0 | L19: =sales!E564 -> 0 | M19: =sales!E565 -> 0 | N19: sales(1)
B20: =sales!C598 -> 00:00:00 | C20: =sales!C597 -> 117 | D20: =sales!C599 -> 0 | E20: =sales!E598 -> 0 | F20: =sales!E597 -> 0 | G20: =sales!C600 -> 0 | H20: =sales!C601 -> 0 | I20: =sales!D630 -> 0 | J20: =sales!D629 -> 0 | K20: =sales!D627 -> 0 | L20: =sales!E599 -> 0 | M20: =sales!E600 -> 0 | N20: sales(1)
B21: =sales!C633 -> 00:00:00 | C21: =sales!C632 -> 118 | D21: =sales!C634 -> 0 | E21: =sales!E633 -> 0 | F21: =sales!E632 -> 0 | G21: =sales!C635 -> 0 | H21: =sales!C636 -> 0 | I21: =sales!D665 -> 0 | J21: =sales!D664 -> 0 | K21: =sales!D662 -> 0 | L21: =sales!E634 -> 0 | M21: =sales!E635 -> 0 | N21: sales(1)
B22: =sales!C668 -> 00:00:00 | C22: =sales!C667 -> 119 | D22: =sales!C669 -> 0 | E22: =sales!E668 -> 0 | F22: =sales!E667 -> 0 | G22: =sales!C670 -> 0 | H22: =sales!C671 -> 0 | I22: =sales!D700 -> 0 | J22: =sales!D699 -> 0 | K22: =sales!D697 -> 0 | L22: =sales!E669 -> 0 | M22: =sales!E670 -> 0 | N22: sales(1)
B23: =sales!C703 -> 00:00:00 | C23: =sales!C702 -> 120 | D23: =sales!C704 -> 0 | E23: =sales!E703 -> 0 | F23: =sales!E702 -> 0 | G23: =sales!C705 -> 0 | H23: =sales!C706 -> 0 | I23: =sales!D735 -> 0 | J23: =sales!D734 -> 0 | K23: =sales!D732 -> 0 | L23: =sales!E704 -> 0 | M23: =sales!E705 -> 0 | N23: sales(1)
B24: =sales!C738 -> 00:00:00 | C24: =sales!C737 -> 121 | D24: =sales!C739 -> 0 | E24: =sales!E738 -> 0 | F24: =sales!E737 -> 0 | G24: =sales!C740 -> 0 | H24: =sales!C741 -> 0 | I24: =sales!D770 -> 0 | J24: =sales!D769 -> 0 | K24: =sales!D767 -> 0 | L24: =sales!E739 -> 0 | M24: =sales!E740 -> 0 | N24: sales(1)
B25: =sales!C773 -> 00:00:00 | C25: =sales!C772 -> 122 | D25: =sales!C774 -> 0 | E25: =sales!E773 -> 0 | F25: =sales!E772 -> 0 | G25: =sales!C775 -> 0 | H25: =sales!C776 -> 0 | I25: =sales!D805 -> 0 | J25: =sales!D804 -> 0 | K25: =sales!D802 -> 0 | L25: =sales!E774 -> 0 | M25: =sales!E775 -> 0 | N25: sales(1)
B26: =sales!C808 -> 00:00:00 | C26: =sales!C807 -> 123 | D26: =sales!C809 -> 0 | E26: =sales!E808 -> 0 | F26: =sales!E807 -> 0 | G26: =sales!C810 -> 0 | H26: =sales!C811 -> 0 | I26: =sales!D840 -> 0 | J26: =sales!D839 -> 0 | K26: =sales!D837 -> 0 | L26: =sales!E809 -> 0 | M26: =sales!E810 -> 0 | N26: sales(1)
B27: =sales!C843 -> 00:00:00 | C27: =sales!C842 -> 124 | D27: =sales!C844 -> 0 | E27: =sales!E843 -> 0 | F27: =sales!E842 -> 0 | G27: =sales!C845 -> 0 | H27: =sales!C846 -> 0 | I27: =sales!D875 -> 0 | J27: =sales!D874 -> 0 | K27: =sales!D872 -> 0 | L27: =sales!E844 -> 0 | M27: =sales!E845 -> 0 | N27: sales(1)
B28: =sales!C878 -> 00:00:00 | C28: =sales!C877 -> 125 | D28: =sales!C879 -> 0 | E28: =sales!E878 -> 0 | F28: =sales!E877 -> 0 | G28: =sales!C880 -> 0 | H28: =sales!C881 -> 0 | I28: =sales!D910 -> 0 | J28: =sales!D909 -> 0 | K28: =sales!D907 -> 0 | L28: =sales!E879 -> 0 | M28: =sales!E880 -> 0 | N28: sales(1)
B29: =sales!C913 -> 00:00:00 | C29: =sales!C912 -> 126 | D29: =sales!C914 -> 0 | E29: =sales!E913 -> 0 | F29: =sales!E912 -> 0 | G29: =sales!C915 -> 0 | H29: =sales!C916 -> 0 | I29: =sales!D945 -> 0 | J29: =sales!D944 -> 0 | K29: =sales!D942 -> 0 | L29: =sales!E914 -> 0 | M29: =sales!E915 -> 0 | N29: sales(1)
B30: =sales!C948 -> 00:00:00 | C30: =sales!C947 -> 127 | D30: =sales!C949 -> 0 | E30: =sales!E948 -> 0 | F30: =sales!E947 -> 0 | G30: =sales!C950 -> 0 | H30: =sales!C951 -> 0 | I30: =sales!D980 -> 0 | J30: =sales!D979 -> 0 | K30: =sales!D977 -> 0 | L30: =sales!E949 -> 0 | M30: =sales!E950 -> 0 | N30: sales(1)
B31: =sales!C983 -> 00:00:00 | C31: =sales!C982 -> 128 | D31: =sales!C984 -> 0 | E31: =sales!E983 -> 0 | F31: =sales!E982 -> 0 | G31: =sales!C985 -> 0 | H31: =sales!C986 -> 0 | I31: =sales!D1015 -> 0 | J31: =sales!D1014 -> 0 | K31: =sales!D1012 -> 0 | L31: =sales!E984 -> 0 | M31: =sales!E985 -> 0 | N31: sales(1)
B32: =sales!C1018 -> 00:00:00 | C32: =sales!C1017 -> 129 | D32: =sales!C1019 -> 0 | E32: =sales!E1018 -> 0 | F32: =sales!E1017 -> 0 | G32: =sales!C1020 -> 0 | H32: =sales!C1021 -> 0 | I32: =sales!D1050 -> 0 | J32: =sales!D1049 -> 0 | K32: =sales!D1047 -> 0 | L32: =sales!E1019 -> 0 | M32: =sales!E1020 -> 0 | N32: sales(1)
B33: =sales!C1053 -> 00:00:00 | C33: =sales!C1052 -> 130 | D33: =sales!C1054 -> 0 | E33: =sales!E1053 -> 0 | F33: =sales!E1052 -> 0 | G33: =sales!C1055 -> 0 | H33: =sales!C1056 -> 0 | I33: =sales!D1085 -> 0 | J33: =sales!D1084 -> 0 | K33: =sales!D1082 -> 0 | L33: =sales!E1054 -> 0 | M33: =sales!E1055 -> 0 | N33: sales(1)
B34: =sales!C1088 -> 00:00:00 | C34: =sales!C1087 -> 131 | D34: =sales!C1089 -> 0 | E34: =sales!E1088 -> 0 | F34: =sales!E1087 -> 0 | G34: =sales!C1090 -> 0 | H34: =sales!C1091 -> 0 | I34: =sales!D1120 -> 0 | J34: =sales!D1119 -> 0 | K34: =sales!D1117 -> 0 | L34: =sales!E1089 -> 0 | M34: =sales!E1090 -> 0 | N34: sales(1)
B35: =sales!C1123 -> 00:00:00 | C35: =sales!C1122 -> 132 | D35: =sales!C1124 -> 0 | E35: =sales!E1123 -> 0 | F35: =sales!E1122 -> 0 | G35: =sales!C1125 -> 0 | H35: =sales!C1126 -> 0 | I35: =sales!D1155 -> 0 | J35: =sales!D1154 -> 0 | K35: =sales!D1152 -> 0 | L35: =sales!E1124 -> 0 | M35: =sales!E1125 -> 0 | N35: sales(1)
B36: =sales!C1158 -> 00:00:00 | C36: =sales!C1157 -> 133 | D36: =sales!C1159 -> 0 | E36: =sales!E1158 -> 0 | F36: =sales!E1157 -> 0 | G36: =sales!C1160 -> 0 | H36: =sales!C1161 -> 0 | I36: =sales!D1190 -> 0 | J36: =sales!D1189 -> 0 | K36: =sales!D1187 -> 0 | L36: =sales!E1159 -> 0 | M36: =sales!E1160 -> 0 | N36: sales(1)
B37: =sales!C1193 -> 00:00:00 | C37: =sales!C1192 -> 134 | D37: =sales!C1194 -> 0 | E37: =sales!E1193 -> 0 | F37: =sales!E1192 -> 0 | G37: =sales!C1195 -> 0 | H37: =sales!C1196 -> 0 | I37: =sales!D1225 -> 0 | J37: =sales!D1224 -> 0 | K37: =sales!D1222 -> 0 | L37: =sales!E1194 -> 0 | M37: =sales!E1195 -> 0 | N37: sales(1)
B38: =sales!C1228 -> 00:00:00 | C38: =sales!C1227 -> 135 | D38: =sales!C1229 -> 0 | E38: =sales!E1228 -> 0 | F38: =sales!E1227 -> 0 | G38: =sales!C1230 -> 0 | H38: =sales!C1231 -> 0 | I38: =sales!D1260 -> 0 | J38: =sales!D1259 -> 0 | K38: =sales!D1257 -> 0 | L38: =sales!E1229 -> 0 | M38: =sales!E1230 -> 0 | N38: sales(1)
B39: =sales!C1263 -> 00:00:00 | C39: =sales!C1262 -> 136 | D39: =sales!C1264 -> 0 | E39: =sales!E1263 -> 0 | F39: =sales!E1262 -> 0 | G39: =sales!C1265 -> 0 | H39: =sales!C1266 -> 0 | I39: =sales!D1295 -> 0 | J39: =sales!D1294 -> 0 | K39: =sales!D1292 -> 0 | L39: =sales!E1264 -> 0 | M39: =sales!E1265 -> 0 | N39: sales(1)
B40: =sales!C1298 -> 00:00:00 | C40: =sales!C1297 -> 137 | D40: =sales!C1299 -> 0 | E40: =sales!E1298 -> 0 | F40: =sales!E1297 -> 0 | G40: =sales!C1300 -> 0 | H40: =sales!C1301 -> 0 | I40: =sales!D1330 -> 0 | J40: =sales!D1329 -> 0 | K40: =sales!D1327 -> 0 | L40: =sales!E1299 -> 0 | M40: =sales!E1300 -> 0 | N40: sales(1)
B41: =sales!C1333 -> 00:00:00 | C41: =sales!C1332 -> 138 | D41: =sales!C1334 -> 0 | E41: =sales!E1333 -> 0 | F41: =sales!E1332 -> 0 | G41: =sales!C1335 -> 0 | H41: =sales!C1336 -> 0 | I41: =sales!D1365 -> 0 | J41: =sales!D1364 -> 0 | K41: =sales!D1362 -> 0 | L41: =sales!E1334 -> 0 | M41: =sales!E1335 -> 0 | N41: sales(1)
B42: =sales!C1368 -> 00:00:00 | C42: =sales!C1367 -> 139 | D42: =sales!C1369 -> 0 | E42: =sales!E1368 -> 0 | F42: =sales!E1367 -> 0 | G42: =sales!C1370 -> 0 | H42: =sales!C1371 -> 0 | I42: =sales!D1400 -> 0 | J42: =sales!D1399 -> 0 | K42: =sales!D1397 -> 0 | L42: =sales!E1369 -> 0 | M42: =sales!E1370 -> 0 | N42: sales(1)
B43: =sales!C1403 -> 00:00:00 | C43: =sales!C1402 -> 140 | D43: =sales!C1404 -> 0 | E43: =sales!E1403 -> 0 | F43: =sales!E1402 -> 0 | G43: =sales!C1405 -> 0 | H43: =sales!C1406 -> 0 | I43: =sales!D1435 -> 0 | J43: =sales!D1434 -> 0 | K43: =sales!D1432 -> 0 | L43: =sales!E1404 -> 0 | M43: =sales!E1405 -> 0 | N43: sales(1)
B44: =sales!C1438 -> 00:00:00 | C44: =sales!C1437 -> 141 | D44: =sales!C1439 -> 0 | E44: =sales!E1438 -> 0 | F44: =sales!E1437 -> 0 | G44: =sales!C1440 -> 0 | H44: =sales!C1441 -> 0 | I44: =sales!D1470 -> 0 | J44: =sales!D1469 -> 0 | K44: =sales!D1467 -> 0 | L44: =sales!E1439 -> 0 | M44: =sales!E1440 -> 0 | N44: sales(1)
B45: =sales!C1473 -> 00:00:00 | C45: =sales!C1472 -> 142 | D45: =sales!C1474 -> 0 | E45: =sales!E1473 -> 0 | F45: =sales!E1472 -> 0 | G45: =sales!C1475 -> 0 | H45: =sales!C1476 -> 0 | I45: =sales!D1505 -> 0 | J45: =sales!D1504 -> 0 | K45: =sales!D1502 -> 0 | L45: =sales!E1474 -> 0 | M45: =sales!E1475 -> 0 | N45: sales(1)
B46: =sales!C1508 -> 00:00:00 | C46: =sales!C1507 -> 143 | D46: =sales!C1509 -> 0 | E46: =sales!E1508 -> 0 | F46: =sales!E1507 -> 0 | G46: =sales!C1510 -> 0 | H46: =sales!C1511 -> 0 | I46: =sales!D1540 -> 0 | J46: =sales!D1539 -> 0 | K46: =sales!D1537 -> 0 | L46: =sales!E1509 -> 0 | M46: =sales!E1510 -> 0 | N46: sales(1)
B47: =sales!C1543 -> 00:00:00 | C47: =sales!C1542 -> 144 | D47: =sales!C1544 -> 0 | E47: =sales!E1543 -> 0 | F47: =sales!E1542 -> 0 | G47: =sales!C1545 -> 0 | H47: =sales!C1546 -> 0 | I47: =sales!D1575 -> 0 | J47: =sales!D1574 -> 0 | K47: =sales!D1572 -> 0 | L47: =sales!E1544 -> 0 | M47: =sales!E1545 -> 0 | N47: sales(1)
B48: =sales!C1578 -> 00:00:00 | C48: =sales!C1577 -> 145 | D48: =sales!C1579 -> 0 | E48: =sales!E1578 -> 0 | F48: =sales!E1577 -> 0 | G48: =sales!C1580 -> 0 | H48: =sales!C1581 -> 0 | I48: =sales!D1610 -> 0 | J48: =sales!D1609 -> 0 | K48: =sales!D1607 -> 0 | L48: =sales!E1579 -> 0 | M48: =sales!E1580 -> 0 | N48: sales(1)
B49: =sales!C1613 -> 00:00:00 | C49: =sales!C1612 -> 146 | D49: =sales!C1614 -> 0 | E49: =sales!E1613 -> 0 | F49: =sales!E1612 -> 0 | G49: =sales!C1615 -> 0 | H49: =sales!C1616 -> 0 | I49: =sales!D1645 -> 0 | J49: =sales!D1644 -> 0 | K49: =sales!D1642 -> 0 | L49: =sales!E1614 -> 0 | M49: =sales!E1615 -> 0 | N49: sales(1)
B50: =sales!C1648 -> 00:00:00 | C50: =sales!C1647 -> 147 | D50: =sales!C1649 -> 0 | E50: =sales!E1648 -> 0 | F50: =sales!E1647 -> 0 | G50: =sales!C1650 -> 0 | H50: =sales!C1651 -> 0 | I50: =sales!D1680 -> 0 | J50: =sales!D1679 -> 0 | K50: =sales!D1677 -> 0 | L50: =sales!E1649 -> 0 | M50: =sales!E1650 -> 0 | N50: sales(1)
B51: =sales!C1683 -> 00:00:00 | C51: =sales!C1682 -> 148 | D51: =sales!C1684 -> 0 | E51: =sales!E1683 -> 0 | F51: =sales!E1682 -> 0 | G51: =sales!C1685 -> 0 | H51: =sales!C1686 -> 0 | I51: =sales!D1715 -> 0 | J51: =sales!D1714 -> 0 | K51: =sales!D1712 -> 0 | L51: =sales!E1684 -> 0 | M51: =sales!E1685 -> 0 | N51: sales(1)
B52: =sales!C1718 -> 00:00:00 | C52: =sales!C1717 -> 149 | D52: =sales!C1719 -> 0 | E52: =sales!E1718 -> 0 | F52: =sales!E1717 -> 0 | G52: =sales!C1720 -> 0 | H52: =sales!C1721 -> 0 | I52: =sales!D1750 -> 0 | J52: =sales!D1749 -> 0 | K52: =sales!D1747 -> 0 | L52: =sales!E1719 -> 0 | M52: =sales!E1720 -> 0 | N52: sales(1)
B53: =sales!C1753 -> 00:00:00 | C53: =sales!C1752 -> 150 | D53: =sales!C1754 -> 0 | E53: =sales!E1753 -> 0 | F53: =sales!E1752 -> 0 | G53: =sales!C1755 -> 0 | H53: =sales!C1756 -> 0 | I53: =sales!D1785 -> 0 | J53: =sales!D1784 -> 0 | K53: =sales!D1782 -> 0 | L53: =sales!E1754 -> 0 | M53: =sales!E1755 -> 0 | N53: sales(1)
F55: الاجمالى | H55: =SUM(K3:K53) -> 2057.55
F56: الخصم | H56: =SUM(J3:J53) -> 0
F57: صافى الفواتير | H57: =SUM(I3:I53) -> 2057.55

Sheet Return
B2: رقم الفاتورة | C2: 100 | D2: المندوب | E2: 2
B3: التاريخ | C3: 2018-08-01 | D3: المشرف | E3: 2
B4: نوع السند | C4: بالحساب | D4: الفئة الاساسية | E4: =IFERROR(VLOOKUP(C5,ورقة1!$B$2:$G$1048576,5,0),) -> محلات
B5: كود العميل | C5: 100 | D5: الفئة الفرعية | E5: =IFERROR(VLOOKUP(C5,ورقة1!$B$2:$G$1048576,6,0),) -> محلات
B6: العميل | C6: =IFERROR(VLOOKUP(C5,ورقة1!$B$3:$G$1048576,2,0),) -> محل 1
B7: الكود | C7: الصنف | D7: السعر | E7: الكمية | F7: الاجمالى
B8: 1013 | C8: =IFERROR(VLOOKUP(B8,ورقة1!$I$3:$K$1048576,2,0),) -> الصنف رقم 14 | D8: =IFERROR(VLOOKUP(B8,ورقة1!$I$3:$K$1048576,3,0),0) -> 10.5 | E8: 3 | F8: =D8*E8 -> 31.5
B9: 1015 | C9: =IFERROR(VLOOKUP(B9,ورقة1!$I$3:$K$1048576,2,0),) -> الصنف رقم 16 | D9: =IFERROR(VLOOKUP(B9,ورقة1!$I$3:$K$1048576,3,0),0) -> 2.75 | E9: 2 | F9: =D9*E9 -> 5.5
C10: =IFERROR(VLOOKUP(B10,ورقة1!$I$3:$K$1048576,2,0),) -> 0 | D10: =IFERROR(VLOOKUP(B10,ورقة1!$I$3:$K$1048576,3,0),0) -> 0 | F10: 0
C11: =IFERROR(VLOOKUP(B11,ورقة1!$I$3:$K$1048576,2,0),) -> 0 | D11: =IFERROR(VLOOKUP(B11,ورقة1!$I$3:$K$1048576,3,0),0) -> 0 | F11: 0
C12: =IFERROR(VLOOKUP(B12,ورقة1!$I$3:$K$1048576,2,0),) -> 0 | D12: =IFERROR(VLOOKUP(B12,ورقة1!$I$3:$K$1048576,3,0),0) -> 0 | F12: 0
C13: =IFERROR(VLOOKUP(B13,ورقة1!$I$3:$K$1048576,2,0),) -> 0 | D13: =IFERROR(VLOOKUP(B13,ورقة1!$I$3:$K$1048576,3,0),0) -> 0 | F13: 0
C14: =IFERROR(VLOOKUP(B14,ورقة1!$I$3:$K$1048576,2,0),) -> 0 | D14: =IFERROR(VLOOKUP(B14,ورقة1!$I$3:$K$1048576,3,0),0) -> 0 | F14: 0
C15: =IFERROR(VLOOKUP(B15,ورقة1!$I$3:$K$1048576,2,0),) -> 0 | D15: =IFERROR(VLOOKUP(B15,ورقة1!$I$3:$K$1048576,3,0),0) -> 0 | F15: 0
C16: =IFERROR(VLOOKUP(B16,ورقة1!$I$3:$K$1048576,2,0),) -> 0 | D16: =IFERROR(VLOOKUP(B16,ورقة1!$I$3:$K$1048576,3,0),0) -> 0 | F16: 0
C17: =IFERROR(VLOOKUP(B17,ورقة1!$I$3:$K$1048576,2,0),) -> 0 | D17: =IFERROR(VLOOKUP(B17,ورقة1!$I$3:$K$1048576,3,0),0) -> 0 | F17: 0
C18: =IFERROR(VLOOKUP(B18,ورقة1!$I$3:$K$1048576,2,0),) -> 0 | D18: =IFERROR(VLOOKUP(B18,ورقة1!$I$3:$K$1048576,3,0),0) -> 0 | F18: 0
C19: =IFERROR(VLOOKUP(B19,ورقة1!$I$3:$K$1048576,2,0),) -> 0 | D19: =IFERROR(VLOOKUP(B19,ورقة1!$I$3:$K$1048576,3,0),0) -> 0 | F19: 0
C20: =IFERROR(VLOOKUP(B20,ورقة1!$I$3:$K$1048576,2,0),) -> 0 | D20: =IFERROR(VLOOKUP(B20,ورقة1!$I$3:$K$1048576,3,0),0) -> 0 | F20: 0
C21: =IFERROR(VLOOKUP(B21,ورقة1!$I$3:$K$1048576,2,0),) -> 0 | D21: =IFERROR(VLOOKUP(B21,ورقة1!$I$3:$K$1048576,3,0),0) -> 0 | F21: 0
C22: =IFERROR(VLOOKUP(B22,ورقة1!$I$3:$K$1048576,2,0),) -> 0 | D22: =IFERROR(VLOOKUP(B22,ورقة1!$I$3:$K$1048576,3,0),0) -> 0 | F22: 0
C23: =IFERROR(VLOOKUP(B23,ورقة1!$I$3:$K$1048576,2,0),) -> 0 | D23: =IFERROR(VLOOKUP(B23,ورقة1!$I$3:$K$1048576,3,0),0) -> 0 | F23: 0
C24: =IFERROR(VLOOKUP(B24,ورقة1!$I$3:$K$1048576,2,0),) -> 0 | D24: =IFERROR(VLOOKUP(B24,ورقة1!$I$3:$K$1048576,3,0),0) -> 0 | F24: 0
C25: =IFERROR(VLOOKUP(B25,ورقة1!$I$3:$K$1048576,2,0),) -> 0 | D25: =IFERROR(VLOOKUP(B25,ورقة1!$I$3:$K$1048576,3,0),0) -> 0 | F25: 0
C26: =IFERROR(VLOOKUP(B26,ورقة1!$I$3:$K$1048576,2,0),) -> 0 | D26: =IFERROR(VLOOKUP(B26,ورقة1!$I$3:$K$1048576,3,0),0) -> 0 | F26: 0
C27: =IFERROR(VLOOKUP(B27,ورقة1!$I$3:$K$1048576,2,0),) -> 0 | D27: =IFERROR(VLOOKUP(B27,ورقة1!$I$3:$K$1048576,3,0),0) -> 0 | F27: 0
C28: =IFERROR(VLOOKUP(B28,ورقة1!$I$3:$K$1048576,2,0),) -> 0 | D28: =IFERROR(VLOOKUP(B28,ورقة1!$I$3:$K$1048576,3,0),0) -> 0 | F28: 0
C29: =IFERROR(VLOOKUP(B29,ورقة1!$I$3:$K$1048576,2,0),) -> 0 | D29: =IFERROR(VLOOKUP(B29,ورقة1!$I$3:$K$1048576,3,0),0) -> 0 | F29: 0
C30: =IFERROR(VLOOKUP(B30,ورقة1!$I$3:$K$1048576,2,0),) -> 0 | D30: =IFERROR(VLOOKUP(B30,ورقة1!$I$3:$K$1048576,3,0),0) -> 0 | F30: 0
C31: =IFERROR(VLOOKUP(B31,ورقة1!$I$3:$K$1048576,2,0),) -> 0 | D31: =IFERROR(VLOOKUP(B31,ورقة1!$I$3:$K$1048576,3,0),0) -> 0 | F31: 0
B32: إجمالى الفاتورة | D32: =SUM(F8:F31) -> 37
B33: معدل الخصم | D33: =D34/D32 -> 0
B34: قيمة الخصم
B35: صافى قيمة الفاتورة | D35: =D32-D34 -> 37
B37: رقم الفاتورة | C37: =C2+1 -> 101 | D37: المندوب | E37: =IFERROR(VLOOKUP(C40,ورقة1!$B$2:$G$1048576,3,0),) -> 1
B38: التاريخ | C38: 2018-08-01 | D38: المشرف | E38: =IFERROR(VLOOKUP(C40,ورقة1!$B$2:$G$1048576,4,0),) -> 1
B39: نوع السند | C39: بالحساب | D39: الفئة الاساسية | E39: =IFERROR(VLOOKUP(C40,ورقة1!$B$2:$G$1048576,5,0),) -> محلات
B40: كود العميل | C40: 100 | D40: الفئة الفرعية | E40: =IFERROR(VLOOKUP(C40,ورقة1!$B$2:$G$1048576,6,0),) -> محلات
B41: العميل | C41: =IFERROR(VLOOKUP(C40,ورقة1!$B$3:$G$1048576,2,0),) -> محل 1
B42: الكود | C42: الصنف | D42: السعر | E42: الكمية | F42: الاجمالى
B43: 1000 | C43: =IFERROR(VLOOKUP(B43,ورقة1!$I$3:$K$1048576,2,0),) -> الصنف رقم 1 | D43: =IFERROR(VLOOKUP(B43,ورقة1!$I$3:$K$1048576,3,0),0) -> 14.75 | E43: 1 | F43: =D43*E43 -> 14.75
B44: 1004 | C44: =IFERROR(VLOOKUP(B44,ورقة1!$I$3:$K$1048576,2,0),) -> الصنف رقم 5 | D44: =IFERROR(VLOOKUP(B44,ورقة1!$I$3:$K$1048576,3,0),0) -> 39 | E44: 1 | F44: =D44*E44 -> 39
B45: 1002 | C45: =IFERROR(VLOOKUP(B45,ورقة1!$I$3:$K$1048576,2,0),) -> الصنف رقم 3 | D45: =IFERROR(VLOOKUP(B45,ورقة1!$I$3:$K$1048576,3,0),0) -> 8.1 | E45: 1 | F45: 8.1
C46: =IFERROR(VLOOKUP(B46,ورقة1!$I$3:$K$1048576,2,0),) -> 0 | D46: =IFERROR(VLOOKUP(B46,ورقة1!$I$3:$K$1048576,3,0),0) -> 0 | F46: 0
C47: =IFERROR(VLOOKUP(B47,ورقة1!$I$3:$K$1048576,2,0),) -> 0 | D47: =IFERROR(VLOOKUP(B47,ورقة1!$I$3:$K$1048576,3,0),0) -> 0 | F47: 0
C48: =IFERROR(VLOOKUP(B48,ورقة1!$I$3:$K$1048576,2,0),) -> 0 | D48: =IFERROR(VLOOKUP(B48,ورقة1!$I$3:$K$1048576,3,0),0) -> 0 | F48: 0
C49: =IFERROR(VLOOKUP(B49,ورقة1!$I$3:$K$1048576,2,0),) -> 0 | D49: =IFERROR(VLOOKUP(B49,ورقة1!$I$3:$K$1048576,3,0),0) -> 0 | F49: 0
C50: =IFERROR(VLOOKUP(B50,ورقة1!$I$3:$K$1048576,2,0),) -> 0 | D50: =IFERROR(VLOOKUP(B50,ورقة1!$I$3:$K$1048576,3,0),0) -> 0 | F50: 0
C51: =IFERROR(VLOOKUP(B51,ورقة1!$I$3:$K$1048576,2,0),) -> 0 | D51: =IFERROR(VLOOKUP(B51,ورقة1!$I$3:$K$1048576,3,0),0) -> 0 | F51: 0
C52: =IFERROR(VLOOKUP(B52,ورقة1!$I$3:$K$1048576,2,0),) -> 0 | D52: =IFERROR(VLOOKUP(B52,ورقة1!$I$3:$K$1048576,3,0),0) -> 0 | F52: 0
C53: =IFERROR(VLOOKUP(B53,ورقة1!$I$3:$K$1048576,2,0),) -> 0 | D53: =IFERROR(VLOOKUP(B53,ورقة1!$I$3:$K$1048576,3,0),0) -> 0 | F53: 0
C54: =IFERROR(VLOOKUP(B54,ورقة1!$I$3:$K$1048576,2,0),) -> 0 | D54: =IFERROR(VLOOKUP(B54,ورقة1!$I$3:$K$1048576,3,0),0) -> 0 | F54: 0
C55: =IFERROR(VLOOKUP(B55,ورقة1!$I$3:$K$1048576,2,0),) -> 0 | D55: =IFERROR(VLOOKUP(B55,ورقة1!$I$3:$K$1048576,3,0),0) -> 0 | F55: 0
C56: =IFERROR(VLOOKUP(B56,ورقة1!$I$3:$K$1048576,2,0),) -> 0 | D56: =IFERROR(VLOOKUP(B56,ورقة1!$I$3:$K$1048576,3,0),0) -> 0 | F56: 0
C57: =IFERROR(VLOOKUP(B57,ورقة1!$I$3:$K$1048576,2,0),) -> 0 | D57: =IFERROR(VLOOKUP(B57,ورقة1!$I$3:$K$1048576,3,0),0) -> 0 | F57: 0
C58: =IFERROR(VLOOKUP(B58,ورقة1!$I$3:$K$1048576,2,0),) -> 0 | D58: =IFERROR(VLOOKUP(B58,ورقة1!$I$3:$K$1048576,3,0),0) -> 0 | F58: 0
C59: =IFERROR(VLOOKUP(B59,ورقة1!$I$3:$K$1048576,2,0),) -> 0 | D59: =IFERROR(VLOOKUP(B59,ورقة1!$I$3:$K$1048576,3,0),0) -> 0 | F59: 0
C60: =IFERROR(VLOOKUP(B60,ورقة1!$I$3:$K$1048576,2,0),) -> 0 | D60: =IFERROR(VLOOKUP(B60,ورقة1!$I$3:$K$1048576,3,0),0) -> 0 | F60: 0
C61: =IFERROR(VLOOKUP(B61,ورقة1!$I$3:$K$1048576,2,0),) -> 0 | D61: =IFERROR(VLOOKUP(B61,ورقة1!$I$3:$K$1048576,3,0),0) -> 0 | F61: 0
C62: =IFERROR(VLOOKUP(B62,ورقة1!$I$3:$K$1048576,2,0),) -> 0 | D62: =IFERROR(VLOOKUP(B62,ورقة1!$I$3:$K$1048576,3,0),0) -> 0 | F62: 0
C63: =IFERROR(VLOOKUP(B63,ورقة1!$I$3:$K$1048576,2,0),) -> 0 | D63: =IFERROR(VLOOKUP(B63,ورقة1!$I$3:$K$1048576,3,0),0) -> 0 | F63: 0
C64: =IFERROR(VLOOKUP(B64,ورقة1!$I$3:$K$1048576,2,0),) -> 0 | D64: =IFERROR(VLOOKUP(B64,ورقة1!$I$3:$K$1048576,3,0),0) -> 0 | F64: 0
C65: =IFERROR(VLOOKUP(B65,ورقة1!$I$3:$K$1048576,2,0),) -> 0 | D65: =IFERROR(VLOOKUP(B65,ورقة1!$I$3:$K$1048576,3,0),0) -> 0 | F65: 0
C66: =IFERROR(VLOOKUP(B66,ورقة1!$I$3:$K$1048576,2,0),) -> 0 | D66: =IFERROR(VLOOKUP(B66,ورقة1!$I$3:$K$1048576,3,0),0) -> 0 | F66: 0
B67: إجمالى الفاتورة | D67: =SUM(F43:F66) -> 61.85
B68: معدل الخصم | D68: =D69/D67 -> 0
B69: قيمة الخصم
B70: صافى قيمة الفاتورة | D70: =D67-D69 -> 61.85
B72: رقم الفاتورة | C72: =C37+1 -> 102 | D72: المندوب | E72: =IFERROR(VLOOKUP(C75,ورقة1!$B$2:$G$1048576,3,0),) -> 0
B73: التاريخ | D73: المشرف | E73: =IFERROR(VLOOKUP(C75,ورقة1!$B$2:$G$1048576,4,0),) -> 0
B74: نوع السند | D74: الفئة الاساسية | E74: =IFERROR(VLOOKUP(C75,ورقة1!$B$2:$G$1048576,5,0),) -> 0
B75: كود العميل | D75: الفئة الفرعية | E75: =IFERROR(VLOOKUP(C75,ورقة1!$B$2:$G$1048576,6,0),) -> 0
B76: العميل | C76: =IFERROR(VLOOKUP(C75,ورقة1!$B$3:$G$1048576,2,0),) -> 0
B77: الكود | C77: الصنف | D77: السعر | E77: الكمية | F77: الاجمالى
C78: =IFERROR(VLOOKUP(B78,ورقة1!$I$3:$K$1048576,2,0),) -> 0 | D78: =IFERROR(VLOOKUP(B78,ورقة1!$I$3:$K$1048576,3,0),0) -> 0 | F78: =D78*E78 -> 0
C79: =IFERROR(VLOOKUP(B79,ورقة1!$I$3:$K$1048576,2,0),) -> 0 | D79: =IFERROR(VLOOKUP(B79,ورقة1!$I$3:$K$1048576,3,0),0) -> 0 | F79: =D79*E79 -> 0
C80: =IFERROR(VLOOKUP(B80,ورقة1!$I$3:$K$1048576,2,0),) -> 0 | D80: =IFERROR(VLOOKUP(B80,ورقة1!$I$3:$K$1048576,3,0),0) -> 0 | F80: 0
C81: =IFERROR(VLOOKUP(B81,ورقة1!$I$3:$K$1048576,2,0),) -> 0 | D81: =IFERROR(VLOOKUP(B81,ورقة1!$I$3:$K$1048576,3,0),0) -> 0 | F81: 0
C82: =IFERROR(VLOOKUP(B82,ورقة1!$I$3:$K$1048576,2,0),) -> 0 | D82: =IFERROR(VLOOKUP(B82,ورقة1!$I$3:$K$1048576,3,0),0) -> 0 | F82: 0
C83: =IFERROR(VLOOKUP(B83,ورقة1!$I$3:$K$1048576,2,0),) -> 0 | D83: =IFERROR(VLOOKUP(B83,ورقة1!$I$3:$K$1048576,3,0),0) -> 0 | F83: 0
C84: =IFERROR(VLOOKUP(B84,ورقة1!$I$3:$K$1048576,2,0),) -> 0 | D84: =IFERROR(VLOOKUP(B84,ورقة1!$I$3:$K$1048576,3,0),0) -> 0 | F84: 0
C85: =IFERROR(VLOOKUP(B85,ورقة1!$I$3:$K$1048576,2,0),) -> 0 | D85: =IFERROR(VLOOKUP(B85,ورقة1!$I$3:$K$1048576,3,0),0) -> 0 | F85: 0
C86: =IFERROR(VLOOKUP(B86,ورقة1!$I$3:$K$1048576,2,0),) -> 0 | D86: =IFERROR(VLOOKUP(B86,ورقة1!$I$3:$K$1048576,3,0),0) -> 0 | F86: 0
C87: =IFERROR(VLOOKUP(B87,ورقة1!$I$3:$K$1048576,2,0),) -> 0 | D87: =IFERROR(VLOOKUP(B87,ورقة1!$I$3:$K$1048576,3,0),0) -> 0 | F87: 0
C88: =IFERROR(VLOOKUP(B88,ورقة1!$I$3:$K$1048576,2,0),) -> 0 | D88: =IFERROR(VLOOKUP(B88,ورقة1!$I$3:$K$1048576,3,0),0) -> 0 | F88: 0
C89: =IFERROR(VLOOKUP(B89,ورقة1!$I$3:$K$1048576,2,0),) -> 0 | D89: =IFERROR(VLOOKUP(B89,ورقة1!$I$3:$K$1048576,3,0),0) -> 0 | F89: 0
C90: =IFERROR(VLOOKUP(B90,ورقة1!$I$3:$K$1048576,2,0),) -> 0 | D90: =IFERROR(VLOOKUP(B90,ورقة1!$I$3:$K$1048576,3,0),0) -> 0 | F90: 0
C91: =IFERROR(VLOOKUP(B91,ورقة1!$I$3:$K$1048576,2,0),) -> 0 | D91: =IFERROR(VLOOKUP(B91,ورقة1!$I$3:$K$1048576,3,0),0) -> 0 | F91: 0
C92: =IFERROR(VLOOKUP(B92,ورقة1!$I$3:$K$1048576,2,0),) -> 0 | D92: =IFERROR(VLOOKUP(B92,ورقة1!$I$3:$K$1048576,3,0),0) -> 0 | F92: 0
C93: =IFERROR(VLOOKUP(B93,ورقة1!$I$3:$K$1048576,2,0),) -> 0 | D93: =IFERROR(VLOOKUP(B93,ورقة1!$I$3:$K$1048576,3,0),0) -> 0 | F93: 0
C94: =IFERROR(VLOOKUP(B94,ورقة1!$I$3:$K$1048576,2,0),) -> 0 | D94: =IFERROR(VLOOKUP(B94,ورقة1!$I$3:$K$1048576,3,0),0) -> 0 | F94: 0
C95: =IFERROR(VLOOKUP(B95,ورقة1!$I$3:$K$1048576,2,0),) -> 0 | D95: =IFERROR(VLOOKUP(B95,ورقة1!$I$3:$K$1048576,3,0),0) -> 0 | F95: 0
C96: =IFERROR(VLOOKUP(B96,ورقة1!$I$3:$K$1048576,2,0),) -> 0 | D96: =IFERROR(VLOOKUP(B96,ورقة1!$I$3:$K$1048576,3,0),0) -> 0 | F96: 0
C97: =IFERROR(VLOOKUP(B97,ورقة1!$I$3:$K$1048576,2,0),) -> 0 | D97: =IFERROR(VLOOKUP(B97,ورقة1!$I$3:$K$1048576,3,0),0) -> 0 | F97: 0
C98: =IFERROR(VLOOKUP(B98,ورقة1!$I$3:$K$1048576,2,0),) -> 0 | D98: =IFERROR(VLOOKUP(B98,ورقة1!$I$3:$K$1048576,3,0),0) -> 0 | F98: 0
C99: =IFERROR(VLOOKUP(B99,ورقة1!$I$3:$K$1048576,2,0),) -> 0 | D99: =IFERROR(VLOOKUP(B99,ورقة1!$I$3:$K$1048576,3,0),0) -> 0 | F99: 0
C100: =IFERROR(VLOOKUP(B100,ورقة1!$I$3:$K$1048576,2,0),) -> 0 | D100: =IFERROR(VLOOKUP(B100,ورقة1!$I$3:$K$1048576,3,0),0) -> 0 | F100: 0
C101: =IFERROR(VLOOKUP(B101,ورقة1!$I$3:$K$1048576,2,0),) -> 0 | D101: =IFERROR(VLOOKUP(B101,ورقة1!$I$3:$K$1048576,3,0),0) -> 0 | F101: 0
B102: إجمالى الفاتورة | D102: =SUM(F78:F101) -> 0
B103: معدل الخصم | D103: =D104/D102 -> 
B104: قيمة الخصم
B105: صافى قيمة الفاتورة | D105: =D102-D104 -> 0
B107: رقم الفاتورة | C107: =C72+1 -> 103 | D107: المندوب | E107: =IFERROR(VLOOKUP(C110,ورقة1!$B$2:$G$1048576,3,0),) -> 0
B108: التاريخ | D108: المشرف | E108: =IFERROR(VLOOKUP(C110,ورقة1!$B$2:$G$1048576,4,0),) -> 0
B109: نوع السند | D109: الفئة الاساسية | E109: =IFERROR(VLOOKUP(C110,ورقة1!$B$2:$G$1048576,5,0),) -> 0
B110: كود العميل | D110: الفئة الفرعية | E110: =IFERROR(VLOOKUP(C110,ورقة1!$B$2:$G$1048576,6,0),) -> 0
B111: العميل | C111: =IFERROR(VLOOKUP(C110,ورقة1!$B$3:$G$1048576,2,0),) -> 0
B112: الكود | C112: الصنف | D112: السعر | E112: الكمية | F112: الاجمالى
C113: =IFERROR(VLOOKUP(B113,ورقة1!$I$3:$K$1048576,2,0),) -> 0 | D113: =IFERROR(VLOOKUP(B113,ورقة1!$I$3:$K$1048576,3,0),0) -> 0 | F113: =D113*E113 -> 0
C114: =IFERROR(VLOOKUP(B114,ورقة1!$I$3:$K$1048576,2,0),) -> 0 | D114: =IFERROR(VLOOKUP(B114,ورقة1!$I$3:$K$1048576,3,0),0) -> 0 | F114: =D114*E114 -> 0
C115: =IFERROR(VLOOKUP(B115,ورقة1!$I$3:$K$1048576,2,0),) -> 0 | D115: =IFERROR(VLOOKUP(B115,ورقة1!$I$3:$K$1048576,3,0),0) -> 0 | F115: 0
C116: =IFERROR(VLOOKUP(B116,ورقة1!$I$3:$K$1048576,2,0),) -> 0 | D116: =IFERROR(VLOOKUP(B116,ورقة1!$I$3:$K$1048576,3,0),0) -> 0 | F116: 0
C117: =IFERROR(VLOOKUP(B117,ورقة1!$I$3:$K$1048576,2,0),) -> 0 | D117: =IFERROR(VLOOKUP(B117,ورقة1!$I$3:$K$1048576,3,0),0) -> 0 | F117: 0
C118: =IFERROR(VLOOKUP(B118,ورقة1!$I$3:$K$1048576,2,0),) -> 0 | D118: =IFERROR(VLOOKUP(B118,ورقة1!$I$3:$K$1048576,3,0),0) -> 0 | F118: 0
C119: =IFERROR(VLOOKUP(B119,ورقة1!$I$3:$K$1048576,2,0),) -> 0 | D119: =IFERROR(VLOOKUP(B119,ورقة1!$I$3:$K$1048576,3,0),0) -> 0 | F119: 0
C120: =IFERROR(VLOOKUP(B120,ورقة1!$I$3:$K$1048576,2,0),) -> 0 | D120: =IFERROR(VLOOKUP(B120,ورقة1!$I$3:$K$1048576,3,0),0) -> 0 | F120: 0
C121: =IFERROR(VLOOKUP(B121,ورقة1!$I$3:$K$1048576,2,0),) -> 0 | D121: =IFERROR(VLOOKUP(B121,ورقة1!$I$3:$K$1048576,3,0),0) -> 0 | F121: 0
C122: =IFERROR(VLOOKUP(B122,ورقة1!$I$3:$K$1048576,2,0),) -> 0 | D122: =IFERROR(VLOOKUP(B122,ورقة1!$I$3:$K$1048576,3,0),0) -> 0 | F122: 0
C123: =IFERROR(VLOOKUP(B123,ورقة1!$I$3:$K$1048576,2,0),) -> 0 | D123: =IFERROR(VLOOKUP(B123,ورقة1!$I$3:$K$1048576,3,0),0) -> 0 | F123: 0
C124: =IFERROR(VLOOKUP(B124,ورقة1!$I$3:$K$1048576,2,0),) -> 0 | D124: =IFERROR(VLOOKUP(B124,ورقة1!$I$3:$K$1048576,3,0),0) -> 0 | F124: 0
C125: =IFERROR(VLOOKUP(B125,ورقة1!$I$3:$K$1048576,2,0),) -> 0 | D125: =IFERROR(VLOOKUP(B125,ورقة1!$I$3:$K$1048576,3,0),0) -> 0 | F125: 0
C126: =IFERROR(VLOOKUP(B126,ورقة1!$I$3:$K$1048576,2,0),) -> 0 | D126: =IFERROR(VLOOKUP(B126,ورقة1!$I$3:$K$1048576,3,0),0) -> 0 | F126: 0
C127: =IFERROR(VLOOKUP(B127,ورقة1!$I$3:$K$1048576,2,0),) -> 0 | D127: =IFERROR(VLOOKUP(B127,ورقة1!$I$3:$K$1048576,3,0),0) -> 0 | F127: 0
C128: =IFERROR(VLOOKUP(B128,ورقة1!$I$3:$K$1048576,2,0),) -> 0 | D128: =IFERROR(VLOOKUP(B128,ورقة1!$I$3:$K$1048576,3,0),0) -> 0 | F128: 0
C129: =IFERROR(VLOOKUP(B129,ورقة1!$I$3:$K$1048576,2,0),) -> 0 | D129: =IFERROR(VLOOKUP(B129,ورقة1!$I$3:$K$1048576,3,0),0) -> 0 | F129: 0
C130: =IFERROR(VLOOKUP(B130,ورقة1!$I$3:$K$1048576,2,0),) -> 0 | D130: =IFERROR(VLOOKUP(B130,ورقة1!$I$3:$K$1048576,3,0),0) -> 0 | F130: 0
C131: =IFERROR(VLOOKUP(B131,ورقة1!$I$3:$K$1048576,2,0),) -> 0 | D131: =IFERROR(VLOOKUP(B131,ورقة1!$I$3:$K$1048576,3,0),0) -> 0 | F131: 0
C132: =IFERROR(VLOOKUP(B132,ورقة1!$I$3:$K$1048576,2,0),) -> 0 | D132: =IFERROR(VLOOKUP(B132,ورقة1!$I$3:$K$1048576,3,0),0) -> 0 | F132: 0
C133: =IFERROR(VLOOKUP(B133,ورقة1!$I$3:$K$1048576,2,0),) -> 0 | D133: =IFERROR(VLOOKUP(B133,ورقة1!$I$3:$K$1048576,3,0),0) -> 0 | F133: 0
C134: =IFERROR(VLOOKUP(B134,ورقة1!$I$3:$K$1048576,2,0),) -> 0 | D134: =IFERROR(VLOOKUP(B134,ورقة1!$I$3:$K$1048576,3,0),0) -> 0 | F134: 0
C135: =IFERROR(VLOOKUP(B135,ورقة1!$I$3:$K$1048576,2,0),) -> 0 | D135: =IFERROR(VLOOKUP(B135,ورقة1!$I$3:$K$1048576,3,0),0) -> 0 | F135: 0
C136: =IFERROR(VLOOKUP(B136,ورقة1!$I$3:$K$1048576,2,0),) -> 0 | D136: =IFERROR(VLOOKUP(B136,ورقة1!$I$3:$K$1048576,3,0),0) -> 0 | F136: 0
B137: إجمالى الفاتورة | D137: =SUM(F113:F136) -> 0
B138: معدل الخصم | D138: =D139/D137 -> 
B139: قيمة الخصم
B140: صافى قيمة الفاتورة | D140: =D137-D139 -> 0
B142: رقم الفاتورة | C142: =C107+1 -> 104 | D142: المندوب | E142: =IFERROR(VLOOKUP(C145,ورقة1!$B$2:$G$1048576,3,0),) -> 0
B143: التاريخ | D143: المشرف | E143: =IFERROR(VLOOKUP(C145,ورقة1!$B$2:$G$1048576,4,0),) -> 0
B144: نوع السند | D144: الفئة الاساسية | E144: =IFERROR(VLOOKUP(C145,ورقة1!$B$2:$G$1048576,5,0),) -> 0
B145: كود العميل | D145: الفئة الفرعية | E145: =IFERROR(VLOOKUP(C145,ورقة1!$B$2:$G$1048576,6,0),) -> 0
B146: العميل | C146: =IFERROR(VLOOKUP(C145,ورقة1!$B$3:$G$1048576,2,0),) -> 0
B147: الكود | C147: الصنف | D147: السعر | E147: الكمية | F147: الاجمالى
C148: =IFERROR(VLOOKUP(B148,ورقة1!$I$3:$K$1048576,2,0),) -> 0 | D148: =IFERROR(VLOOKUP(B148,ورقة1!$I$3:$K$1048576,3,0),0) -> 0 | F148: =D148*E148 -> 0
C149: =IFERROR(VLOOKUP(B149,ورقة1!$I$3:$K$1048576,2,0),) -> 0 | D149: =IFERROR(VLOOKUP(B149,ورقة1!$I$3:$K$1048576,3,0),0) -> 0 | F149: =D149*E149 -> 0
C150: =IFERROR(VLOOKUP(B150,ورقة1!$I$3:$K$1048576,2,0),) -> 0 | D150: =IFERROR(VLOOKUP(B150,ورقة1!$I$3:$K$1048576,3,0),0) -> 0 | F150: 0
C151: =IFERROR(VLOOKUP(B151,ورقة1!$I$3:$K$1048576,2,0),) -> 0 | D151: =IFERROR(VLOOKUP(B151,ورقة1!$I$3:$K$1048576,3,0),0) -> 0 | F151: 0
C152: =IFERROR(VLOOKUP(B152,ورقة1!$I$3:$K$1048576,2,0),) -> 0 | D152: =IFERROR(VLOOKUP(B152,ورقة1!$I$3:$K$1048576,3,0),0) -> 0 | F152: 0
C153: =IFERROR(VLOOKUP(B153,ورقة1!$I$3:$K$1048576,2,0),) -> 0 | D153: =IFERROR(VLOOKUP(B153,ورقة1!$I$3:$K$1048576,3,0),0) -> 0 | F153: 0
C154: =IFERROR(VLOOKUP(B154,ورقة1!$I$3:$K$1048576,2,0),) -> 0 | D154: =IFERROR(VLOOKUP(B154,ورقة1!$I$3:$K$1048576,3,0),0) -> 0 | F154: 0
C155: =IFERROR(VLOOKUP(B155,ورقة1!$I$3:$K$1048576,2,0),) -> 0 | D155: =IFERROR(VLOOKUP(B155,ورقة1!$I$3:$K$1048576,3,0),0) -> 0 | F155: 0
C156: =IFERROR(VLOOKUP(B156,ورقة1!$I$3:$K$1048576,2,0),) -> 0 | D156: =IFERROR(VLOOKUP(B156,ورقة1!$I$3:$K$1048576,3,0),0) -> 0 | F156: 0
C157: =IFERROR(VLOOKUP(B157,ورقة1!$I$3:$K$1048576,2,0),) -> 0 | D157: =IFERROR(VLOOKUP(B157,ورقة1!$I$3:$K$1048576,3,0),0) -> 0 | F157: 0
C158: =IFERROR(VLOOKUP(B158,ورقة1!$I$3:$K$1048576,2,0),) -> 0 | D158: =IFERROR(VLOOKUP(B158,ورقة1!$I$3:$K$1048576,3,0),0) -> 0 | F158: 0
C159: =IFERROR(VLOOKUP(B159,ورقة1!$I$3:$K$1048576,2,0),) -> 0 | D159: =IFERROR(VLOOKUP(B159,ورقة1!$I$3:$K$1048576,3,0),0) -> 0 | F159: 0
C160: =IFERROR(VLOOKUP(B160,ورقة1!$I$3:$K$1048576,2,0),) -> 0 | D160: =IFERROR(VLOOKUP(B160,ورقة1!$I$3:$K$1048576,3,0),0) -> 0 | F160: 0
C161: =IFERROR(VLOOKUP(B161,ورقة1!$I$3:$K$1048576,2,0),) -> 0 | D161: =IFERROR(VLOOKUP(B161,ورقة1!$I$3:$K$1048576,3,0),0) -> 0 | F161: 0
C162: =IFERROR(VLOOKUP(B162,ورقة1!$I$3:$K$1048576,2,0),) -> 0 | D162: =IFERROR(VLOOKUP(B162,ورقة1!$I$3:$K$1048576,3,0),0) -> 0 | F162: 0
C163: =IFERROR(VLOOKUP(B163,ورقة1!$I$3:$K$1048576,2,0),) -> 0 | D163: =IFERROR(VLOOKUP(B163,ورقة1!$I$3:$K$1048576,3,0),0) -> 0 | F163: 0
C164: =IFERROR(VLOOKUP(B164,ورقة1!$I$3:$K$1048576,2,0),) -> 0 | D164: =IFERROR(VLOOKUP(B164,ورقة1!$I$3:$K$1048576,3,0),0) -> 0 | F164: 0
C165: =IFERROR(VLOOKUP(B165,ورقة1!$I$3:$K$1048576,2,0),) -> 0 | D165: =IFERROR(VLOOKUP(B165,ورقة1!$I$3:$K$1048576,3,0),0) -> 0 | F165: 0
C166: =IFERROR(VLOOKUP(B166,ورقة1!$I$3:$K$1048576,2,0),) -> 0 | D166: =IFERROR(VLOOKUP(B166,ورقة1!$I$3:$K$1048576,3,0),0) -> 0 | F166: 0
C167: =IFERROR(VLOOKUP(B167,ورقة1!$I$3:$K$1048576,2,0),) -> 0 | D167: =IFERROR(VLOOKUP(B167,ورقة1!$I$3:$K$1048576,3,0),0) -> 0 | F167: 0
C168: =IFERROR(VLOOKUP(B168,ورقة1!$I$3:$K$1048576,2,0),) -> 0 | D168: =IFERROR(VLOOKUP(B168,ورقة1!$I$3:$K$1048576,3,0),0) -> 0 | F168: 0
C169: =IFERROR(VLOOKUP(B169,ورقة1!$I$3:$K$1048576,2,0),) -> 0 | D169: =IFERROR(VLOOKUP(B169,ورقة1!$I$3:$K$1048576,3,0),0) -> 0 | F169: 0
C170: =IFERROR(VLOOKUP(B170,ورقة1!$I$3:$K$1048576,2,0),) -> 0 | D170: =IFERROR(VLOOKUP(B170,ورقة1!$I$3:$K$1048576,3,0),0) -> 0 | F170: 0
C171: =IFERROR(VLOOKUP(B171,ورقة1!$I$3:$K$1048576,2,0),) -> 0 | D171: =IFERROR(VLOOKUP(B171,ورقة1!$I$3:$K$1048576,3,0),0) -> 0 | F171: 0
B172: إجمالى الفاتورة | D172: =SUM(F148:F171) -> 0
B173: معدل الخصم | D173: =D174/D172 -> 
B174: قيمة الخصم
B175: صافى قيمة الفاتورة | D175: =D172-D174 -> 0
B177: رقم الفاتورة | C177: =C142+1 -> 105 | D177: المندوب | E177: =IFERROR(VLOOKUP(C180,ورقة1!$B$2:$G$1048576,3,0),) -> 0
B178: التاريخ | D178: المشرف | E178: =IFERROR(VLOOKUP(C180,ورقة1!$B$2:$G$1048576,4,0),) -> 0
B179: نوع السند | D179: الفئة الاساسية | E179: =IFERROR(VLOOKUP(C180,ورقة1!$B$2:$G$1048576,5,0),) -> 0
B180: كود العميل | D180: الفئة الفرعية | E180: =IFERROR(VLOOKUP(C180,ورقة1!$B$2:$G$1048576,6,0),) -> 0
B181: العميل | C181: =IFERROR(VLOOKUP(C180,ورقة1!$B$3:$G$1048576,2,0),) -> 0
B182: الكود | C182: الصنف | D182: السعر | E182: الكمية | F182: الاجمالى
C183: =IFERROR(VLOOKUP(B183,ورقة1!$I$3:$K$1048576,2,0),) -> 0 | D183: =IFERROR(VLOOKUP(B183,ورقة1!$I$3:$K$1048576,3,0),0) -> 0 | F183: =D183*E183 -> 0
C184: =IFERROR(VLOOKUP(B184,ورقة1!$I$3:$K$1048576,2,0),) -> 0 | D184: =IFERROR(VLOOKUP(B184,ورقة1!$I$3:$K$1048576,3,0),0) -> 0 | F184: =D184*E184 -> 0
C185: =IFERROR(VLOOKUP(B185,ورقة1!$I$3:$K$1048576,2,0),) -> 0 | D185: =IFERROR(VLOOKUP(B185,ورقة1!$I$3:$K$1048576,3,0),0) -> 0 | F185: 0
C186: =IFERROR(VLOOKUP(B186,ورقة1!$I$3:$K$1048576,2,0),) -> 0 | D186: =IFERROR(VLOOKUP(B186,ورقة1!$I$3:$K$1048576,3,0),0) -> 0 | F186: 0
C187: =IFERROR(VLOOKUP(B187,ورقة1!$I$3:$K$1048576,2,0),) -> 0 | D187: =IFERROR(VLOOKUP(B187,ورقة1!$I$3:$K$1048576,3,0),0) -> 0 | F187: 0
C188: =IFERROR(VLOOKUP(B188,ورقة1!$I$3:$K$1048576,2,0),) -> 0 | D188: =IFERROR(VLOOKUP(B188,ورقة1!$I$3:$K$1048576,3,0),0) -> 0 | F188: 0
C189: =IFERROR(VLOOKUP(B189,ورقة1!$I$3:$K$1048576,2,0),) -> 0 | D189: =IFERROR(VLOOKUP(B189,ورقة1!$I$3:$K$1048576,3,0),0) -> 0 | F189: 0
C190: =IFERROR(VLOOKUP(B190,ورقة1!$I$3:$K$1048576,2,0),) -> 0 | D190: =IFERROR(VLOOKUP(B190,ورقة1!$I$3:$K$1048576,3,0),0) -> 0 | F190: 0
C191: =IFERROR(VLOOKUP(B191,ورقة1!$I$3:$K$1048576,2,0),) -> 0 | D191: =IFERROR(VLOOKUP(B191,ورقة1!$I$3:$K$1048576,3,0),0) -> 0 | F191: 0
C192: =IFERROR(VLOOKUP(B192,ورقة1!$I$3:$K$1048576,2,0),) -> 0 | D192: =IFERROR(VLOOKUP(B192,ورقة1!$I$3:$K$1048576,3,0),0) -> 0 | F192: 0
C193: =IFERROR(VLOOKUP(B193,ورقة1!$I$3:$K$1048576,2,0),) -> 0 | D193: =IFERROR(VLOOKUP(B193,ورقة1!$I$3:$K$1048576,3,0),0) -> 0 | F193: 0
C194: =IFERROR(VLOOKUP(B194,ورقة1!$I$3:$K$1048576,2,0),) -> 0 | D194: =IFERROR(VLOOKUP(B194,ورقة1!$I$3:$K$1048576,3,0),0) -> 0 | F194: 0
C195: =IFERROR(VLOOKUP(B195,ورقة1!$I$3:$K$1048576,2,0),) -> 0 | D195: =IFERROR(VLOOKUP(B195,ورقة1!$I$3:$K$1048576,3,0),0) -> 0 | F195: 0
C196: =IFERROR(VLOOKUP(B196,ورقة1!$I$3:$K$1048576,2,0),) -> 0 | D196: =IFERROR(VLOOKUP(B196,ورقة1!$I$3:$K$1048576,3,0),0) -> 0 | F196: 0
C197: =IFERROR(VLOOKUP(B197,ورقة1!$I$3:$K$1048576,2,0),) -> 0 | D197: =IFERROR(VLOOKUP(B197,ورقة1!$I$3:$K$1048576,3,0),0) -> 0 | F197: 0
C198: =IFERROR(VLOOKUP(B198,ورقة1!$I$3:$K$1048576,2,0),) -> 0 | D198: =IFERROR(VLOOKUP(B198,ورقة1!$I$3:$K$1048576,3,0),0) -> 0 | F198: 0
C199: =IFERROR(VLOOKUP(B199,ورقة1!$I$3:$K$1048576,2,0),) -> 0 | D199: =IFERROR(VLOOKUP(B199,ورقة1!$I$3:$K$1048576,3,0),0) -> 0 | F199: 0
C200: =IFERROR(VLOOKUP(B200,ورقة1!$I$3:$K$1048576,2,0),) -> 0 | D200: =IFERROR(VLOOKUP(B200,ورقة1!$I$3:$K$1048576,3,0),0) -> 0 | F200: 0
C201: =IFERROR(VLOOKUP(B201,ورقة1!$I$3:$K$1048576,2,0),) -> 0 | D201: =IFERROR(VLOOKUP(B201,ورقة1!$I$3:$K$1048576,3,0),0) -> 0 | F201: 0
C202: =IFERROR(VLOOKUP(B202,ورقة1!$I$3:$K$1048576,2,0),) -> 0 | D202: =IFERROR(VLOOKUP(B202,ورقة1!$I$3:$K$1048576,3,0),0) -> 0 | F202: 0
C203: =IFERROR(VLOOKUP(B203,ورقة1!$I$3:$K$1048576,2,0),) -> 0 | D203: =IFERROR(VLOOKUP(B203,ورقة1!$I$3:$K$1048576,3,0),0) -> 0 | F203: 0
C204: =IFERROR(VLOOKUP(B204,ورقة1!$I$3:$K$1048576,2,0),) -> 0 | D204: =IFERROR(VLOOKUP(B204,ورقة1!$I$3:$K$1048576,3,0),0) -> 0 | F204: 0
C205: =IFERROR(VLOOKUP(B205,ورقة1!$I$3:$K$1048576,2,0),) -> 0 | D205: =IFERROR(VLOOKUP(B205,ورقة1!$I$3:$K$1048576,3,0),0) -> 0 | F205: 0
C206: =IFERROR(VLOOKUP(B206,ورقة1!$I$3:$K$1048576,2,0),) -> 0 | D206: =IFERROR(VLOOKUP(B206,ورقة1!$I$3:$K$1048576,3,0),0) -> 0 | F206: 0
... 140 more rows

Sheet Return)1(
B2: التاريخ | C2: رقم الفاتورة | D2: نوع الفاتورة | E2: المشرف | F2: المندوب | G2: كود العميل | H2: العميل | I2: صافى الفاتورة | J2: الخصم | K2: الاجمالى | L2: الفئة الاساسية | M2: الفئة الفرعية | N2: اسم الصفحة
B3: =Return!C3 -> 2018-08-01 | C3: =Return!C2 -> 100 | D3: =Return!C4 -> بالحساب | E3: =Return!E3 -> 2 | F3: =Return!E2 -> 2 | G3: =Return!C5 -> 100 | H3: =Return!C6 -> محل 1 | I3: =Return!D35 -> 37 | J3: =Return!D34 -> 0 | K3: =Return!D32 -> 37 | L3: =Return!E4 -> محلات | M3: =Return!E5 -> محلات | N3: Return)1(
B4: =Return!C38 -> 2018-08-01 | C4: =Return!C37 -> 101 | D4: =Return!C39 -> بالحساب | E4: =Return!E38 -> 1 | F4: =Return!E37 -> 1 | G4: =Return!C40 -> 100 | H4: =Return!C41 -> محل 1 | I4: =Return!D70 -> 61.85 | J4: =Return!D69 -> 0 | K4: =Return!D67 -> 61.85 | L4: =Return!E39 -> محلات | M4: =Return!E40 -> محلات | N4: Return)1(
B5: =Return!C73 -> 00:00:00 | C5: =Return!C72 -> 102 | D5: =Return!C74 -> 0 | E5: =Return!E73 -> 0 | F5: =Return!E72 -> 0 | G5: =Return!C75 -> 0 | H5: =Return!C76 -> 0 | I5: =Return!D105 -> 0 | J5: =Return!D104 -> 0 | K5: =Return!D102 -> 0 | L5: =Return!E74 -> 0 | M5: =Return!E75 -> 0 | N5: Return)1(
B6: =Return!C108 -> 00:00:00 | C6: =Return!C107 -> 103 | D6: =Return!C109 -> 0 | E6: =Return!E108 -> 0 | F6: =Return!E107 -> 0 | G6: =Return!C110 -> 0 | H6: =Return!C111 -> 0 | I6: =Return!D140 -> 0 | J6: =Return!D139 -> 0 | K6: =Return!D137 -> 0 | L6: =Return!E109 -> 0 | M6: =Return!E110 -> 0 | N6: Return)1(
B7: =Return!C143 -> 00:00:00 | C7: =Return!C142 -> 104 | D7: =Return!C144 -> 0 | E7: =Return!E143 -> 0 | F7: =Return!E142 -> 0 | G7: =Return!C145 -> 0 | H7: =Return!C146 -> 0 | I7: =Return!D175 -> 0 | J7: =Return!D174 -> 0 | K7: =Return!D172 -> 0 | L7: =Return!E144 -> 0 | M7: =Return!E145 -> 0 | N7: Return)1(
B8: =Return!C178 -> 00:00:00 | C8: =Return!C177 -> 105 | D8: =Return!C179 -> 0 | E8: =Return!E178 -> 0 | F8: =Return!E177 -> 0 | G8: =Return!C180 -> 0 | H8: =Return!C181 -> 0 | I8: =Return!D210 -> 0 | J8: =Return!D209 -> 0 | K8: =Return!D207 -> 0 | L8: =Return!E179 -> 0 | M8: =Return!E180 -> 0 | N8: Return)1(
B9: =Return!C213 -> 00:00:00 | C9: =Return!C212 -> 106 | D9: =Return!C214 -> 0 | E9: =Return!E213 -> 0 | F9: =Return!E212 -> 0 | G9: =Return!C215 -> 0 | H9: =Return!C216 -> 0 | I9: =Return!D245 -> 0 | J9: =Return!D244 -> 0 | K9: =Return!D242 -> 0 | L9: =Return!E214 -> 0 | M9: =Return!E215 -> 0 | N9: Return)1(
B10: =Return!C248 -> 00:00:00 | C10: =Return!C247 -> 107 | D10: =Return!C249 -> 0 | E10: =Return!E248 -> 0 | F10: =Return!E247 -> 0 | G10: =Return!C250 -> 0 | H10: =Return!C251 -> 0 | I10: =Return!D280 -> 0 | J10: =Return!D279 -> 0 | K10: =Return!D277 -> 0 | L10: =Return!E249 -> 0 | M10: =Return!E250 -> 0 | N10: Return)1(
B11: =Return!C283 -> 00:00:00 | C11: =Return!C282 -> 108 | D11: =Return!C284 -> 0 | E11: =Return!E283 -> 0 | F11: =Return!E282 -> 0 | G11: =Return!C285 -> 0 | H11: =Return!C286 -> 0 | I11: =Return!D315 -> 0 | J11: =Return!D314 -> 0 | K11: =Return!D312 -> 0 | L11: =Return!E284 -> 0 | M11: =Return!E285 -> 0 | N11: Return)1(
B12: =Return!C318 -> 00:00:00 | C12: =Return!C317 -> 109 | D12: =Return!C319 -> 0 | E12: =Return!E318 -> 0 | F12: =Return!E317 -> 0 | G12: =Return!C320 -> 0 | H12: =Return!C321 -> 0 | I12: =Return!D350 -> 0 | J12: =Return!D349 -> 0 | K12: =Return!D347 -> 0 | L12: =Return!E319 -> 0 | M12: =Return!E320 -> 0 | N12: Return)1(
E14: الاجمالى | G14: =SUM(K3:K12) -> 98.85
E15: الخصم | G15: =SUM(J3:J12) -> 0
E16: صافى الفواتير | G16: =SUM(I3:I12) -> 98.85

Sheet Search
B2: التاريخ | C2: رقم الفاتورة | D2: نوع الفاتورة | E2: المشرف | F2: المندوب | G2: كود العميل | H2: العميل
B3: 2018-08-01 | C3: 100 | D3: بالحساب | E3: 2 | F3: 2 | G3: 100 | H3: =IFERROR(VLOOKUP(G3,ورقة1!$B$3:$C$122,2,0),"") -> محل 1
B5: التاريخ | C5: رقم الفاتورة | D5: نوع الفاتورة | E5: المشرف | F5: المندوب | G5: كود العميل | H5: العميل | I5: صافى الفاتورة | J5: الخصم | K5: الاجمالى | L5: الفئة الاساسية | M5: الفئة الفرعية | N5: اسم الصفحة
B6: 2018-08-01 | C6: 100 | D6: بالحساب | E6: 2 | F6: 2 | G6: 100 | H6: محل 1 | I6: 2037.05 | J6: 0 | K6: 2037.05 | L6: محلات | M6: محلات | N6: sales(1)
B7: 2018-08-01 | C7: 100 | D7: بالحساب | E7: 2 | F7: 2 | G7: 100 | H7: محل 1 | I7: 37 | J7: 0 | K7: 37 | L7: محلات | M7: محلات | N7: Return)1(

Sheet Setting (hidden)
A1: التاريخ | B1: رقم الفاتورة | C1: كود العميل | D1: العميل
A2: =IFERROR(IF(ISERROR(INDEX('sales(1)'!$B$3:$B$53,MATCH(0,IF('sales(1)'!$B$3:$B$53<>"",COUNTIF($A$1:A1,'sales(1)'!$B$3:$B$53),1),0))),INDEX('Return)1('!$B$3:$B$12,MATCH(0,IF('Return)1('!$B$3:$B$12<>"",COUNTIF($A$1:A1,'Return)1('!$B$3:$B$12),1),0)),INDEX('sales(1)'!$B$3:$B$53,MATCH(0,IF('sales(1)'!$B$3:$B$53<>"",COUNTIF($A$1:A1,'sales(1)'!$B$3:$B$53),1),0))),"") -> 2018-08-01 | B2: =IFERROR(IF(ISERROR(INDEX('sales(1)'!$C$3:$C$53,MATCH(0,IF('sales(1)'!$C$3:$C$53<>"",COUNTIF($B$1:B1,'sales(1)'!$C$3:$C$53),1),0))),INDEX('Return)1('!$C$3:$C$12,MATCH(0,IF('Return)1('!$C$3:$C$12<>"",COUNTIF($B$1:B1,'Return)1('!$C$3:$C$12),1),0)),INDEX('sales(1)'!$C$3:$C$53,MATCH(0,IF('sales(1)'!$C$3:$C$53<>"",COUNTIF($B$1:B1,'sales(1)'!$C$3:$C$53),1),0))),"") -> 100 | C2: =IFERROR(IF(ISERROR(INDEX('sales(1)'!$G$3:$G$53,MATCH(0,IF('sales(1)'!$G$3:$G$53<>"",COUNTIF($C$1:C1,'sales(1)'!$G$3:$G$53),1),0))),INDEX('Return)1('!$G$3:$G$12,MATCH(0,IF('Return)1('!$G$3:$G$12<>"",COUNTIF($C$1:C1,'Return)1('!$G$3:$G$12),1),0)),INDEX('sales(1)'!$G$3:$G$53,MATCH(0,IF('sales(1)'!$G$3:$G$53<>"",COUNTIF($C$1:C1,'sales(1)'!$G$3:$G$53),1),0))),"") -> 100 | D2: =IFERROR(IF(ISERROR(INDEX('sales(1)'!$H$3:$H$53,MATCH(0,IF('sales(1)'!$H$3:$H$53<>"",COUNTIF($D$1:D1,'sales(1)'!$H$3:$H$53),1),0))),INDEX('Return)1('!$H$3:$H$12,MATCH(0,IF('Return)1('!$H$3:$H$12<>"",COUNTIF($D$1:D1,'Return)1('!$H$3:$H$12),1),0)),INDEX('sales(1)'!$H$3:$H$53,MATCH(0,IF('sales(1)'!$H$3:$H$53<>"",COUNTIF($D$1:D1,'sales(1)'!$H$3:$H$53),1),0))),"") -> محل 1
A3: =IFERROR(IF(ISERROR(INDEX('sales(1)'!$B$3:$B$53,MATCH(0,IF('sales(1)'!$B$3:$B$53<>"",COUNTIF($A$1:A2,'sales(1)'!$B$3:$B$53),1),0))),INDEX('Return)1('!$B$3:$B$12,MATCH(0,IF('Return)1('!$B$3:$B$12<>"",COUNTIF($A$1:A2,'Return)1('!$B$3:$B$12),1),0)),INDEX('sales(1)'!$B$3:$B$53,MATCH(0,IF('sales(1)'!$B$3:$B$53<>"",COUNTIF($A$1:A2,'sales(1)'!$B$3:$B$53),1),0))),"") -> 1900-01-05 | B3: =IFERROR(IF(ISERROR(INDEX('sales(1)'!$C$3:$C$53,MATCH(0,IF('sales(1)'!$C$3:$C$53<>"",COUNTIF($B$1:B2,'sales(1)'!$C$3:$C$53),1),0))),INDEX('Return)1('!$C$3:$C$12,MATCH(0,IF('Return)1('!$C$3:$C$12<>"",COUNTIF($B$1:B2,'Return)1('!$C$3:$C$12),1),0)),INDEX('sales(1)'!$C$3:$C$53,MATCH(0,IF('sales(1)'!$C$3:$C$53<>"",COUNTIF($B$1:B2,'sales(1)'!$C$3:$C$53),1),0))),"") -> 101 | C3: =IFERROR(IF(ISERROR(INDEX('sales(1)'!$G$3:$G$53,MATCH(0,IF('sales(1)'!$G$3:$G$53<>"",COUNTIF($C$1:C2,'sales(1)'!$G$3:$G$53),1),0))),INDEX('Return)1('!$G$3:$G$12,MATCH(0,IF('Return)1('!$G$3:$G$12<>"",COUNTIF($C$1:C2,'Return)1('!$G$3:$G$12),1),0)),INDEX('sales(1)'!$G$3:$G$53,MATCH(0,IF('sales(1)'!$G$3:$G$53<>"",COUNTIF($C$1:C2,'sales(1)'!$G$3:$G$53),1),0))),"") -> 150 | D3: =IFERROR(IF(ISERROR(INDEX('sales(1)'!$H$3:$H$53,MATCH(0,IF('sales(1)'!$H$3:$H$53<>"",COUNTIF($D$1:D2,'sales(1)'!$H$3:$H$53),1),0))),INDEX('Return)1('!$H$3:$H$12,MATCH(0,IF('Return)1('!$H$3:$H$12<>"",COUNTIF($D$1:D2,'Return)1('!$H$3:$H$12),1),0)),INDEX('sales(1)'!$H$3:$H$53,MATCH(0,IF('sales(1)'!$H$3:$H$53<>"",COUNTIF($D$1:D2,'sales(1)'!$H$3:$H$53),1),0))),"") -> 0
A4: =IFERROR(IF(ISERROR(INDEX('sales(1)'!$B$3:$B$53,MATCH(0,IF('sales(1)'!$B$3:$B$53<>"",COUNTIF($A$1:A3,'sales(1)'!$B$3:$B$53),1),0))),INDEX('Return)1('!$B$3:$B$12,MATCH(0,IF('Return)1('!$B$3:$B$12<>"",COUNTIF($A$1:A3,'Return)1('!$B$3:$B$12),1),0)),INDEX('sales(1)'!$B$3:$B$53,MATCH(0,IF('sales(1)'!$B$3:$B$53<>"",COUNTIF($A$1:A3,'sales(1)'!$B$3:$B$53),1),0))),"") -> 00:00:00 | B4: =IFERROR(IF(ISERROR(INDEX('sales(1)'!$C$3:$C$53,MATCH(0,IF('sales(1)'!$C$3:$C$53<>"",COUNTIF($B$1:B3,'sales(1)'!$C$3:$C$53),1),0))),INDEX('Return)1('!$C$3:$C$12,MATCH(0,IF('Return)1('!$C$3:$C$12<>"",COUNTIF($B$1:B3,'Return)1('!$C$3:$C$12),1),0)),INDEX('sales(1)'!$C$3:$C$53,MATCH(0,IF('sales(1)'!$C$3:$C$53<>"",COUNTIF($B$1:B3,'sales(1)'!$C$3:$C$53),1),0))),"") -> 102 | C4: =IFERROR(IF(ISERROR(INDEX('sales(1)'!$G$3:$G$53,MATCH(0,IF('sales(1)'!$G$3:$G$53<>"",COUNTIF($C$1:C3,'sales(1)'!$G$3:$G$53),1),0))),INDEX('Return)1('!$G$3:$G$12,MATCH(0,IF('Return)1('!$G$3:$G$12<>"",COUNTIF($C$1:C3,'Return)1('!$G$3:$G$12),1),0)),INDEX('sales(1)'!$G$3:$G$53,MATCH(0,IF('sales(1)'!$G$3:$G$53<>"",COUNTIF($C$1:C3,'sales(1)'!$G$3:$G$53),1),0))),"") -> 0 | D4: =IFERROR(IF(ISERROR(INDEX('sales(1)'!$H$3:$H$53,MATCH(0,IF('sales(1)'!$H$3:$H$53<>"",COUNTIF($D$1:D3,'sales(1)'!$H$3:$H$53),1),0))),INDEX('Return)1('!$H$3:$H$12,MATCH(0,IF('Return)1('!$H$3:$H$12<>"",COUNTIF($D$1:D3,'Return)1('!$H$3:$H$12),1),0)),INDEX('sales(1)'!$H$3:$H$53,MATCH(0,IF('sales(1)'!$H$3:$H$53<>"",COUNTIF($D$1:D3,'sales(1)'!$H$3:$H$53),1),0))),"") -> 
A5: =IFERROR(IF(ISERROR(INDEX('sales(1)'!$B$3:$B$53,MATCH(0,IF('sales(1)'!$B$3:$B$53<>"",COUNTIF($A$1:A4,'sales(1)'!$B$3:$B$53),1),0))),INDEX('Return)1('!$B$3:$B$12,MATCH(0,IF('Return)1('!$B$3:$B$12<>"",COUNTIF($A$1:A4,'Return)1('!$B$3:$B$12),1),0)),INDEX('sales(1)'!$B$3:$B$53,MATCH(0,IF('sales(1)'!$B$3:$B$53<>"",COUNTIF($A$1:A4,'sales(1)'!$B$3:$B$53),1),0))),"") ->  | B5: =IFERROR(IF(ISERROR(INDEX('sales(1)'!$C$3:$C$53,MATCH(0,IF('sales(1)'!$C$3:$C$53<>"",COUNTIF($B$1:B4,'sales(1)'!$C$3:$C$53),1),0))),INDEX('Return)1('!$C$3:$C$12,MATCH(0,IF('Return)1('!$C$3:$C$12<>"",COUNTIF($B$1:B4,'Return)1('!$C$3:$C$12),1),0)),INDEX('sales(1)'!$C$3:$C$53,MATCH(0,IF('sales(1)'!$C$3:$C$53<>"",COUNTIF($B$1:B4,'sales(1)'!$C$3:$C$53),1),0))),"") -> 103 | C5: =IFERROR(IF(ISERROR(INDEX('sales(1)'!$G$3:$G$53,MATCH(0,IF('sales(1)'!$G$3:$G$53<>"",COUNTIF($C$1:C4,'sales(1)'!$G$3:$G$53),1),0))),INDEX('Return)1('!$G$3:$G$12,MATCH(0,IF('Return)1('!$G$3:$G$12<>"",COUNTIF($C$1:C4,'Return)1('!$G$3:$G$12),1),0)),INDEX('sales(1)'!$G$3:$G$53,MATCH(0,IF('sales(1)'!$G$3:$G$53<>"",COUNTIF($C$1:C4,'sales(1)'!$G$3:$G$53),1),0))),"") ->  | D5: =IFERROR(IF(ISERROR(INDEX('sales(1)'!$H$3:$H$53,MATCH(0,IF('sales(1)'!$H$3:$H$53<>"",COUNTIF($D$1:D4,'sales(1)'!$H$3:$H$53),1),0))),INDEX('Return)1('!$H$3:$H$12,MATCH(0,IF('Return)1('!$H$3:$H$12<>"",COUNTIF($D$1:D4,'Return)1('!$H$3:$H$12),1),0)),INDEX('sales(1)'!$H$3:$H$53,MATCH(0,IF('sales(1)'!$H$3:$H$53<>"",COUNTIF($D$1:D4,'sales(1)'!$H$3:$H$53),1),0))),"") -> 
A6: =IFERROR(IF(ISERROR(INDEX('sales(1)'!$B$3:$B$53,MATCH(0,IF('sales(1)'!$B$3:$B$53<>"",COUNTIF($A$1:A5,'sales(1)'!$B$3:$B$53),1),0))),INDEX('Return)1('!$B$3:$B$12,MATCH(0,IF('Return)1('!$B$3:$B$12<>"",COUNTIF($A$1:A5,'Return)1('!$B$3:$B$12),1),0)),INDEX('sales(1)'!$B$3:$B$53,MATCH(0,IF('sales(1)'!$B$3:$B$53<>"",COUNTIF($A$1:A5,'sales(1)'!$B$3:$B$53),1),0))),"") ->  | B6: =IFERROR(IF(ISERROR(INDEX('sales(1)'!$C$3:$C$53,MATCH(0,IF('sales(1)'!$C$3:$C$53<>"",COUNTIF($B$1:B5,'sales(1)'!$C$3:$C$53),1),0))),INDEX('Return)1('!$C$3:$C$12,MATCH(0,IF('Return)1('!$C$3:$C$12<>"",COUNTIF($B$1:B5,'Return)1('!$C$3:$C$12),1),0)),INDEX('sales(1)'!$C$3:$C$53,MATCH(0,IF('sales(1)'!$C$3:$C$53<>"",COUNTIF($B$1:B5,'sales(1)'!$C$3:$C$53),1),0))),"") -> 104 | C6: =IFERROR(IF(ISERROR(INDEX('sales(1)'!$G$3:$G$53,MATCH(0,IF('sales(1)'!$G$3:$G$53<>"",COUNTIF($C$1:C5,'sales(1)'!$G$3:$G$53),1),0))),INDEX('Return)1('!$G$3:$G$12,MATCH(0,IF('Return)1('!$G$3:$G$12<>"",COUNTIF($C$1:C5,'Return)1('!$G$3:$G$12),1),0)),INDEX('sales(1)'!$G$3:$G$53,MATCH(0,IF('sales(1)'!$G$3:$G$53<>"",COUNTIF($C$1:C5,'sales(1)'!$G$3:$G$53),1),0))),"") ->  | D6: =IFERROR(IF(ISERROR(INDEX('sales(1)'!$H$3:$H$53,MATCH(0,IF('sales(1)'!$H$3:$H$53<>"",COUNTIF($D$1:D5,'sales(1)'!$H$3:$H$53),1),0))),INDEX('Return)1('!$H$3:$H$12,MATCH(0,IF('Return)1('!$H$3:$H$12<>"",COUNTIF($D$1:D5,'Return)1('!$H$3:$H$12),1),0)),INDEX('sales(1)'!$H$3:$H$53,MATCH(0,IF('sales(1)'!$H$3:$H$53<>"",COUNTIF($D$1:D5,'sales(1)'!$H$3:$H$53),1),0))),"") -> 
A7: =IFERROR(IF(ISERROR(INDEX('sales(1)'!$B$3:$B$53,MATCH(0,IF('sales(1)'!$B$3:$B$53<>"",COUNTIF($A$1:A6,'sales(1)'!$B$3:$B$53),1),0))),INDEX('Return)1('!$B$3:$B$12,MATCH(0,IF('Return)1('!$B$3:$B$12<>"",COUNTIF($A$1:A6,'Return)1('!$B$3:$B$12),1),0)),INDEX('sales(1)'!$B$3:$B$53,MATCH(0,IF('sales(1)'!$B$3:$B$53<>"",COUNTIF($A$1:A6,'sales(1)'!$B$3:$B$53),1),0))),"") ->  | B7: =IFERROR(IF(ISERROR(INDEX('sales(1)'!$C$3:$C$53,MATCH(0,IF('sales(1)'!$C$3:$C$53<>"",COUNTIF($B$1:B6,'sales(1)'!$C$3:$C$53),1),0))),INDEX('Return)1('!$C$3:$C$12,MATCH(0,IF('Return)1('!$C$3:$C$12<>"",COUNTIF($B$1:B6,'Return)1('!$C$3:$C$12),1),0)),INDEX('sales(1)'!$C$3:$C$53,MATCH(0,IF('sales(1)'!$C$3:$C$53<>"",COUNTIF($B$1:B6,'sales(1)'!$C$3:$C$53),1),0))),"") -> 105 | C7: =IFERROR(IF(ISERROR(INDEX('sales(1)'!$G$3:$G$53,MATCH(0,IF('sales(1)'!$G$3:$G$53<>"",COUNTIF($C$1:C6,'sales(1)'!$G$3:$G$53),1),0))),INDEX('Return)1('!$G$3:$G$12,MATCH(0,IF('Return)1('!$G$3:$G$12<>"",COUNTIF($C$1:C6,'Return)1('!$G$3:$G$12),1),0)),INDEX('sales(1)'!$G$3:$G$53,MATCH(0,IF('sales(1)'!$G$3:$G$53<>"",COUNTIF($C$1:C6,'sales(1)'!$G$3:$G$53),1),0))),"") ->  | D7: =IFERROR(IF(ISERROR(INDEX('sales(1)'!$H$3:$H$53,MATCH(0,IF('sales(1)'!$H$3:$H$53<>"",COUNTIF($D$1:D6,'sales(1)'!$H$3:$H$53),1),0))),INDEX('Return)1('!$H$3:$H$12,MATCH(0,IF('Return)1('!$H$3:$H$12<>"",COUNTIF($D$1:D6,'Return)1('!$H$3:$H$12),1),0)),INDEX('sales(1)'!$H$3:$H$53,MATCH(0,IF('sales(1)'!$H$3:$H$53<>"",COUNTIF($D$1:D6,'sales(1)'!$H$3:$H$53),1),0))),"") -> 
A8: =IFERROR(IF(ISERROR(INDEX('sales(1)'!$B$3:$B$53,MATCH(0,IF('sales(1)'!$B$3:$B$53<>"",COUNTIF($A$1:A7,'sales(1)'!$B$3:$B$53),1),0))),INDEX('Return)1('!$B$3:$B$12,MATCH(0,IF('Return)1('!$B$3:$B$12<>"",COUNTIF($A$1:A7,'Return)1('!$B$3:$B$12),1),0)),INDEX('sales(1)'!$B$3:$B$53,MATCH(0,IF('sales(1)'!$B$3:$B$53<>"",COUNTIF($A$1:A7,'sales(1)'!$B$3:$B$53),1),0))),"") ->  | B8: =IFERROR(IF(ISERROR(INDEX('sales(1)'!$C$3:$C$53,MATCH(0,IF('sales(1)'!$C$3:$C$53<>"",COUNTIF($B$1:B7,'sales(1)'!$C$3:$C$53),1),0))),INDEX('Return)1('!$C$3:$C$12,MATCH(0,IF('Return)1('!$C$3:$C$12<>"",COUNTIF($B$1:B7,'Return)1('!$C$3:$C$12),1),0)),INDEX('sales(1)'!$C$3:$C$53,MATCH(0,IF('sales(1)'!$C$3:$C$53<>"",COUNTIF($B$1:B7,'sales(1)'!$C$3:$C$53),1),0))),"") -> 106 | C8: =IFERROR(IF(ISERROR(INDEX('sales(1)'!$G$3:$G$53,MATCH(0,IF('sales(1)'!$G$3:$G$53<>"",COUNTIF($C$1:C7,'sales(1)'!$G$3:$G$53),1),0))),INDEX('Return)1('!$G$3:$G$12,MATCH(0,IF('Return)1('!$G$3:$G$12<>"",COUNTIF($C$1:C7,'Return)1('!$G$3:$G$12),1),0)),INDEX('sales(1)'!$G$3:$G$53,MATCH(0,IF('sales(1)'!$G$3:$G$53<>"",COUNTIF($C$1:C7,'sales(1)'!$G$3:$G$53),1),0))),"") ->  | D8: =IFERROR(IF(ISERROR(INDEX('sales(1)'!$H$3:$H$53,MATCH(0,IF('sales(1)'!$H$3:$H$53<>"",COUNTIF($D$1:D7,'sales(1)'!$H$3:$H$53),1),0))),INDEX('Return)1('!$H$3:$H$12,MATCH(0,IF('Return)1('!$H$3:$H$12<>"",COUNTIF($D$1:D7,'Return)1('!$H$3:$H$12),1),0)),INDEX('sales(1)'!$H$3:$H$53,MATCH(0,IF('sales(1)'!$H$3:$H$53<>"",COUNTIF($D$1:D7,'sales(1)'!$H$3:$H$53),1),0))),"") -> 
A9: =IFERROR(IF(ISERROR(INDEX('sales(1)'!$B$3:$B$53,MATCH(0,IF('sales(1)'!$B$3:$B$53<>"",COUNTIF($A$1:A8,'sales(1)'!$B$3:$B$53),1),0))),INDEX('Return)1('!$B$3:$B$12,MATCH(0,IF('Return)1('!$B$3:$B$12<>"",COUNTIF($A$1:A8,'Return)1('!$B$3:$B$12),1),0)),INDEX('sales(1)'!$B$3:$B$53,MATCH(0,IF('sales(1)'!$B$3:$B$53<>"",COUNTIF($A$1:A8,'sales(1)'!$B$3:$B$53),1),0))),"") ->  | B9: =IFERROR(IF(ISERROR(INDEX('sales(1)'!$C$3:$C$53,MATCH(0,IF('sales(1)'!$C$3:$C$53<>"",COUNTIF($B$1:B8,'sales(1)'!$C$3:$C$53),1),0))),INDEX('Return)1('!$C$3:$C$12,MATCH(0,IF('Return)1('!$C$3:$C$12<>"",COUNTIF($B$1:B8,'Return)1('!$C$3:$C$12),1),0)),INDEX('sales(1)'!$C$3:$C$53,MATCH(0,IF('sales(1)'!$C$3:$C$53<>"",COUNTIF($B$1:B8,'sales(1)'!$C$3:$C$53),1),0))),"") -> 107 | C9: =IFERROR(IF(ISERROR(INDEX('sales(1)'!$G$3:$G$53,MATCH(0,IF('sales(1)'!$G$3:$G$53<>"",COUNTIF($C$1:C8,'sales(1)'!$G$3:$G$53),1),0))),INDEX('Return)1('!$G$3:$G$12,MATCH(0,IF('Return)1('!$G$3:$G$12<>"",COUNTIF($C$1:C8,'Return)1('!$G$3:$G$12),1),0)),INDEX('sales(1)'!$G$3:$G$53,MATCH(0,IF('sales(1)'!$G$3:$G$53<>"",COUNTIF($C$1:C8,'sales(1)'!$G$3:$G$53),1),0))),"") ->  | D9: =IFERROR(IF(ISERROR(INDEX('sales(1)'!$H$3:$H$53,MATCH(0,IF('sales(1)'!$H$3:$H$53<>"",COUNTIF($D$1:D8,'sales(1)'!$H$3:$H$53),1),0))),INDEX('Return)1('!$H$3:$H$12,MATCH(0,IF('Return)1('!$H$3:$H$12<>"",COUNTIF($D$1:D8,'Return)1('!$H$3:$H$12),1),0)),INDEX('sales(1)'!$H$3:$H$53,MATCH(0,IF('sales(1)'!$H$3:$H$53<>"",COUNTIF($D$1:D8,'sales(1)'!$H$3:$H$53),1),0))),"") -> 
A10: =IFERROR(IF(ISERROR(INDEX('sales(1)'!$B$3:$B$53,MATCH(0,IF('sales(1)'!$B$3:$B$53<>"",COUNTIF($A$1:A9,'sales(1)'!$B$3:$B$53),1),0))),INDEX('Return)1('!$B$3:$B$12,MATCH(0,IF('Return)1('!$B$3:$B$12<>"",COUNTIF($A$1:A9,'Return)1('!$B$3:$B$12),1),0)),INDEX('sales(1)'!$B$3:$B$53,MATCH(0,IF('sales(1)'!$B$3:$B$53<>"",COUNTIF($A$1:A9,'sales(1)'!$B$3:$B$53),1),0))),"") ->  | B10: =IFERROR(IF(ISERROR(INDEX('sales(1)'!$C$3:$C$53,MATCH(0,IF('sales(1)'!$C$3:$C$53<>"",COUNTIF($B$1:B9,'sales(1)'!$C$3:$C$53),1),0))),INDEX('Return)1('!$C$3:$C$12,MATCH(0,IF('Return)1('!$C$3:$C$12<>"",COUNTIF($B$1:B9,'Return)1('!$C$3:$C$12),1),0)),INDEX('sales(1)'!$C$3:$C$53,MATCH(0,IF('sales(1)'!$C$3:$C$53<>"",COUNTIF($B$1:B9,'sales(1)'!$C$3:$C$53),1),0))),"") -> 108 | C10: =IFERROR(IF(ISERROR(INDEX('sales(1)'!$G$3:$G$53,MATCH(0,IF('sales(1)'!$G$3:$G$53<>"",COUNTIF($C$1:C9,'sales(1)'!$G$3:$G$53),1),0))),INDEX('Return)1('!$G$3:$G$12,MATCH(0,IF('Return)1('!$G$3:$G$12<>"",COUNTIF($C$1:C9,'Return)1('!$G$3:$G$12),1),0)),INDEX('sales(1)'!$G$3:$G$53,MATCH(0,IF('sales(1)'!$G$3:$G$53<>"",COUNTIF($C$1:C9,'sales(1)'!$G$3:$G$53),1),0))),"") ->  | D10: =IFERROR(IF(ISERROR(INDEX('sales(1)'!$H$3:$H$53,MATCH(0,IF('sales(1)'!$H$3:$H$53<>"",COUNTIF($D$1:D9,'sales(1)'!$H$3:$H$53),1),0))),INDEX('Return)1('!$H$3:$H$12,MATCH(0,IF('Return)1('!$H$3:$H$12<>"",COUNTIF($D$1:D9,'Return)1('!$H$3:$H$12),1),0)),INDEX('sales(1)'!$H$3:$H$53,MATCH(0,IF('sales(1)'!$H$3:$H$53<>"",COUNTIF($D$1:D9,'sales(1)'!$H$3:$H$53),1),0))),"") -> 
A11: =IFERROR(IF(ISERROR(INDEX('sales(1)'!$B$3:$B$53,MATCH(0,IF('sales(1)'!$B$3:$B$53<>"",COUNTIF($A$1:A10,'sales(1)'!$B$3:$B$53),1),0))),INDEX('Return)1('!$B$3:$B$12,MATCH(0,IF('Return)1('!$B$3:$B$12<>"",COUNTIF($A$1:A10,'Return)1('!$B$3:$B$12),1),0)),INDEX('sales(1)'!$B$3:$B$53,MATCH(0,IF('sales(1)'!$B$3:$B$53<>"",COUNTIF($A$1:A10,'sales(1)'!$B$3:$B$53),1),0))),"") ->  | B11: =IFERROR(IF(ISERROR(INDEX('sales(1)'!$C$3:$C$53,MATCH(0,IF('sales(1)'!$C$3:$C$53<>"",COUNTIF($B$1:B10,'sales(1)'!$C$3:$C$53),1),0))),INDEX('Return)1('!$C$3:$C$12,MATCH(0,IF('Return)1('!$C$3:$C$12<>"",COUNTIF($B$1:B10,'Return)1('!$C$3:$C$12),1),0)),INDEX('sales(1)'!$C$3:$C$53,MATCH(0,IF('sales(1)'!$C$3:$C$53<>"",COUNTIF($B$1:B10,'sales(1)'!$C$3:$C$53),1),0))),"") -> 109 | C11: =IFERROR(IF(ISERROR(INDEX('sales(1)'!$G$3:$G$53,MATCH(0,IF('sales(1)'!$G$3:$G$53<>"",COUNTIF($C$1:C10,'sales(1)'!$G$3:$G$53),1),0))),INDEX('Return)1('!$G$3:$G$12,MATCH(0,IF('Return)1('!$G$3:$G$12<>"",COUNTIF($C$1:C10,'Return)1('!$G$3:$G$12),1),0)),INDEX('sales(1)'!$G$3:$G$53,MATCH(0,IF('sales(1)'!$G$3:$G$53<>"",COUNTIF($C$1:C10,'sales(1)'!$G$3:$G$53),1),0))),"") ->  | D11: =IFERROR(IF(ISERROR(INDEX('sales(1)'!$H$3:$H$53,MATCH(0,IF('sales(1)'!$H$3:$H$53<>"",COUNTIF($D$1:D10,'sales(1)'!$H$3:$H$53),1),0))),INDEX('Return)1('!$H$3:$H$12,MATCH(0,IF('Return)1('!$H$3:$H$12<>"",COUNTIF($D$1:D10,'Return)1('!$H$3:$H$12),1),0)),INDEX('sales(1)'!$H$3:$H$53,MATCH(0,IF('sales(1)'!$H$3:$H$53<>"",COUNTIF($D$1:D10,'sales(1)'!$H$3:$H$53),1),0))),"") -> 
A12: =IFERROR(IF(ISERROR(INDEX('sales(1)'!$B$3:$B$53,MATCH(0,IF('sales(1)'!$B$3:$B$53<>"",COUNTIF($A$1:A11,'sales(1)'!$B$3:$B$53),1),0))),INDEX('Return)1('!$B$3:$B$12,MATCH(0,IF('Return)1('!$B$3:$B$12<>"",COUNTIF($A$1:A11,'Return)1('!$B$3:$B$12),1),0)),INDEX('sales(1)'!$B$3:$B$53,MATCH(0,IF('sales(1)'!$B$3:$B$53<>"",COUNTIF($A$1:A11,'sales(1)'!$B$3:$B$53),1),0))),"") ->  | B12: =IFERROR(IF(ISERROR(INDEX('sales(1)'!$C$3:$C$53,MATCH(0,IF('sales(1)'!$C$3:$C$53<>"",COUNTIF($B$1:B11,'sales(1)'!$C$3:$C$53),1),0))),INDEX('Return)1('!$C$3:$C$12,MATCH(0,IF('Return)1('!$C$3:$C$12<>"",COUNTIF($B$1:B11,'Return)1('!$C$3:$C$12),1),0)),INDEX('sales(1)'!$C$3:$C$53,MATCH(0,IF('sales(1)'!$C$3:$C$53<>"",COUNTIF($B$1:B11,'sales(1)'!$C$3:$C$53),1),0))),"") -> 110 | C12: =IFERROR(IF(ISERROR(INDEX('sales(1)'!$G$3:$G$53,MATCH(0,IF('sales(1)'!$G$3:$G$53<>"",COUNTIF($C$1:C11,'sales(1)'!$G$3:$G$53),1),0))),INDEX('Return)1('!$G$3:$G$12,MATCH(0,IF('Return)1('!$G$3:$G$12<>"",COUNTIF($C$1:C11,'Return)1('!$G$3:$G$12),1),0)),INDEX('sales(1)'!$G$3:$G$53,MATCH(0,IF('sales(1)'!$G$3:$G$53<>"",COUNTIF($C$1:C11,'sales(1)'!$G$3:$G$53),1),0))),"") ->  | D12: =IFERROR(IF(ISERROR(INDEX('sales(1)'!$H$3:$H$53,MATCH(0,IF('sales(1)'!$H$3:$H$53<>"",COUNTIF($D$1:D11,'sales(1)'!$H$3:$H$53),1),0))),INDEX('Return)1('!$H$3:$H$12,MATCH(0,IF('Return)1('!$H$3:$H$12<>"",COUNTIF($D$1:D11,'Return)1('!$H$3:$H$12),1),0)),INDEX('sales(1)'!$H$3:$H$53,MATCH(0,IF('sales(1)'!$H$3:$H$53<>"",COUNTIF($D$1:D11,'sales(1)'!$H$3:$H$53),1),0))),"") -> 
A13: =IFERROR(IF(ISERROR(INDEX('sales(1)'!$B$3:$B$53,MATCH(0,IF('sales(1)'!$B$3:$B$53<>"",COUNTIF($A$1:A12,'sales(1)'!$B$3:$B$53),1),0))),INDEX('Return)1('!$B$3:$B$12,MATCH(0,IF('Return)1('!$B$3:$B$12<>"",COUNTIF($A$1:A12,'Return)1('!$B$3:$B$12),1),0)),INDEX('sales(1)'!$B$3:$B$53,MATCH(0,IF('sales(1)'!$B$3:$B$53<>"",COUNTIF($A$1:A12,'sales(1)'!$B$3:$B$53),1),0))),"") ->  | B13: =IFERROR(IF(ISERROR(INDEX('sales(1)'!$C$3:$C$53,MATCH(0,IF('sales(1)'!$C$3:$C$53<>"",COUNTIF($B$1:B12,'sales(1)'!$C$3:$C$53),1),0))),INDEX('Return)1('!$C$3:$C$12,MATCH(0,IF('Return)1('!$C$3:$C$12<>"",COUNTIF($B$1:B12,'Return)1('!$C$3:$C$12),1),0)),INDEX('sales(1)'!$C$3:$C$53,MATCH(0,IF('sales(1)'!$C$3:$C$53<>"",COUNTIF($B$1:B12,'sales(1)'!$C$3:$C$53),1),0))),"") -> 111 | C13: =IFERROR(IF(ISERROR(INDEX('sales(1)'!$G$3:$G$53,MATCH(0,IF('sales(1)'!$G$3:$G$53<>"",COUNTIF($C$1:C12,'sales(1)'!$G$3:$G$53),1),0))),INDEX('Return)1('!$G$3:$G$12,MATCH(0,IF('Return)1('!$G$3:$G$12<>"",COUNTIF($C$1:C12,'Return)1('!$G$3:$G$12),1),0)),INDEX('sales(1)'!$G$3:$G$53,MATCH(0,IF('sales(1)'!$G$3:$G$53<>"",COUNTIF($C$1:C12,'sales(1)'!$G$3:$G$53),1),0))),"") ->  | D13: =IFERROR(IF(ISERROR(INDEX('sales(1)'!$H$3:$H$53,MATCH(0,IF('sales(1)'!$H$3:$H$53<>"",COUNTIF($D$1:D12,'sales(1)'!$H$3:$H$53),1),0))),INDEX('Return)1('!$H$3:$H$12,MATCH(0,IF('Return)1('!$H$3:$H$12<>"",COUNTIF($D$1:D12,'Return)1('!$H$3:$H$12),1),0)),INDEX('sales(1)'!$H$3:$H$53,MATCH(0,IF('sales(1)'!$H$3:$H$53<>"",COUNTIF($D$1:D12,'sales(1)'!$H$3:$H$53),1),0))),"") -> 
A14: =IFERROR(IF(ISERROR(INDEX('sales(1)'!$B$3:$B$53,MATCH(0,IF('sales(1)'!$B$3:$B$53<>"",COUNTIF($A$1:A13,'sales(1)'!$B$3:$B$53),1),0))),INDEX('Return)1('!$B$3:$B$12,MATCH(0,IF('Return)1('!$B$3:$B$12<>"",COUNTIF($A$1:A13,'Return)1('!$B$3:$B$12),1),0)),INDEX('sales(1)'!$B$3:$B$53,MATCH(0,IF('sales(1)'!$B$3:$B$53<>"",COUNTIF($A$1:A13,'sales(1)'!$B$3:$B$53),1),0))),"") ->  | B14: =IFERROR(IF(ISERROR(INDEX('sales(1)'!$C$3:$C$53,MATCH(0,IF('sales(1)'!$C$3:$C$53<>"",COUNTIF($B$1:B13,'sales(1)'!$C$3:$C$53),1),0))),INDEX('Return)1('!$C$3:$C$12,MATCH(0,IF('Return)1('!$C$3:$C$12<>"",COUNTIF($B$1:B13,'Return)1('!$C$3:$C$12),1),0)),INDEX('sales(1)'!$C$3:$C$53,MATCH(0,IF('sales(1)'!$C$3:$C$53<>"",COUNTIF($B$1:B13,'sales(1)'!$C$3:$C$53),1),0))),"") -> 112 | C14: =IFERROR(IF(ISERROR(INDEX('sales(1)'!$G$3:$G$53,MATCH(0,IF('sales(1)'!$G$3:$G$53<>"",COUNTIF($C$1:C13,'sales(1)'!$G$3:$G$53),1),0))),INDEX('Return)1('!$G$3:$G$12,MATCH(0,IF('Return)1('!$G$3:$G$12<>"",COUNTIF($C$1:C13,'Return)1('!$G$3:$G$12),1),0)),INDEX('sales(1)'!$G$3:$G$53,MATCH(0,IF('sales(1)'!$G$3:$G$53<>"",COUNTIF($C$1:C13,'sales(1)'!$G$3:$G$53),1),0))),"") ->  | D14: =IFERROR(IF(ISERROR(INDEX('sales(1)'!$H$3:$H$53,MATCH(0,IF('sales(1)'!$H$3:$H$53<>"",COUNTIF($D$1:D13,'sales(1)'!$H$3:$H$53),1),0))),INDEX('Return)1('!$H$3:$H$12,MATCH(0,IF('Return)1('!$H$3:$H$12<>"",COUNTIF($D$1:D13,'Return)1('!$H$3:$H$12),1),0)),INDEX('sales(1)'!$H$3:$H$53,MATCH(0,IF('sales(1)'!$H$3:$H$53<>"",COUNTIF($D$1:D13,'sales(1)'!$H$3:$H$53),1),0))),"") -> 
A15: =IFERROR(IF(ISERROR(INDEX('sales(1)'!$B$3:$B$53,MATCH(0,IF('sales(1)'!$B$3:$B$53<>"",COUNTIF($A$1:A14,'sales(1)'!$B$3:$B$53),1),0))),INDEX('Return)1('!$B$3:$B$12,MATCH(0,IF('Return)1('!$B$3:$B$12<>"",COUNTIF($A$1:A14,'Return)1('!$B$3:$B$12),1),0)),INDEX('sales(1)'!$B$3:$B$53,MATCH(0,IF('sales(1)'!$B$3:$B$53<>"",COUNTIF($A$1:A14,'sales(1)'!$B$3:$B$53),1),0))),"") ->  | B15: =IFERROR(IF(ISERROR(INDEX('sales(1)'!$C$3:$C$53,MATCH(0,IF('sales(1)'!$C$3:$C$53<>"",COUNTIF($B$1:B14,'sales(1)'!$C$3:$C$53),1),0))),INDEX('Return)1('!$C$3:$C$12,MATCH(0,IF('Return)1('!$C$3:$C$12<>"",COUNTIF($B$1:B14,'Return)1('!$C$3:$C$12),1),0)),INDEX('sales(1)'!$C$3:$C$53,MATCH(0,IF('sales(1)'!$C$3:$C$53<>"",COUNTIF($B$1:B14,'sales(1)'!$C$3:$C$53),1),0))),"") -> 113 | C15: =IFERROR(IF(ISERROR(INDEX('sales(1)'!$G$3:$G$53,MATCH(0,IF('sales(1)'!$G$3:$G$53<>"",COUNTIF($C$1:C14,'sales(1)'!$G$3:$G$53),1),0))),INDEX('Return)1('!$G$3:$G$12,MATCH(0,IF('Return)1('!$G$3:$G$12<>"",COUNTIF($C$1:C14,'Return)1('!$G$3:$G$12),1),0)),INDEX('sales(1)'!$G$3:$G$53,MATCH(0,IF('sales(1)'!$G$3:$G$53<>"",COUNTIF($C$1:C14,'sales(1)'!$G$3:$G$53),1),0))),"") ->  | D15: =IFERROR(IF(ISERROR(INDEX('sales(1)'!$H$3:$H$53,MATCH(0,IF('sales(1)'!$H$3:$H$53<>"",COUNTIF($D$1:D14,'sales(1)'!$H$3:$H$53),1),0))),INDEX('Return)1('!$H$3:$H$12,MATCH(0,IF('Return)1('!$H$3:$H$12<>"",COUNTIF($D$1:D14,'Return)1('!$H$3:$H$12),1),0)),INDEX('sales(1)'!$H$3:$H$53,MATCH(0,IF('sales(1)'!$H$3:$H$53<>"",COUNTIF($D$1:D14,'sales(1)'!$H$3:$H$53),1),0))),"") -> 
A16: =IFERROR(IF(ISERROR(INDEX('sales(1)'!$B$3:$B$53,MATCH(0,IF('sales(1)'!$B$3:$B$53<>"",COUNTIF($A$1:A15,'sales(1)'!$B$3:$B$53),1),0))),INDEX('Return)1('!$B$3:$B$12,MATCH(0,IF('Return)1('!$B$3:$B$12<>"",COUNTIF($A$1:A15,'Return)1('!$B$3:$B$12),1),0)),INDEX('sales(1)'!$B$3:$B$53,MATCH(0,IF('sales(1)'!$B$3:$B$53<>"",COUNTIF($A$1:A15,'sales(1)'!$B$3:$B$53),1),0))),"") ->  | B16: =IFERROR(IF(ISERROR(INDEX('sales(1)'!$C$3:$C$53,MATCH(0,IF('sales(1)'!$C$3:$C$53<>"",COUNTIF($B$1:B15,'sales(1)'!$C$3:$C$53),1),0))),INDEX('Return)1('!$C$3:$C$12,MATCH(0,IF('Return)1('!$C$3:$C$12<>"",COUNTIF($B$1:B15,'Return)1('!$C$3:$C$12),1),0)),INDEX('sales(1)'!$C$3:$C$53,MATCH(0,IF('sales(1)'!$C$3:$C$53<>"",COUNTIF($B$1:B15,'sales(1)'!$C$3:$C$53),1),0))),"") -> 114 | C16: =IFERROR(IF(ISERROR(INDEX('sales(1)'!$G$3:$G$53,MATCH(0,IF('sales(1)'!$G$3:$G$53<>"",COUNTIF($C$1:C15,'sales(1)'!$G$3:$G$53),1),0))),INDEX('Return)1('!$G$3:$G$12,MATCH(0,IF('Return)1('!$G$3:$G$12<>"",COUNTIF($C$1:C15,'Return)1('!$G$3:$G$12),1),0)),INDEX('sales(1)'!$G$3:$G$53,MATCH(0,IF('sales(1)'!$G$3:$G$53<>"",COUNTIF($C$1:C15,'sales(1)'!$G$3:$G$53),1),0))),"") ->  | D16: =IFERROR(IF(ISERROR(INDEX('sales(1)'!$H$3:$H$53,MATCH(0,IF('sales(1)'!$H$3:$H$53<>"",COUNTIF($D$1:D15,'sales(1)'!$H$3:$H$53),1),0))),INDEX('Return)1('!$H$3:$H$12,MATCH(0,IF('Return)1('!$H$3:$H$12<>"",COUNTIF($D$1:D15,'Return)1('!$H$3:$H$12),1),0)),INDEX('sales(1)'!$H$3:$H$53,MATCH(0,IF('sales(1)'!$H$3:$H$53<>"",COUNTIF($D$1:D15,'sales(1)'!$H$3:$H$53),1),0))),"") -> 
A17: =IFERROR(IF(ISERROR(INDEX('sales(1)'!$B$3:$B$53,MATCH(0,IF('sales(1)'!$B$3:$B$53<>"",COUNTIF($A$1:A16,'sales(1)'!$B$3:$B$53),1),0))),INDEX('Return)1('!$B$3:$B$12,MATCH(0,IF('Return)1('!$B$3:$B$12<>"",COUNTIF($A$1:A16,'Return)1('!$B$3:$B$12),1),0)),INDEX('sales(1)'!$B$3:$B$53,MATCH(0,IF('sales(1)'!$B$3:$B$53<>"",COUNTIF($A$1:A16,'sales(1)'!$B$3:$B$53),1),0))),"") ->  | B17: =IFERROR(IF(ISERROR(INDEX('sales(1)'!$C$3:$C$53,MATCH(0,IF('sales(1)'!$C$3:$C$53<>"",COUNTIF($B$1:B16,'sales(1)'!$C$3:$C$53),1),0))),INDEX('Return)1('!$C$3:$C$12,MATCH(0,IF('Return)1('!$C$3:$C$12<>"",COUNTIF($B$1:B16,'Return)1('!$C$3:$C$12),1),0)),INDEX('sales(1)'!$C$3:$C$53,MATCH(0,IF('sales(1)'!$C$3:$C$53<>"",COUNTIF($B$1:B16,'sales(1)'!$C$3:$C$53),1),0))),"") -> 115 | C17: =IFERROR(IF(ISERROR(INDEX('sales(1)'!$G$3:$G$53,MATCH(0,IF('sales(1)'!$G$3:$G$53<>"",COUNTIF($C$1:C16,'sales(1)'!$G$3:$G$53),1),0))),INDEX('Return)1('!$G$3:$G$12,MATCH(0,IF('Return)1('!$G$3:$G$12<>"",COUNTIF($C$1:C16,'Return)1('!$G$3:$G$12),1),0)),INDEX('sales(1)'!$G$3:$G$53,MATCH(0,IF('sales(1)'!$G$3:$G$53<>"",COUNTIF($C$1:C16,'sales(1)'!$G$3:$G$53),1),0))),"") ->  | D17: =IFERROR(IF(ISERROR(INDEX('sales(1)'!$H$3:$H$53,MATCH(0,IF('sales(1)'!$H$3:$H$53<>"",COUNTIF($D$1:D16,'sales(1)'!$H$3:$H$53),1),0))),INDEX('Return)1('!$H$3:$H$12,MATCH(0,IF('Return)1('!$H$3:$H$12<>"",COUNTIF($D$1:D16,'Return)1('!$H$3:$H$12),1),0)),INDEX('sales(1)'!$H$3:$H$53,MATCH(0,IF('sales(1)'!$H$3:$H$53<>"",COUNTIF($D$1:D16,'sales(1)'!$H$3:$H$53),1),0))),"") -> 
A18: =IFERROR(IF(ISERROR(INDEX('sales(1)'!$B$3:$B$53,MATCH(0,IF('sales(1)'!$B$3:$B$53<>"",COUNTIF($A$1:A17,'sales(1)'!$B$3:$B$53),1),0))),INDEX('Return)1('!$B$3:$B$12,MATCH(0,IF('Return)1('!$B$3:$B$12<>"",COUNTIF($A$1:A17,'Return)1('!$B$3:$B$12),1),0)),INDEX('sales(1)'!$B$3:$B$53,MATCH(0,IF('sales(1)'!$B$3:$B$53<>"",COUNTIF($A$1:A17,'sales(1)'!$B$3:$B$53),1),0))),"") ->  | B18: =IFERROR(IF(ISERROR(INDEX('sales(1)'!$C$3:$C$53,MATCH(0,IF('sales(1)'!$C$3:$C$53<>"",COUNTIF($B$1:B17,'sales(1)'!$C$3:$C$53),1),0))),INDEX('Return)1('!$C$3:$C$12,MATCH(0,IF('Return)1('!$C$3:$C$12<>"",COUNTIF($B$1:B17,'Return)1('!$C$3:$C$12),1),0)),INDEX('sales(1)'!$C$3:$C$53,MATCH(0,IF('sales(1)'!$C$3:$C$53<>"",COUNTIF($B$1:B17,'sales(1)'!$C$3:$C$53),1),0))),"") -> 116 | C18: =IFERROR(IF(ISERROR(INDEX('sales(1)'!$G$3:$G$53,MATCH(0,IF('sales(1)'!$G$3:$G$53<>"",COUNTIF($C$1:C17,'sales(1)'!$G$3:$G$53),1),0))),INDEX('Return)1('!$G$3:$G$12,MATCH(0,IF('Return)1('!$G$3:$G$12<>"",COUNTIF($C$1:C17,'Return)1('!$G$3:$G$12),1),0)),INDEX('sales(1)'!$G$3:$G$53,MATCH(0,IF('sales(1)'!$G$3:$G$53<>"",COUNTIF($C$1:C17,'sales(1)'!$G$3:$G$53),1),0))),"") ->  | D18: =IFERROR(IF(ISERROR(INDEX('sales(1)'!$H$3:$H$53,MATCH(0,IF('sales(1)'!$H$3:$H$53<>"",COUNTIF($D$1:D17,'sales(1)'!$H$3:$H$53),1),0))),INDEX('Return)1('!$H$3:$H$12,MATCH(0,IF('Return)1('!$H$3:$H$12<>"",COUNTIF($D$1:D17,'Return)1('!$H$3:$H$12),1),0)),INDEX('sales(1)'!$H$3:$H$53,MATCH(0,IF('sales(1)'!$H$3:$H$53<>"",COUNTIF($D$1:D17,'sales(1)'!$H$3:$H$53),1),0))),"") -> 
A19: =IFERROR(IF(ISERROR(INDEX('sales(1)'!$B$3:$B$53,MATCH(0,IF('sales(1)'!$B$3:$B$53<>"",COUNTIF($A$1:A18,'sales(1)'!$B$3:$B$53),1),0))),INDEX('Return)1('!$B$3:$B$12,MATCH(0,IF('Return)1('!$B$3:$B$12<>"",COUNTIF($A$1:A18,'Return)1('!$B$3:$B$12),1),0)),INDEX('sales(1)'!$B$3:$B$53,MATCH(0,IF('sales(1)'!$B$3:$B$53<>"",COUNTIF($A$1:A18,'sales(1)'!$B$3:$B$53),1),0))),"") ->  | B19: =IFERROR(IF(ISERROR(INDEX('sales(1)'!$C$3:$C$53,MATCH(0,IF('sales(1)'!$C$3:$C$53<>"",COUNTIF($B$1:B18,'sales(1)'!$C$3:$C$53),1),0))),INDEX('Return)1('!$C$3:$C$12,MATCH(0,IF('Return)1('!$C$3:$C$12<>"",COUNTIF($B$1:B18,'Return)1('!$C$3:$C$12),1),0)),INDEX('sales(1)'!$C$3:$C$53,MATCH(0,IF('sales(1)'!$C$3:$C$53<>"",COUNTIF($B$1:B18,'sales(1)'!$C$3:$C$53),1),0))),"") -> 117 | C19: =IFERROR(IF(ISERROR(INDEX('sales(1)'!$G$3:$G$53,MATCH(0,IF('sales(1)'!$G$3:$G$53<>"",COUNTIF($C$1:C18,'sales(1)'!$G$3:$G$53),1),0))),INDEX('Return)1('!$G$3:$G$12,MATCH(0,IF('Return)1('!$G$3:$G$12<>"",COUNTIF($C$1:C18,'Return)1('!$G$3:$G$12),1),0)),INDEX('sales(1)'!$G$3:$G$53,MATCH(0,IF('sales(1)'!$G$3:$G$53<>"",COUNTIF($C$1:C18,'sales(1)'!$G$3:$G$53),1),0))),"") ->  | D19: =IFERROR(IF(ISERROR(INDEX('sales(1)'!$H$3:$H$53,MATCH(0,IF('sales(1)'!$H$3:$H$53<>"",COUNTIF($D$1:D18,'sales(1)'!$H$3:$H$53),1),0))),INDEX('Return)1('!$H$3:$H$12,MATCH(0,IF('Return)1('!$H$3:$H$12<>"",COUNTIF($D$1:D18,'Return)1('!$H$3:$H$12),1),0)),INDEX('sales(1)'!$H$3:$H$53,MATCH(0,IF('sales(1)'!$H$3:$H$53<>"",COUNTIF($D$1:D18,'sales(1)'!$H$3:$H$53),1),0))),"") -> 
A20: =IFERROR(IF(ISERROR(INDEX('sales(1)'!$B$3:$B$53,MATCH(0,IF('sales(1)'!$B$3:$B$53<>"",COUNTIF($A$1:A19,'sales(1)'!$B$3:$B$53),1),0))),INDEX('Return)1('!$B$3:$B$12,MATCH(0,IF('Return)1('!$B$3:$B$12<>"",COUNTIF($A$1:A19,'Return)1('!$B$3:$B$12),1),0)),INDEX('sales(1)'!$B$3:$B$53,MATCH(0,IF('sales(1)'!$B$3:$B$53<>"",COUNTIF($A$1:A19,'sales(1)'!$B$3:$B$53),1),0))),"") ->  | B20: =IFERROR(IF(ISERROR(INDEX('sales(1)'!$C$3:$C$53,MATCH(0,IF('sales(1)'!$C$3:$C$53<>"",COUNTIF($B$1:B19,'sales(1)'!$C$3:$C$53),1),0))),INDEX('Return)1('!$C$3:$C$12,MATCH(0,IF('Return)1('!$C$3:$C$12<>"",COUNTIF($B$1:B19,'Return)1('!$C$3:$C$12),1),0)),INDEX('sales(1)'!$C$3:$C$53,MATCH(0,IF('sales(1)'!$C$3:$C$53<>"",COUNTIF($B$1:B19,'sales(1)'!$C$3:$C$53),1),0))),"") -> 118 | C20: =IFERROR(IF(ISERROR(INDEX('sales(1)'!$G$3:$G$53,MATCH(0,IF('sales(1)'!$G$3:$G$53<>"",COUNTIF($C$1:C19,'sales(1)'!$G$3:$G$53),1),0))),INDEX('Return)1('!$G$3:$G$12,MATCH(0,IF('Return)1('!$G$3:$G$12<>"",COUNTIF($C$1:C19,'Return)1('!$G$3:$G$12),1),0)),INDEX('sales(1)'!$G$3:$G$53,MATCH(0,IF('sales(1)'!$G$3:$G$53<>"",COUNTIF($C$1:C19,'sales(1)'!$G$3:$G$53),1),0))),"") ->  | D20: =IFERROR(IF(ISERROR(INDEX('sales(1)'!$H$3:$H$53,MATCH(0,IF('sales(1)'!$H$3:$H$53<>"",COUNTIF($D$1:D19,'sales(1)'!$H$3:$H$53),1),0))),INDEX('Return)1('!$H$3:$H$12,MATCH(0,IF('Return)1('!$H$3:$H$12<>"",COUNTIF($D$1:D19,'Return)1('!$H$3:$H$12),1),0)),INDEX('sales(1)'!$H$3:$H$53,MATCH(0,IF('sales(1)'!$H$3:$H$53<>"",COUNTIF($D$1:D19,'sales(1)'!$H$3:$H$53),1),0))),"") -> 
A21: =IFERROR(IF(ISERROR(INDEX('sales(1)'!$B$3:$B$53,MATCH(0,IF('sales(1)'!$B$3:$B$53<>"",COUNTIF($A$1:A20,'sales(1)'!$B$3:$B$53),1),0))),INDEX('Return)1('!$B$3:$B$12,MATCH(0,IF('Return)1('!$B$3:$B$12<>"",COUNTIF($A$1:A20,'Return)1('!$B$3:$B$12),1),0)),INDEX('sales(1)'!$B$3:$B$53,MATCH(0,IF('sales(1)'!$B$3:$B$53<>"",COUNTIF($A$1:A20,'sales(1)'!$B$3:$B$53),1),0))),"") ->  | B21: =IFERROR(IF(ISERROR(INDEX('sales(1)'!$C$3:$C$53,MATCH(0,IF('sales(1)'!$C$3:$C$53<>"",COUNTIF($B$1:B20,'sales(1)'!$C$3:$C$53),1),0))),INDEX('Return)1('!$C$3:$C$12,MATCH(0,IF('Return)1('!$C$3:$C$12<>"",COUNTIF($B$1:B20,'Return)1('!$C$3:$C$12),1),0)),INDEX('sales(1)'!$C$3:$C$53,MATCH(0,IF('sales(1)'!$C$3:$C$53<>"",COUNTIF($B$1:B20,'sales(1)'!$C$3:$C$53),1),0))),"") -> 119 | C21: =IFERROR(IF(ISERROR(INDEX('sales(1)'!$G$3:$G$53,MATCH(0,IF('sales(1)'!$G$3:$G$53<>"",COUNTIF($C$1:C20,'sales(1)'!$G$3:$G$53),1),0))),INDEX('Return)1('!$G$3:$G$12,MATCH(0,IF('Return)1('!$G$3:$G$12<>"",COUNTIF($C$1:C20,'Return)1('!$G$3:$G$12),1),0)),INDEX('sales(1)'!$G$3:$G$53,MATCH(0,IF('sales(1)'!$G$3:$G$53<>"",COUNTIF($C$1:C20,'sales(1)'!$G$3:$G$53),1),0))),"") ->  | D21: =IFERROR(IF(ISERROR(INDEX('sales(1)'!$H$3:$H$53,MATCH(0,IF('sales(1)'!$H$3:$H$53<>"",COUNTIF($D$1:D20,'sales(1)'!$H$3:$H$53),1),0))),INDEX('Return)1('!$H$3:$H$12,MATCH(0,IF('Return)1('!$H$3:$H$12<>"",COUNTIF($D$1:D20,'Return)1('!$H$3:$H$12),1),0)),INDEX('sales(1)'!$H$3:$H$53,MATCH(0,IF('sales(1)'!$H$3:$H$53<>"",COUNTIF($D$1:D20,'sales(1)'!$H$3:$H$53),1),0))),"") -> 
A22: =IFERROR(IF(ISERROR(INDEX('sales(1)'!$B$3:$B$53,MATCH(0,IF('sales(1)'!$B$3:$B$53<>"",COUNTIF($A$1:A21,'sales(1)'!$B$3:$B$53),1),0))),INDEX('Return)1('!$B$3:$B$12,MATCH(0,IF('Return)1('!$B$3:$B$12<>"",COUNTIF($A$1:A21,'Return)1('!$B$3:$B$12),1),0)),INDEX('sales(1)'!$B$3:$B$53,MATCH(0,IF('sales(1)'!$B$3:$B$53<>"",COUNTIF($A$1:A21,'sales(1)'!$B$3:$B$53),1),0))),"") ->  | B22: =IFERROR(IF(ISERROR(INDEX('sales(1)'!$C$3:$C$53,MATCH(0,IF('sales(1)'!$C$3:$C$53<>"",COUNTIF($B$1:B21,'sales(1)'!$C$3:$C$53),1),0))),INDEX('Return)1('!$C$3:$C$12,MATCH(0,IF('Return)1('!$C$3:$C$12<>"",COUNTIF($B$1:B21,'Return)1('!$C$3:$C$12),1),0)),INDEX('sales(1)'!$C$3:$C$53,MATCH(0,IF('sales(1)'!$C$3:$C$53<>"",COUNTIF($B$1:B21,'sales(1)'!$C$3:$C$53),1),0))),"") -> 120 | C22: =IFERROR(IF(ISERROR(INDEX('sales(1)'!$G$3:$G$53,MATCH(0,IF('sales(1)'!$G$3:$G$53<>"",COUNTIF($C$1:C21,'sales(1)'!$G$3:$G$53),1),0))),INDEX('Return)1('!$G$3:$G$12,MATCH(0,IF('Return)1('!$G$3:$G$12<>"",COUNTIF($C$1:C21,'Return)1('!$G$3:$G$12),1),0)),INDEX('sales(1)'!$G$3:$G$53,MATCH(0,IF('sales(1)'!$G$3:$G$53<>"",COUNTIF($C$1:C21,'sales(1)'!$G$3:$G$53),1),0))),"") ->  | D22: =IFERROR(IF(ISERROR(INDEX('sales(1)'!$H$3:$H$53,MATCH(0,IF('sales(1)'!$H$3:$H$53<>"",COUNTIF($D$1:D21,'sales(1)'!$H$3:$H$53),1),0))),INDEX('Return)1('!$H$3:$H$12,MATCH(0,IF('Return)1('!$H$3:$H$12<>"",COUNTIF($D$1:D21,'Return)1('!$H$3:$H$12),1),0)),INDEX('sales(1)'!$H$3:$H$53,MATCH(0,IF('sales(1)'!$H$3:$H$53<>"",COUNTIF($D$1:D21,'sales(1)'!$H$3:$H$53),1),0))),"") -> 
A23: =IFERROR(IF(ISERROR(INDEX('sales(1)'!$B$3:$B$53,MATCH(0,IF('sales(1)'!$B$3:$B$53<>"",COUNTIF($A$1:A22,'sales(1)'!$B$3:$B$53),1),0))),INDEX('Return)1('!$B$3:$B$12,MATCH(0,IF('Return)1('!$B$3:$B$12<>"",COUNTIF($A$1:A22,'Return)1('!$B$3:$B$12),1),0)),INDEX('sales(1)'!$B$3:$B$53,MATCH(0,IF('sales(1)'!$B$3:$B$53<>"",COUNTIF($A$1:A22,'sales(1)'!$B$3:$B$53),1),0))),"") ->  | B23: =IFERROR(IF(ISERROR(INDEX('sales(1)'!$C$3:$C$53,MATCH(0,IF('sales(1)'!$C$3:$C$53<>"",COUNTIF($B$1:B22,'sales(1)'!$C$3:$C$53),1),0))),INDEX('Return)1('!$C$3:$C$12,MATCH(0,IF('Return)1('!$C$3:$C$12<>"",COUNTIF($B$1:B22,'Return)1('!$C$3:$C$12),1),0)),INDEX('sales(1)'!$C$3:$C$53,MATCH(0,IF('sales(1)'!$C$3:$C$53<>"",COUNTIF($B$1:B22,'sales(1)'!$C$3:$C$53),1),0))),"") -> 121 | C23: =IFERROR(IF(ISERROR(INDEX('sales(1)'!$G$3:$G$53,MATCH(0,IF('sales(1)'!$G$3:$G$53<>"",COUNTIF($C$1:C22,'sales(1)'!$G$3:$G$53),1),0))),INDEX('Return)1('!$G$3:$G$12,MATCH(0,IF('Return)1('!$G$3:$G$12<>"",COUNTIF($C$1:C22,'Return)1('!$G$3:$G$12),1),0)),INDEX('sales(1)'!$G$3:$G$53,MATCH(0,IF('sales(1)'!$G$3:$G$53<>"",COUNTIF($C$1:C22,'sales(1)'!$G$3:$G$53),1),0))),"") ->  | D23: =IFERROR(IF(ISERROR(INDEX('sales(1)'!$H$3:$H$53,MATCH(0,IF('sales(1)'!$H$3:$H$53<>"",COUNTIF($D$1:D22,'sales(1)'!$H$3:$H$53),1),0))),INDEX('Return)1('!$H$3:$H$12,MATCH(0,IF('Return)1('!$H$3:$H$12<>"",COUNTIF($D$1:D22,'Return)1('!$H$3:$H$12),1),0)),INDEX('sales(1)'!$H$3:$H$53,MATCH(0,IF('sales(1)'!$H$3:$H$53<>"",COUNTIF($D$1:D22,'sales(1)'!$H$3:$H$53),1),0))),"") -> 
A24: =IFERROR(IF(ISERROR(INDEX('sales(1)'!$B$3:$B$53,MATCH(0,IF('sales(1)'!$B$3:$B$53<>"",COUNTIF($A$1:A23,'sales(1)'!$B$3:$B$53),1),0))),INDEX('Return)1('!$B$3:$B$12,MATCH(0,IF('Return)1('!$B$3:$B$12<>"",COUNTIF($A$1:A23,'Return)1('!$B$3:$B$12),1),0)),INDEX('sales(1)'!$B$3:$B$53,MATCH(0,IF('sales(1)'!$B$3:$B$53<>"",COUNTIF($A$1:A23,'sales(1)'!$B$3:$B$53),1),0))),"") ->  | B24: =IFERROR(IF(ISERROR(INDEX('sales(1)'!$C$3:$C$53,MATCH(0,IF('sales(1)'!$C$3:$C$53<>"",COUNTIF($B$1:B23,'sales(1)'!$C$3:$C$53),1),0))),INDEX('Return)1('!$C$3:$C$12,MATCH(0,IF('Return)1('!$C$3:$C$12<>"",COUNTIF($B$1:B23,'Return)1('!$C$3:$C$12),1),0)),INDEX('sales(1)'!$C$3:$C$53,MATCH(0,IF('sales(1)'!$C$3:$C$53<>"",COUNTIF($B$1:B23,'sales(1)'!$C$3:$C$53),1),0))),"") -> 122 | C24: =IFERROR(IF(ISERROR(INDEX('sales(1)'!$G$3:$G$53,MATCH(0,IF('sales(1)'!$G$3:$G$53<>"",COUNTIF($C$1:C23,'sales(1)'!$G$3:$G$53),1),0))),INDEX('Return)1('!$G$3:$G$12,MATCH(0,IF('Return)1('!$G$3:$G$12<>"",COUNTIF($C$1:C23,'Return)1('!$G$3:$G$12),1),0)),INDEX('sales(1)'!$G$3:$G$53,MATCH(0,IF('sales(1)'!$G$3:$G$53<>"",COUNTIF($C$1:C23,'sales(1)'!$G$3:$G$53),1),0))),"") ->  | D24: =IFERROR(IF(ISERROR(INDEX('sales(1)'!$H$3:$H$53,MATCH(0,IF('sales(1)'!$H$3:$H$53<>"",COUNTIF($D$1:D23,'sales(1)'!$H$3:$H$53),1),0))),INDEX('Return)1('!$H$3:$H$12,MATCH(0,IF('Return)1('!$H$3:$H$12<>"",COUNTIF($D$1:D23,'Return)1('!$H$3:$H$12),1),0)),INDEX('sales(1)'!$H$3:$H$53,MATCH(0,IF('sales(1)'!$H$3:$H$53<>"",COUNTIF($D$1:D23,'sales(1)'!$H$3:$H$53),1),0))),"") -> 
A25: =IFERROR(IF(ISERROR(INDEX('sales(1)'!$B$3:$B$53,MATCH(0,IF('sales(1)'!$B$3:$B$53<>"",COUNTIF($A$1:A24,'sales(1)'!$B$3:$B$53),1),0))),INDEX('Return)1('!$B$3:$B$12,MATCH(0,IF('Return)1('!$B$3:$B$12<>"",COUNTIF($A$1:A24,'Return)1('!$B$3:$B$12),1),0)),INDEX('sales(1)'!$B$3:$B$53,MATCH(0,IF('sales(1)'!$B$3:$B$53<>"",COUNTIF($A$1:A24,'sales(1)'!$B$3:$B$53),1),0))),"") ->  | B25: =IFERROR(IF(ISERROR(INDEX('sales(1)'!$C$3:$C$53,MATCH(0,IF('sales(1)'!$C$3:$C$53<>"",COUNTIF($B$1:B24,'sales(1)'!$C$3:$C$53),1),0))),INDEX('Return)1('!$C$3:$C$12,MATCH(0,IF('Return)1('!$C$3:$C$12<>"",COUNTIF($B$1:B24,'Return)1('!$C$3:$C$12),1),0)),INDEX('sales(1)'!$C$3:$C$53,MATCH(0,IF('sales(1)'!$C$3:$C$53<>"",COUNTIF($B$1:B24,'sales(1)'!$C$3:$C$53),1),0))),"") -> 123 | C25: =IFERROR(IF(ISERROR(INDEX('sales(1)'!$G$3:$G$53,MATCH(0,IF('sales(1)'!$G$3:$G$53<>"",COUNTIF($C$1:C24,'sales(1)'!$G$3:$G$53),1),0))),INDEX('Return)1('!$G$3:$G$12,MATCH(0,IF('Return)1('!$G$3:$G$12<>"",COUNTIF($C$1:C24,'Return)1('!$G$3:$G$12),1),0)),INDEX('sales(1)'!$G$3:$G$53,MATCH(0,IF('sales(1)'!$G$3:$G$53<>"",COUNTIF($C$1:C24,'sales(1)'!$G$3:$G$53),1),0))),"") ->  | D25: =IFERROR(IF(ISERROR(INDEX('sales(1)'!$H$3:$H$53,MATCH(0,IF('sales(1)'!$H$3:$H$53<>"",COUNTIF($D$1:D24,'sales(1)'!$H$3:$H$53),1),0))),INDEX('Return)1('!$H$3:$H$12,MATCH(0,IF('Return)1('!$H$3:$H$12<>"",COUNTIF($D$1:D24,'Return)1('!$H$3:$H$12),1),0)),INDEX('sales(1)'!$H$3:$H$53,MATCH(0,IF('sales(1)'!$H$3:$H$53<>"",COUNTIF($D$1:D24,'sales(1)'!$H$3:$H$53),1),0))),"") -> 
A26: =IFERROR(IF(ISERROR(INDEX('sales(1)'!$B$3:$B$53,MATCH(0,IF('sales(1)'!$B$3:$B$53<>"",COUNTIF($A$1:A25,'sales(1)'!$B$3:$B$53),1),0))),INDEX('Return)1('!$B$3:$B$12,MATCH(0,IF('Return)1('!$B$3:$B$12<>"",COUNTIF($A$1:A25,'Return)1('!$B$3:$B$12),1),0)),INDEX('sales(1)'!$B$3:$B$53,MATCH(0,IF('sales(1)'!$B$3:$B$53<>"",COUNTIF($A$1:A25,'sales(1)'!$B$3:$B$53),1),0))),"") ->  | B26: =IFERROR(IF(ISERROR(INDEX('sales(1)'!$C$3:$C$53,MATCH(0,IF('sales(1)'!$C$3:$C$53<>"",COUNTIF($B$1:B25,'sales(1)'!$C$3:$C$53),1),0))),INDEX('Return)1('!$C$3:$C$12,MATCH(0,IF('Return)1('!$C$3:$C$12<>"",COUNTIF($B$1:B25,'Return)1('!$C$3:$C$12),1),0)),INDEX('sales(1)'!$C$3:$C$53,MATCH(0,IF('sales(1)'!$C$3:$C$53<>"",COUNTIF($B$1:B25,'sales(1)'!$C$3:$C$53),1),0))),"") -> 124 | C26: =IFERROR(IF(ISERROR(INDEX('sales(1)'!$G$3:$G$53,MATCH(0,IF('sales(1)'!$G$3:$G$53<>"",COUNTIF($C$1:C25,'sales(1)'!$G$3:$G$53),1),0))),INDEX('Return)1('!$G$3:$G$12,MATCH(0,IF('Return)1('!$G$3:$G$12<>"",COUNTIF($C$1:C25,'Return)1('!$G$3:$G$12),1),0)),INDEX('sales(1)'!$G$3:$G$53,MATCH(0,IF('sales(1)'!$G$3:$G$53<>"",COUNTIF($C$1:C25,'sales(1)'!$G$3:$G$53),1),0))),"") ->  | D26: =IFERROR(IF(ISERROR(INDEX('sales(1)'!$H$3:$H$53,MATCH(0,IF('sales(1)'!$H$3:$H$53<>"",COUNTIF($D$1:D25,'sales(1)'!$H$3:$H$53),1),0))),INDEX('Return)1('!$H$3:$H$12,MATCH(0,IF('Return)1('!$H$3:$H$12<>"",COUNTIF($D$1:D25,'Return)1('!$H$3:$H$12),1),0)),INDEX('sales(1)'!$H$3:$H$53,MATCH(0,IF('sales(1)'!$H$3:$H$53<>"",COUNTIF($D$1:D25,'sales(1)'!$H$3:$H$53),1),0))),"") -> 
A27: =IFERROR(IF(ISERROR(INDEX('sales(1)'!$B$3:$B$53,MATCH(0,IF('sales(1)'!$B$3:$B$53<>"",COUNTIF($A$1:A26,'sales(1)'!$B$3:$B$53),1),0))),INDEX('Return)1('!$B$3:$B$12,MATCH(0,IF('Return)1('!$B$3:$B$12<>"",COUNTIF($A$1:A26,'Return)1('!$B$3:$B$12),1),0)),INDEX('sales(1)'!$B$3:$B$53,MATCH(0,IF('sales(1)'!$B$3:$B$53<>"",COUNTIF($A$1:A26,'sales(1)'!$B$3:$B$53),1),0))),"") ->  | B27: =IFERROR(IF(ISERROR(INDEX('sales(1)'!$C$3:$C$53,MATCH(0,IF('sales(1)'!$C$3:$C$53<>"",COUNTIF($B$1:B26,'sales(1)'!$C$3:$C$53),1),0))),INDEX('Return)1('!$C$3:$C$12,MATCH(0,IF('Return)1('!$C$3:$C$12<>"",COUNTIF($B$1:B26,'Return)1('!$C$3:$C$12),1),0)),INDEX('sales(1)'!$C$3:$C$53,MATCH(0,IF('sales(1)'!$C$3:$C$53<>"",COUNTIF($B$1:B26,'sales(1)'!$C$3:$C$53),1),0))),"") -> 125 | C27: =IFERROR(IF(ISERROR(INDEX('sales(1)'!$G$3:$G$53,MATCH(0,IF('sales(1)'!$G$3:$G$53<>"",COUNTIF($C$1:C26,'sales(1)'!$G$3:$G$53),1),0))),INDEX('Return)1('!$G$3:$G$12,MATCH(0,IF('Return)1('!$G$3:$G$12<>"",COUNTIF($C$1:C26,'Return)1('!$G$3:$G$12),1),0)),INDEX('sales(1)'!$G$3:$G$53,MATCH(0,IF('sales(1)'!$G$3:$G$53<>"",COUNTIF($C$1:C26,'sales(1)'!$G$3:$G$53),1),0))),"") ->  | D27: =IFERROR(IF(ISERROR(INDEX('sales(1)'!$H$3:$H$53,MATCH(0,IF('sales(1)'!$H$3:$H$53<>"",COUNTIF($D$1:D26,'sales(1)'!$H$3:$H$53),1),0))),INDEX('Return)1('!$H$3:$H$12,MATCH(0,IF('Return)1('!$H$3:$H$12<>"",COUNTIF($D$1:D26,'Return)1('!$H$3:$H$12),1),0)),INDEX('sales(1)'!$H$3:$H$53,MATCH(0,IF('sales(1)'!$H$3:$H$53<>"",COUNTIF($D$1:D26,'sales(1)'!$H$3:$H$53),1),0))),"") -> 
A28: =IFERROR(IF(ISERROR(INDEX('sales(1)'!$B$3:$B$53,MATCH(0,IF('sales(1)'!$B$3:$B$53<>"",COUNTIF($A$1:A27,'sales(1)'!$B$3:$B$53),1),0))),INDEX('Return)1('!$B$3:$B$12,MATCH(0,IF('Return)1('!$B$3:$B$12<>"",COUNTIF($A$1:A27,'Return)1('!$B$3:$B$12),1),0)),INDEX('sales(1)'!$B$3:$B$53,MATCH(0,IF('sales(1)'!$B$3:$B$53<>"",COUNTIF($A$1:A27,'sales(1)'!$B$3:$B$53),1),0))),"") ->  | B28: =IFERROR(IF(ISERROR(INDEX('sales(1)'!$C$3:$C$53,MATCH(0,IF('sales(1)'!$C$3:$C$53<>"",COUNTIF($B$1:B27,'sales(1)'!$C$3:$C$53),1),0))),INDEX('Return)1('!$C$3:$C$12,MATCH(0,IF('Return)1('!$C$3:$C$12<>"",COUNTIF($B$1:B27,'Return)1('!$C$3:$C$12),1),0)),INDEX('sales(1)'!$C$3:$C$53,MATCH(0,IF('sales(1)'!$C$3:$C$53<>"",COUNTIF($B$1:B27,'sales(1)'!$C$3:$C$53),1),0))),"") -> 126 | C28: =IFERROR(IF(ISERROR(INDEX('sales(1)'!$G$3:$G$53,MATCH(0,IF('sales(1)'!$G$3:$G$53<>"",COUNTIF($C$1:C27,'sales(1)'!$G$3:$G$53),1),0))),INDEX('Return)1('!$G$3:$G$12,MATCH(0,IF('Return)1('!$G$3:$G$12<>"",COUNTIF($C$1:C27,'Return)1('!$G$3:$G$12),1),0)),INDEX('sales(1)'!$G$3:$G$53,MATCH(0,IF('sales(1)'!$G$3:$G$53<>"",COUNTIF($C$1:C27,'sales(1)'!$G$3:$G$53),1),0))),"") ->  | D28: =IFERROR(IF(ISERROR(INDEX('sales(1)'!$H$3:$H$53,MATCH(0,IF('sales(1)'!$H$3:$H$53<>"",COUNTIF($D$1:D27,'sales(1)'!$H$3:$H$53),1),0))),INDEX('Return)1('!$H$3:$H$12,MATCH(0,IF('Return)1('!$H$3:$H$12<>"",COUNTIF($D$1:D27,'Return)1('!$H$3:$H$12),1),0)),INDEX('sales(1)'!$H$3:$H$53,MATCH(0,IF('sales(1)'!$H$3:$H$53<>"",COUNTIF($D$1:D27,'sales(1)'!$H$3:$H$53),1),0))),"") -> 
A29: =IFERROR(IF(ISERROR(INDEX('sales(1)'!$B$3:$B$53,MATCH(0,IF('sales(1)'!$B$3:$B$53<>"",COUNTIF($A$1:A28,'sales(1)'!$B$3:$B$53),1),0))),INDEX('Return)1('!$B$3:$B$12,MATCH(0,IF('Return)1('!$B$3:$B$12<>"",COUNTIF($A$1:A28,'Return)1('!$B$3:$B$12),1),0)),INDEX('sales(1)'!$B$3:$B$53,MATCH(0,IF('sales(1)'!$B$3:$B$53<>"",COUNTIF($A$1:A28,'sales(1)'!$B$3:$B$53),1),0))),"") ->  | B29: =IFERROR(IF(ISERROR(INDEX('sales(1)'!$C$3:$C$53,MATCH(0,IF('sales(1)'!$C$3:$C$53<>"",COUNTIF($B$1:B28,'sales(1)'!$C$3:$C$53),1),0))),INDEX('Return)1('!$C$3:$C$12,MATCH(0,IF('Return)1('!$C$3:$C$12<>"",COUNTIF($B$1:B28,'Return)1('!$C$3:$C$12),1),0)),INDEX('sales(1)'!$C$3:$C$53,MATCH(0,IF('sales(1)'!$C$3:$C$53<>"",COUNTIF($B$1:B28,'sales(1)'!$C$3:$C$53),1),0))),"") -> 127 | C29: =IFERROR(IF(ISERROR(INDEX('sales(1)'!$G$3:$G$53,MATCH(0,IF('sales(1)'!$G$3:$G$53<>"",COUNTIF($C$1:C28,'sales(1)'!$G$3:$G$53),1),0))),INDEX('Return)1('!$G$3:$G$12,MATCH(0,IF('Return)1('!$G$3:$G$12<>"",COUNTIF($C$1:C28,'Return)1('!$G$3:$G$12),1),0)),INDEX('sales(1)'!$G$3:$G$53,MATCH(0,IF('sales(1)'!$G$3:$G$53<>"",COUNTIF($C$1:C28,'sales(1)'!$G$3:$G$53),1),0))),"") ->  | D29: =IFERROR(IF(ISERROR(INDEX('sales(1)'!$H$3:$H$53,MATCH(0,IF('sales(1)'!$H$3:$H$53<>"",COUNTIF($D$1:D28,'sales(1)'!$H$3:$H$53),1),0))),INDEX('Return)1('!$H$3:$H$12,MATCH(0,IF('Return)1('!$H$3:$H$12<>"",COUNTIF($D$1:D28,'Return)1('!$H$3:$H$12),1),0)),INDEX('sales(1)'!$H$3:$H$53,MATCH(0,IF('sales(1)'!$H$3:$H$53<>"",COUNTIF($D$1:D28,'sales(1)'!$H$3:$H$53),1),0))),"") -> 
A30: =IFERROR(IF(ISERROR(INDEX('sales(1)'!$B$3:$B$53,MATCH(0,IF('sales(1)'!$B$3:$B$53<>"",COUNTIF($A$1:A29,'sales(1)'!$B$3:$B$53),1),0))),INDEX('Return)1('!$B$3:$B$12,MATCH(0,IF('Return)1('!$B$3:$B$12<>"",COUNTIF($A$1:A29,'Return)1('!$B$3:$B$12),1),0)),INDEX('sales(1)'!$B$3:$B$53,MATCH(0,IF('sales(1)'!$B$3:$B$53<>"",COUNTIF($A$1:A29,'sales(1)'!$B$3:$B$53),1),0))),"") ->  | B30: =IFERROR(IF(ISERROR(INDEX('sales(1)'!$C$3:$C$53,MATCH(0,IF('sales(1)'!$C$3:$C$53<>"",COUNTIF($B$1:B29,'sales(1)'!$C$3:$C$53),1),0))),INDEX('Return)1('!$C$3:$C$12,MATCH(0,IF('Return)1('!$C$3:$C$12<>"",COUNTIF($B$1:B29,'Return)1('!$C$3:$C$12),1),0)),INDEX('sales(1)'!$C$3:$C$53,MATCH(0,IF('sales(1)'!$C$3:$C$53<>"",COUNTIF($B$1:B29,'sales(1)'!$C$3:$C$53),1),0))),"") -> 128 | C30: =IFERROR(IF(ISERROR(INDEX('sales(1)'!$G$3:$G$53,MATCH(0,IF('sales(1)'!$G$3:$G$53<>"",COUNTIF($C$1:C29,'sales(1)'!$G$3:$G$53),1),0))),INDEX('Return)1('!$G$3:$G$12,MATCH(0,IF('Return)1('!$G$3:$G$12<>"",COUNTIF($C$1:C29,'Return)1('!$G$3:$G$12),1),0)),INDEX('sales(1)'!$G$3:$G$53,MATCH(0,IF('sales(1)'!$G$3:$G$53<>"",COUNTIF($C$1:C29,'sales(1)'!$G$3:$G$53),1),0))),"") ->  | D30: =IFERROR(IF(ISERROR(INDEX('sales(1)'!$H$3:$H$53,MATCH(0,IF('sales(1)'!$H$3:$H$53<>"",COUNTIF($D$1:D29,'sales(1)'!$H$3:$H$53),1),0))),INDEX('Return)1('!$H$3:$H$12,MATCH(0,IF('Return)1('!$H$3:$H$12<>"",COUNTIF($D$1:D29,'Return)1('!$H$3:$H$12),1),0)),INDEX('sales(1)'!$H$3:$H$53,MATCH(0,IF('sales(1)'!$H$3:$H$53<>"",COUNTIF($D$1:D29,'sales(1)'!$H$3:$H$53),1),0))),"") -> 
A31: =IFERROR(IF(ISERROR(INDEX('sales(1)'!$B$3:$B$53,MATCH(0,IF('sales(1)'!$B$3:$B$53<>"",COUNTIF($A$1:A30,'sales(1)'!$B$3:$B$53),1),0))),INDEX('Return)1('!$B$3:$B$12,MATCH(0,IF('Return)1('!$B$3:$B$12<>"",COUNTIF($A$1:A30,'Return)1('!$B$3:$B$12),1),0)),INDEX('sales(1)'!$B$3:$B$53,MATCH(0,IF('sales(1)'!$B$3:$B$53<>"",COUNTIF($A$1:A30,'sales(1)'!$B$3:$B$53),1),0))),"") ->  | B31: =IFERROR(IF(ISERROR(INDEX('sales(1)'!$C$3:$C$53,MATCH(0,IF('sales(1)'!$C$3:$C$53<>"",COUNTIF($B$1:B30,'sales(1)'!$C$3:$C$53),1),0))),INDEX('Return)1('!$C$3:$C$12,MATCH(0,IF('Return)1('!$C$3:$C$12<>"",COUNTIF($B$1:B30,'Return)1('!$C$3:$C$12),1),0)),INDEX('sales(1)'!$C$3:$C$53,MATCH(0,IF('sales(1)'!$C$3:$C$53<>"",COUNTIF($B$1:B30,'sales(1)'!$C$3:$C$53),1),0))),"") -> 129 | C31: =IFERROR(IF(ISERROR(INDEX('sales(1)'!$G$3:$G$53,MATCH(0,IF('sales(1)'!$G$3:$G$53<>"",COUNTIF($C$1:C30,'sales(1)'!$G$3:$G$53),1),0))),INDEX('Return)1('!$G$3:$G$12,MATCH(0,IF('Return)1('!$G$3:$G$12<>"",COUNTIF($C$1:C30,'Return)1('!$G$3:$G$12),1),0)),INDEX('sales(1)'!$G$3:$G$53,MATCH(0,IF('sales(1)'!$G$3:$G$53<>"",COUNTIF($C$1:C30,'sales(1)'!$G$3:$G$53),1),0))),"") ->  | D31: =IFERROR(IF(ISERROR(INDEX('sales(1)'!$H$3:$H$53,MATCH(0,IF('sales(1)'!$H$3:$H$53<>"",COUNTIF($D$1:D30,'sales(1)'!$H$3:$H$53),1),0))),INDEX('Return)1('!$H$3:$H$12,MATCH(0,IF('Return)1('!$H$3:$H$12<>"",COUNTIF($D$1:D30,'Return)1('!$H$3:$H$12),1),0)),INDEX('sales(1)'!$H$3:$H$53,MATCH(0,IF('sales(1)'!$H$3:$H$53<>"",COUNTIF($D$1:D30,'sales(1)'!$H$3:$H$53),1),0))),"") -> 
A32: =IFERROR(IF(ISERROR(INDEX('sales(1)'!$B$3:$B$53,MATCH(0,IF('sales(1)'!$B$3:$B$53<>"",COUNTIF($A$1:A31,'sales(1)'!$B$3:$B$53),1),0))),INDEX('Return)1('!$B$3:$B$12,MATCH(0,IF('Return)1('!$B$3:$B$12<>"",COUNTIF($A$1:A31,'Return)1('!$B$3:$B$12),1),0)),INDEX('sales(1)'!$B$3:$B$53,MATCH(0,IF('sales(1)'!$B$3:$B$53<>"",COUNTIF($A$1:A31,'sales(1)'!$B$3:$B$53),1),0))),"") ->  | B32: =IFERROR(IF(ISERROR(INDEX('sales(1)'!$C$3:$C$53,MATCH(0,IF('sales(1)'!$C$3:$C$53<>"",COUNTIF($B$1:B31,'sales(1)'!$C$3:$C$53),1),0))),INDEX('Return)1('!$C$3:$C$12,MATCH(0,IF('Return)1('!$C$3:$C$12<>"",COUNTIF($B$1:B31,'Return)1('!$C$3:$C$12),1),0)),INDEX('sales(1)'!$C$3:$C$53,MATCH(0,IF('sales(1)'!$C$3:$C$53<>"",COUNTIF($B$1:B31,'sales(1)'!$C$3:$C$53),1),0))),"") -> 130 | C32: =IFERROR(IF(ISERROR(INDEX('sales(1)'!$G$3:$G$53,MATCH(0,IF('sales(1)'!$G$3:$G$53<>"",COUNTIF($C$1:C31,'sales(1)'!$G$3:$G$53),1),0))),INDEX('Return)1('!$G$3:$G$12,MATCH(0,IF('Return)1('!$G$3:$G$12<>"",COUNTIF($C$1:C31,'Return)1('!$G$3:$G$12),1),0)),INDEX('sales(1)'!$G$3:$G$53,MATCH(0,IF('sales(1)'!$G$3:$G$53<>"",COUNTIF($C$1:C31,'sales(1)'!$G$3:$G$53),1),0))),"") ->  | D32: =IFERROR(IF(ISERROR(INDEX('sales(1)'!$H$3:$H$53,MATCH(0,IF('sales(1)'!$H$3:$H$53<>"",COUNTIF($D$1:D31,'sales(1)'!$H$3:$H$53),1),0))),INDEX('Return)1('!$H$3:$H$12,MATCH(0,IF('Return)1('!$H$3:$H$12<>"",COUNTIF($D$1:D31,'Return)1('!$H$3:$H$12),1),0)),INDEX('sales(1)'!$H$3:$H$53,MATCH(0,IF('sales(1)'!$H$3:$H$53<>"",COUNTIF($D$1:D31,'sales(1)'!$H$3:$H$53),1),0))),"") -> 
A33: =IFERROR(IF(ISERROR(INDEX('sales(1)'!$B$3:$B$53,MATCH(0,IF('sales(1)'!$B$3:$B$53<>"",COUNTIF($A$1:A32,'sales(1)'!$B$3:$B$53),1),0))),INDEX('Return)1('!$B$3:$B$12,MATCH(0,IF('Return)1('!$B$3:$B$12<>"",COUNTIF($A$1:A32,'Return)1('!$B$3:$B$12),1),0)),INDEX('sales(1)'!$B$3:$B$53,MATCH(0,IF('sales(1)'!$B$3:$B$53<>"",COUNTIF($A$1:A32,'sales(1)'!$B$3:$B$53),1),0))),"") ->  | B33: =IFERROR(IF(ISERROR(INDEX('sales(1)'!$C$3:$C$53,MATCH(0,IF('sales(1)'!$C$3:$C$53<>"",COUNTIF($B$1:B32,'sales(1)'!$C$3:$C$53),1),0))),INDEX('Return)1('!$C$3:$C$12,MATCH(0,IF('Return)1('!$C$3:$C$12<>"",COUNTIF($B$1:B32,'Return)1('!$C$3:$C$12),1),0)),INDEX('sales(1)'!$C$3:$C$53,MATCH(0,IF('sales(1)'!$C$3:$C$53<>"",COUNTIF($B$1:B32,'sales(1)'!$C$3:$C$53),1),0))),"") -> 131 | C33: =IFERROR(IF(ISERROR(INDEX('sales(1)'!$G$3:$G$53,MATCH(0,IF('sales(1)'!$G$3:$G$53<>"",COUNTIF($C$1:C32,'sales(1)'!$G$3:$G$53),1),0))),INDEX('Return)1('!$G$3:$G$12,MATCH(0,IF('Return)1('!$G$3:$G$12<>"",COUNTIF($C$1:C32,'Return)1('!$G$3:$G$12),1),0)),INDEX('sales(1)'!$G$3:$G$53,MATCH(0,IF('sales(1)'!$G$3:$G$53<>"",COUNTIF($C$1:C32,'sales(1)'!$G$3:$G$53),1),0))),"") ->  | D33: =IFERROR(IF(ISERROR(INDEX('sales(1)'!$H$3:$H$53,MATCH(0,IF('sales(1)'!$H$3:$H$53<>"",COUNTIF($D$1:D32,'sales(1)'!$H$3:$H$53),1),0))),INDEX('Return)1('!$H$3:$H$12,MATCH(0,IF('Return)1('!$H$3:$H$12<>"",COUNTIF($D$1:D32,'Return)1('!$H$3:$H$12),1),0)),INDEX('sales(1)'!$H$3:$H$53,MATCH(0,IF('sales(1)'!$H$3:$H$53<>"",COUNTIF($D$1:D32,'sales(1)'!$H$3:$H$53),1),0))),"") -> 
A34: =IFERROR(IF(ISERROR(INDEX('sales(1)'!$B$3:$B$53,MATCH(0,IF('sales(1)'!$B$3:$B$53<>"",COUNTIF($A$1:A33,'sales(1)'!$B$3:$B$53),1),0))),INDEX('Return)1('!$B$3:$B$12,MATCH(0,IF('Return)1('!$B$3:$B$12<>"",COUNTIF($A$1:A33,'Return)1('!$B$3:$B$12),1),0)),INDEX('sales(1)'!$B$3:$B$53,MATCH(0,IF('sales(1)'!$B$3:$B$53<>"",COUNTIF($A$1:A33,'sales(1)'!$B$3:$B$53),1),0))),"") ->  | B34: =IFERROR(IF(ISERROR(INDEX('sales(1)'!$C$3:$C$53,MATCH(0,IF('sales(1)'!$C$3:$C$53<>"",COUNTIF($B$1:B33,'sales(1)'!$C$3:$C$53),1),0))),INDEX('Return)1('!$C$3:$C$12,MATCH(0,IF('Return)1('!$C$3:$C$12<>"",COUNTIF($B$1:B33,'Return)1('!$C$3:$C$12),1),0)),INDEX('sales(1)'!$C$3:$C$53,MATCH(0,IF('sales(1)'!$C$3:$C$53<>"",COUNTIF($B$1:B33,'sales(1)'!$C$3:$C$53),1),0))),"") -> 132 | C34: =IFERROR(IF(ISERROR(INDEX('sales(1)'!$G$3:$G$53,MATCH(0,IF('sales(1)'!$G$3:$G$53<>"",COUNTIF($C$1:C33,'sales(1)'!$G$3:$G$53),1),0))),INDEX('Return)1('!$G$3:$G$12,MATCH(0,IF('Return)1('!$G$3:$G$12<>"",COUNTIF($C$1:C33,'Return)1('!$G$3:$G$12),1),0)),INDEX('sales(1)'!$G$3:$G$53,MATCH(0,IF('sales(1)'!$G$3:$G$53<>"",COUNTIF($C$1:C33,'sales(1)'!$G$3:$G$53),1),0))),"") ->  | D34: =IFERROR(IF(ISERROR(INDEX('sales(1)'!$H$3:$H$53,MATCH(0,IF('sales(1)'!$H$3:$H$53<>"",COUNTIF($D$1:D33,'sales(1)'!$H$3:$H$53),1),0))),INDEX('Return)1('!$H$3:$H$12,MATCH(0,IF('Return)1('!$H$3:$H$12<>"",COUNTIF($D$1:D33,'Return)1('!$H$3:$H$12),1),0)),INDEX('sales(1)'!$H$3:$H$53,MATCH(0,IF('sales(1)'!$H$3:$H$53<>"",COUNTIF($D$1:D33,'sales(1)'!$H$3:$H$53),1),0))),"") -> 
A35: =IFERROR(IF(ISERROR(INDEX('sales(1)'!$B$3:$B$53,MATCH(0,IF('sales(1)'!$B$3:$B$53<>"",COUNTIF($A$1:A34,'sales(1)'!$B$3:$B$53),1),0))),INDEX('Return)1('!$B$3:$B$12,MATCH(0,IF('Return)1('!$B$3:$B$12<>"",COUNTIF($A$1:A34,'Return)1('!$B$3:$B$12),1),0)),INDEX('sales(1)'!$B$3:$B$53,MATCH(0,IF('sales(1)'!$B$3:$B$53<>"",COUNTIF($A$1:A34,'sales(1)'!$B$3:$B$53),1),0))),"") ->  | B35: =IFERROR(IF(ISERROR(INDEX('sales(1)'!$C$3:$C$53,MATCH(0,IF('sales(1)'!$C$3:$C$53<>"",COUNTIF($B$1:B34,'sales(1)'!$C$3:$C$53),1),0))),INDEX('Return)1('!$C$3:$C$12,MATCH(0,IF('Return)1('!$C$3:$C$12<>"",COUNTIF($B$1:B34,'Return)1('!$C$3:$C$12),1),0)),INDEX('sales(1)'!$C$3:$C$53,MATCH(0,IF('sales(1)'!$C$3:$C$53<>"",COUNTIF($B$1:B34,'sales(1)'!$C$3:$C$53),1),0))),"") -> 133 | C35: =IFERROR(IF(ISERROR(INDEX('sales(1)'!$G$3:$G$53,MATCH(0,IF('sales(1)'!$G$3:$G$53<>"",COUNTIF($C$1:C34,'sales(1)'!$G$3:$G$53),1),0))),INDEX('Return)1('!$G$3:$G$12,MATCH(0,IF('Return)1('!$G$3:$G$12<>"",COUNTIF($C$1:C34,'Return)1('!$G$3:$G$12),1),0)),INDEX('sales(1)'!$G$3:$G$53,MATCH(0,IF('sales(1)'!$G$3:$G$53<>"",COUNTIF($C$1:C34,'sales(1)'!$G$3:$G$53),1),0))),"") ->  | D35: =IFERROR(IF(ISERROR(INDEX('sales(1)'!$H$3:$H$53,MATCH(0,IF('sales(1)'!$H$3:$H$53<>"",COUNTIF($D$1:D34,'sales(1)'!$H$3:$H$53),1),0))),INDEX('Return)1('!$H$3:$H$12,MATCH(0,IF('Return)1('!$H$3:$H$12<>"",COUNTIF($D$1:D34,'Return)1('!$H$3:$H$12),1),0)),INDEX('sales(1)'!$H$3:$H$53,MATCH(0,IF('sales(1)'!$H$3:$H$53<>"",COUNTIF($D$1:D34,'sales(1)'!$H$3:$H$53),1),0))),"") -> 
A36: =IFERROR(IF(ISERROR(INDEX('sales(1)'!$B$3:$B$53,MATCH(0,IF('sales(1)'!$B$3:$B$53<>"",COUNTIF($A$1:A35,'sales(1)'!$B$3:$B$53),1),0))),INDEX('Return)1('!$B$3:$B$12,MATCH(0,IF('Return)1('!$B$3:$B$12<>"",COUNTIF($A$1:A35,'Return)1('!$B$3:$B$12),1),0)),INDEX('sales(1)'!$B$3:$B$53,MATCH(0,IF('sales(1)'!$B$3:$B$53<>"",COUNTIF($A$1:A35,'sales(1)'!$B$3:$B$53),1),0))),"") ->  | B36: =IFERROR(IF(ISERROR(INDEX('sales(1)'!$C$3:$C$53,MATCH(0,IF('sales(1)'!$C$3:$C$53<>"",COUNTIF($B$1:B35,'sales(1)'!$C$3:$C$53),1),0))),INDEX('Return)1('!$C$3:$C$12,MATCH(0,IF('Return)1('!$C$3:$C$12<>"",COUNTIF($B$1:B35,'Return)1('!$C$3:$C$12),1),0)),INDEX('sales(1)'!$C$3:$C$53,MATCH(0,IF('sales(1)'!$C$3:$C$53<>"",COUNTIF($B$1:B35,'sales(1)'!$C$3:$C$53),1),0))),"") -> 134 | C36: =IFERROR(IF(ISERROR(INDEX('sales(1)'!$G$3:$G$53,MATCH(0,IF('sales(1)'!$G$3:$G$53<>"",COUNTIF($C$1:C35,'sales(1)'!$G$3:$G$53),1),0))),INDEX('Return)1('!$G$3:$G$12,MATCH(0,IF('Return)1('!$G$3:$G$12<>"",COUNTIF($C$1:C35,'Return)1('!$G$3:$G$12),1),0)),INDEX('sales(1)'!$G$3:$G$53,MATCH(0,IF('sales(1)'!$G$3:$G$53<>"",COUNTIF($C$1:C35,'sales(1)'!$G$3:$G$53),1),0))),"") ->  | D36: =IFERROR(IF(ISERROR(INDEX('sales(1)'!$H$3:$H$53,MATCH(0,IF('sales(1)'!$H$3:$H$53<>"",COUNTIF($D$1:D35,'sales(1)'!$H$3:$H$53),1),0))),INDEX('Return)1('!$H$3:$H$12,MATCH(0,IF('Return)1('!$H$3:$H$12<>"",COUNTIF($D$1:D35,'Return)1('!$H$3:$H$12),1),0)),INDEX('sales(1)'!$H$3:$H$53,MATCH(0,IF('sales(1)'!$H$3:$H$53<>"",COUNTIF($D$1:D35,'sales(1)'!$H$3:$H$53),1),0))),"") -> 
A37: =IFERROR(IF(ISERROR(INDEX('sales(1)'!$B$3:$B$53,MATCH(0,IF('sales(1)'!$B$3:$B$53<>"",COUNTIF($A$1:A36,'sales(1)'!$B$3:$B$53),1),0))),INDEX('Return)1('!$B$3:$B$12,MATCH(0,IF('Return)1('!$B$3:$B$12<>"",COUNTIF($A$1:A36,'Return)1('!$B$3:$B$12),1),0)),INDEX('sales(1)'!$B$3:$B$53,MATCH(0,IF('sales(1)'!$B$3:$B$53<>"",COUNTIF($A$1:A36,'sales(1)'!$B$3:$B$53),1),0))),"") ->  | B37: =IFERROR(IF(ISERROR(INDEX('sales(1)'!$C$3:$C$53,MATCH(0,IF('sales(1)'!$C$3:$C$53<>"",COUNTIF($B$1:B36,'sales(1)'!$C$3:$C$53),1),0))),INDEX('Return)1('!$C$3:$C$12,MATCH(0,IF('Return)1('!$C$3:$C$12<>"",COUNTIF($B$1:B36,'Return)1('!$C$3:$C$12),1),0)),INDEX('sales(1)'!$C$3:$C$53,MATCH(0,IF('sales(1)'!$C$3:$C$53<>"",COUNTIF($B$1:B36,'sales(1)'!$C$3:$C$53),1),0))),"") -> 135 | C37: =IFERROR(IF(ISERROR(INDEX('sales(1)'!$G$3:$G$53,MATCH(0,IF('sales(1)'!$G$3:$G$53<>"",COUNTIF($C$1:C36,'sales(1)'!$G$3:$G$53),1),0))),INDEX('Return)1('!$G$3:$G$12,MATCH(0,IF('Return)1('!$G$3:$G$12<>"",COUNTIF($C$1:C36,'Return)1('!$G$3:$G$12),1),0)),INDEX('sales(1)'!$G$3:$G$53,MATCH(0,IF('sales(1)'!$G$3:$G$53<>"",COUNTIF($C$1:C36,'sales(1)'!$G$3:$G$53),1),0))),"") ->  | D37: =IFERROR(IF(ISERROR(INDEX('sales(1)'!$H$3:$H$53,MATCH(0,IF('sales(1)'!$H$3:$H$53<>"",COUNTIF($D$1:D36,'sales(1)'!$H$3:$H$53),1),0))),INDEX('Return)1('!$H$3:$H$12,MATCH(0,IF('Return)1('!$H$3:$H$12<>"",COUNTIF($D$1:D36,'Return)1('!$H$3:$H$12),1),0)),INDEX('sales(1)'!$H$3:$H$53,MATCH(0,IF('sales(1)'!$H$3:$H$53<>"",COUNTIF($D$1:D36,'sales(1)'!$H$3:$H$53),1),0))),"") -> 
A38: =IFERROR(IF(ISERROR(INDEX('sales(1)'!$B$3:$B$53,MATCH(0,IF('sales(1)'!$B$3:$B$53<>"",COUNTIF($A$1:A37,'sales(1)'!$B$3:$B$53),1),0))),INDEX('Return)1('!$B$3:$B$12,MATCH(0,IF('Return)1('!$B$3:$B$12<>"",COUNTIF($A$1:A37,'Return)1('!$B$3:$B$12),1),0)),INDEX('sales(1)'!$B$3:$B$53,MATCH(0,IF('sales(1)'!$B$3:$B$53<>"",COUNTIF($A$1:A37,'sales(1)'!$B$3:$B$53),1),0))),"") ->  | B38: =IFERROR(IF(ISERROR(INDEX('sales(1)'!$C$3:$C$53,MATCH(0,IF('sales(1)'!$C$3:$C$53<>"",COUNTIF($B$1:B37,'sales(1)'!$C$3:$C$53),1),0))),INDEX('Return)1('!$C$3:$C$12,MATCH(0,IF('Return)1('!$C$3:$C$12<>"",COUNTIF($B$1:B37,'Return)1('!$C$3:$C$12),1),0)),INDEX('sales(1)'!$C$3:$C$53,MATCH(0,IF('sales(1)'!$C$3:$C$53<>"",COUNTIF($B$1:B37,'sales(1)'!$C$3:$C$53),1),0))),"") -> 136 | C38: =IFERROR(IF(ISERROR(INDEX('sales(1)'!$G$3:$G$53,MATCH(0,IF('sales(1)'!$G$3:$G$53<>"",COUNTIF($C$1:C37,'sales(1)'!$G$3:$G$53),1),0))),INDEX('Return)1('!$G$3:$G$12,MATCH(0,IF('Return)1('!$G$3:$G$12<>"",COUNTIF($C$1:C37,'Return)1('!$G$3:$G$12),1),0)),INDEX('sales(1)'!$G$3:$G$53,MATCH(0,IF('sales(1)'!$G$3:$G$53<>"",COUNTIF($C$1:C37,'sales(1)'!$G$3:$G$53),1),0))),"") ->  | D38: =IFERROR(IF(ISERROR(INDEX('sales(1)'!$H$3:$H$53,MATCH(0,IF('sales(1)'!$H$3:$H$53<>"",COUNTIF($D$1:D37,'sales(1)'!$H$3:$H$53),1),0))),INDEX('Return)1('!$H$3:$H$12,MATCH(0,IF('Return)1('!$H$3:$H$12<>"",COUNTIF($D$1:D37,'Return)1('!$H$3:$H$12),1),0)),INDEX('sales(1)'!$H$3:$H$53,MATCH(0,IF('sales(1)'!$H$3:$H$53<>"",COUNTIF($D$1:D37,'sales(1)'!$H$3:$H$53),1),0))),"") -> 
A39: =IFERROR(IF(ISERROR(INDEX('sales(1)'!$B$3:$B$53,MATCH(0,IF('sales(1)'!$B$3:$B$53<>"",COUNTIF($A$1:A38,'sales(1)'!$B$3:$B$53),1),0))),INDEX('Return)1('!$B$3:$B$12,MATCH(0,IF('Return)1('!$B$3:$B$12<>"",COUNTIF($A$1:A38,'Return)1('!$B$3:$B$12),1),0)),INDEX('sales(1)'!$B$3:$B$53,MATCH(0,IF('sales(1)'!$B$3:$B$53<>"",COUNTIF($A$1:A38,'sales(1)'!$B$3:$B$53),1),0))),"") ->  | B39: =IFERROR(IF(ISERROR(INDEX('sales(1)'!$C$3:$C$53,MATCH(0,IF('sales(1)'!$C$3:$C$53<>"",COUNTIF($B$1:B38,'sales(1)'!$C$3:$C$53),1),0))),INDEX('Return)1('!$C$3:$C$12,MATCH(0,IF('Return)1('!$C$3:$C$12<>"",COUNTIF($B$1:B38,'Return)1('!$C$3:$C$12),1),0)),INDEX('sales(1)'!$C$3:$C$53,MATCH(0,IF('sales(1)'!$C$3:$C$53<>"",COUNTIF($B$1:B38,'sales(1)'!$C$3:$C$53),1),0))),"") -> 137 | C39: =IFERROR(IF(ISERROR(INDEX('sales(1)'!$G$3:$G$53,MATCH(0,IF('sales(1)'!$G$3:$G$53<>"",COUNTIF($C$1:C38,'sales(1)'!$G$3:$G$53),1),0))),INDEX('Return)1('!$G$3:$G$12,MATCH(0,IF('Return)1('!$G$3:$G$12<>"",COUNTIF($C$1:C38,'Return)1('!$G$3:$G$12),1),0)),INDEX('sales(1)'!$G$3:$G$53,MATCH(0,IF('sales(1)'!$G$3:$G$53<>"",COUNTIF($C$1:C38,'sales(1)'!$G$3:$G$53),1),0))),"") ->  | D39: =IFERROR(IF(ISERROR(INDEX('sales(1)'!$H$3:$H$53,MATCH(0,IF('sales(1)'!$H$3:$H$53<>"",COUNTIF($D$1:D38,'sales(1)'!$H$3:$H$53),1),0))),INDEX('Return)1('!$H$3:$H$12,MATCH(0,IF('Return)1('!$H$3:$H$12<>"",COUNTIF($D$1:D38,'Return)1('!$H$3:$H$12),1),0)),INDEX('sales(1)'!$H$3:$H$53,MATCH(0,IF('sales(1)'!$H$3:$H$53<>"",COUNTIF($D$1:D38,'sales(1)'!$H$3:$H$53),1),0))),"") -> 
A40: =IFERROR(IF(ISERROR(INDEX('sales(1)'!$B$3:$B$53,MATCH(0,IF('sales(1)'!$B$3:$B$53<>"",COUNTIF($A$1:A39,'sales(1)'!$B$3:$B$53),1),0))),INDEX('Return)1('!$B$3:$B$12,MATCH(0,IF('Return)1('!$B$3:$B$12<>"",COUNTIF($A$1:A39,'Return)1('!$B$3:$B$12),1),0)),INDEX('sales(1)'!$B$3:$B$53,MATCH(0,IF('sales(1)'!$B$3:$B$53<>"",COUNTIF($A$1:A39,'sales(1)'!$B$3:$B$53),1),0))),"") ->  | B40: =IFERROR(IF(ISERROR(INDEX('sales(1)'!$C$3:$C$53,MATCH(0,IF('sales(1)'!$C$3:$C$53<>"",COUNTIF($B$1:B39,'sales(1)'!$C$3:$C$53),1),0))),INDEX('Return)1('!$C$3:$C$12,MATCH(0,IF('Return)1('!$C$3:$C$12<>"",COUNTIF($B$1:B39,'Return)1('!$C$3:$C$12),1),0)),INDEX('sales(1)'!$C$3:$C$53,MATCH(0,IF('sales(1)'!$C$3:$C$53<>"",COUNTIF($B$1:B39,'sales(1)'!$C$3:$C$53),1),0))),"") -> 138 | C40: =IFERROR(IF(ISERROR(INDEX('sales(1)'!$G$3:$G$53,MATCH(0,IF('sales(1)'!$G$3:$G$53<>"",COUNTIF($C$1:C39,'sales(1)'!$G$3:$G$53),1),0))),INDEX('Return)1('!$G$3:$G$12,MATCH(0,IF('Return)1('!$G$3:$G$12<>"",COUNTIF($C$1:C39,'Return)1('!$G$3:$G$12),1),0)),INDEX('sales(1)'!$G$3:$G$53,MATCH(0,IF('sales(1)'!$G$3:$G$53<>"",COUNTIF($C$1:C39,'sales(1)'!$G$3:$G$53),1),0))),"") ->  | D40: =IFERROR(IF(ISERROR(INDEX('sales(1)'!$H$3:$H$53,MATCH(0,IF('sales(1)'!$H$3:$H$53<>"",COUNTIF($D$1:D39,'sales(1)'!$H$3:$H$53),1),0))),INDEX('Return)1('!$H$3:$H$12,MATCH(0,IF('Return)1('!$H$3:$H$12<>"",COUNTIF($D$1:D39,'Return)1('!$H$3:$H$12),1),0)),INDEX('sales(1)'!$H$3:$H$53,MATCH(0,IF('sales(1)'!$H$3:$H$53<>"",COUNTIF($D$1:D39,'sales(1)'!$H$3:$H$53),1),0))),"") -> 
A41: =IFERROR(IF(ISERROR(INDEX('sales(1)'!$B$3:$B$53,MATCH(0,IF('sales(1)'!$B$3:$B$53<>"",COUNTIF($A$1:A40,'sales(1)'!$B$3:$B$53),1),0))),INDEX('Return)1('!$B$3:$B$12,MATCH(0,IF('Return)1('!$B$3:$B$12<>"",COUNTIF($A$1:A40,'Return)1('!$B$3:$B$12),1),0)),INDEX('sales(1)'!$B$3:$B$53,MATCH(0,IF('sales(1)'!$B$3:$B$53<>"",COUNTIF($A$1:A40,'sales(1)'!$B$3:$B$53),1),0))),"") ->  | B41: =IFERROR(IF(ISERROR(INDEX('sales(1)'!$C$3:$C$53,MATCH(0,IF('sales(1)'!$C$3:$C$53<>"",COUNTIF($B$1:B40,'sales(1)'!$C$3:$C$53),1),0))),INDEX('Return)1('!$C$3:$C$12,MATCH(0,IF('Return)1('!$C$3:$C$12<>"",COUNTIF($B$1:B40,'Return)1('!$C$3:$C$12),1),0)),INDEX('sales(1)'!$C$3:$C$53,MATCH(0,IF('sales(1)'!$C$3:$C$53<>"",COUNTIF($B$1:B40,'sales(1)'!$C$3:$C$53),1),0))),"") -> 139 | C41: =IFERROR(IF(ISERROR(INDEX('sales(1)'!$G$3:$G$53,MATCH(0,IF('sales(1)'!$G$3:$G$53<>"",COUNTIF($C$1:C40,'sales(1)'!$G$3:$G$53),1),0))),INDEX('Return)1('!$G$3:$G$12,MATCH(0,IF('Return)1('!$G$3:$G$12<>"",COUNTIF($C$1:C40,'Return)1('!$G$3:$G$12),1),0)),INDEX('sales(1)'!$G$3:$G$53,MATCH(0,IF('sales(1)'!$G$3:$G$53<>"",COUNTIF($C$1:C40,'sales(1)'!$G$3:$G$53),1),0))),"") ->  | D41: =IFERROR(IF(ISERROR(INDEX('sales(1)'!$H$3:$H$53,MATCH(0,IF('sales(1)'!$H$3:$H$53<>"",COUNTIF($D$1:D40,'sales(1)'!$H$3:$H$53),1),0))),INDEX('Return)1('!$H$3:$H$12,MATCH(0,IF('Return)1('!$H$3:$H$12<>"",COUNTIF($D$1:D40,'Return)1('!$H$3:$H$12),1),0)),INDEX('sales(1)'!$H$3:$H$53,MATCH(0,IF('sales(1)'!$H$3:$H$53<>"",COUNTIF($D$1:D40,'sales(1)'!$H$3:$H$53),1),0))),"") -> 
A42: =IFERROR(IF(ISERROR(INDEX('sales(1)'!$B$3:$B$53,MATCH(0,IF('sales(1)'!$B$3:$B$53<>"",COUNTIF($A$1:A41,'sales(1)'!$B$3:$B$53),1),0))),INDEX('Return)1('!$B$3:$B$12,MATCH(0,IF('Return)1('!$B$3:$B$12<>"",COUNTIF($A$1:A41,'Return)1('!$B$3:$B$12),1),0)),INDEX('sales(1)'!$B$3:$B$53,MATCH(0,IF('sales(1)'!$B$3:$B$53<>"",COUNTIF($A$1:A41,'sales(1)'!$B$3:$B$53),1),0))),"") ->  | B42: =IFERROR(IF(ISERROR(INDEX('sales(1)'!$C$3:$C$53,MATCH(0,IF('sales(1)'!$C$3:$C$53<>"",COUNTIF($B$1:B41,'sales(1)'!$C$3:$C$53),1),0))),INDEX('Return)1('!$C$3:$C$12,MATCH(0,IF('Return)1('!$C$3:$C$12<>"",COUNTIF($B$1:B41,'Return)1('!$C$3:$C$12),1),0)),INDEX('sales(1)'!$C$3:$C$53,MATCH(0,IF('sales(1)'!$C$3:$C$53<>"",COUNTIF($B$1:B41,'sales(1)'!$C$3:$C$53),1),0))),"") -> 140 | C42: =IFERROR(IF(ISERROR(INDEX('sales(1)'!$G$3:$G$53,MATCH(0,IF('sales(1)'!$G$3:$G$53<>"",COUNTIF($C$1:C41,'sales(1)'!$G$3:$G$53),1),0))),INDEX('Return)1('!$G$3:$G$12,MATCH(0,IF('Return)1('!$G$3:$G$12<>"",COUNTIF($C$1:C41,'Return)1('!$G$3:$G$12),1),0)),INDEX('sales(1)'!$G$3:$G$53,MATCH(0,IF('sales(1)'!$G$3:$G$53<>"",COUNTIF($C$1:C41,'sales(1)'!$G$3:$G$53),1),0))),"") ->  | D42: =IFERROR(IF(ISERROR(INDEX('sales(1)'!$H$3:$H$53,MATCH(0,IF('sales(1)'!$H$3:$H$53<>"",COUNTIF($D$1:D41,'sales(1)'!$H$3:$H$53),1),0))),INDEX('Return)1('!$H$3:$H$12,MATCH(0,IF('Return)1('!$H$3:$H$12<>"",COUNTIF($D$1:D41,'Return)1('!$H$3:$H$12),1),0)),INDEX('sales(1)'!$H$3:$H$53,MATCH(0,IF('sales(1)'!$H$3:$H$53<>"",COUNTIF($D$1:D41,'sales(1)'!$H$3:$H$53),1),0))),"") -> 
A43: =IFERROR(IF(ISERROR(INDEX('sales(1)'!$B$3:$B$53,MATCH(0,IF('sales(1)'!$B$3:$B$53<>"",COUNTIF($A$1:A42,'sales(1)'!$B$3:$B$53),1),0))),INDEX('Return)1('!$B$3:$B$12,MATCH(0,IF('Return)1('!$B$3:$B$12<>"",COUNTIF($A$1:A42,'Return)1('!$B$3:$B$12),1),0)),INDEX('sales(1)'!$B$3:$B$53,MATCH(0,IF('sales(1)'!$B$3:$B$53<>"",COUNTIF($A$1:A42,'sales(1)'!$B$3:$B$53),1),0))),"") ->  | B43: =IFERROR(IF(ISERROR(INDEX('sales(1)'!$C$3:$C$53,MATCH(0,IF('sales(1)'!$C$3:$C$53<>"",COUNTIF($B$1:B42,'sales(1)'!$C$3:$C$53),1),0))),INDEX('Return)1('!$C$3:$C$12,MATCH(0,IF('Return)1('!$C$3:$C$12<>"",COUNTIF($B$1:B42,'Return)1('!$C$3:$C$12),1),0)),INDEX('sales(1)'!$C$3:$C$53,MATCH(0,IF('sales(1)'!$C$3:$C$53<>"",COUNTIF($B$1:B42,'sales(1)'!$C$3:$C$53),1),0))),"") -> 141 | C43: =IFERROR(IF(ISERROR(INDEX('sales(1)'!$G$3:$G$53,MATCH(0,IF('sales(1)'!$G$3:$G$53<>"",COUNTIF($C$1:C42,'sales(1)'!$G$3:$G$53),1),0))),INDEX('Return)1('!$G$3:$G$12,MATCH(0,IF('Return)1('!$G$3:$G$12<>"",COUNTIF($C$1:C42,'Return)1('!$G$3:$G$12),1),0)),INDEX('sales(1)'!$G$3:$G$53,MATCH(0,IF('sales(1)'!$G$3:$G$53<>"",COUNTIF($C$1:C42,'sales(1)'!$G$3:$G$53),1),0))),"") ->  | D43: =IFERROR(IF(ISERROR(INDEX('sales(1)'!$H$3:$H$53,MATCH(0,IF('sales(1)'!$H$3:$H$53<>"",COUNTIF($D$1:D42,'sales(1)'!$H$3:$H$53),1),0))),INDEX('Return)1('!$H$3:$H$12,MATCH(0,IF('Return)1('!$H$3:$H$12<>"",COUNTIF($D$1:D42,'Return)1('!$H$3:$H$12),1),0)),INDEX('sales(1)'!$H$3:$H$53,MATCH(0,IF('sales(1)'!$H$3:$H$53<>"",COUNTIF($D$1:D42,'sales(1)'!$H$3:$H$53),1),0))),"") -> 
A44: =IFERROR(IF(ISERROR(INDEX('sales(1)'!$B$3:$B$53,MATCH(0,IF('sales(1)'!$B$3:$B$53<>"",COUNTIF($A$1:A43,'sales(1)'!$B$3:$B$53),1),0))),INDEX('Return)1('!$B$3:$B$12,MATCH(0,IF('Return)1('!$B$3:$B$12<>"",COUNTIF($A$1:A43,'Return)1('!$B$3:$B$12),1),0)),INDEX('sales(1)'!$B$3:$B$53,MATCH(0,IF('sales(1)'!$B$3:$B$53<>"",COUNTIF($A$1:A43,'sales(1)'!$B$3:$B$53),1),0))),"") ->  | B44: =IFERROR(IF(ISERROR(INDEX('sales(1)'!$C$3:$C$53,MATCH(0,IF('sales(1)'!$C$3:$C$53<>"",COUNTIF($B$1:B43,'sales(1)'!$C$3:$C$53),1),0))),INDEX('Return)1('!$C$3:$C$12,MATCH(0,IF('Return)1('!$C$3:$C$12<>"",COUNTIF($B$1:B43,'Return)1('!$C$3:$C$12),1),0)),INDEX('sales(1)'!$C$3:$C$53,MATCH(0,IF('sales(1)'!$C$3:$C$53<>"",COUNTIF($B$1:B43,'sales(1)'!$C$3:$C$53),1),0))),"") -> 142 | C44: =IFERROR(IF(ISERROR(INDEX('sales(1)'!$G$3:$G$53,MATCH(0,IF('sales(1)'!$G$3:$G$53<>"",COUNTIF($C$1:C43,'sales(1)'!$G$3:$G$53),1),0))),INDEX('Return)1('!$G$3:$G$12,MATCH(0,IF('Return)1('!$G$3:$G$12<>"",COUNTIF($C$1:C43,'Return)1('!$G$3:$G$12),1),0)),INDEX('sales(1)'!$G$3:$G$53,MATCH(0,IF('sales(1)'!$G$3:$G$53<>"",COUNTIF($C$1:C43,'sales(1)'!$G$3:$G$53),1),0))),"") ->  | D44: =IFERROR(IF(ISERROR(INDEX('sales(1)'!$H$3:$H$53,MATCH(0,IF('sales(1)'!$H$3:$H$53<>"",COUNTIF($D$1:D43,'sales(1)'!$H$3:$H$53),1),0))),INDEX('Return)1('!$H$3:$H$12,MATCH(0,IF('Return)1('!$H$3:$H$12<>"",COUNTIF($D$1:D43,'Return)1('!$H$3:$H$12),1),0)),INDEX('sales(1)'!$H$3:$H$53,MATCH(0,IF('sales(1)'!$H$3:$H$53<>"",COUNTIF($D$1:D43,'sales(1)'!$H$3:$H$53),1),0))),"") -> 
A45: =IFERROR(IF(ISERROR(INDEX('sales(1)'!$B$3:$B$53,MATCH(0,IF('sales(1)'!$B$3:$B$53<>"",COUNTIF($A$1:A44,'sales(1)'!$B$3:$B$53),1),0))),INDEX('Return)1('!$B$3:$B$12,MATCH(0,IF('Return)1('!$B$3:$B$12<>"",COUNTIF($A$1:A44,'Return)1('!$B$3:$B$12),1),0)),INDEX('sales(1)'!$B$3:$B$53,MATCH(0,IF('sales(1)'!$B$3:$B$53<>"",COUNTIF($A$1:A44,'sales(1)'!$B$3:$B$53),1),0))),"") ->  | B45: =IFERROR(IF(ISERROR(INDEX('sales(1)'!$C$3:$C$53,MATCH(0,IF('sales(1)'!$C$3:$C$53<>"",COUNTIF($B$1:B44,'sales(1)'!$C$3:$C$53),1),0))),INDEX('Return)1('!$C$3:$C$12,MATCH(0,IF('Return)1('!$C$3:$C$12<>"",COUNTIF($B$1:B44,'Return)1('!$C$3:$C$12),1),0)),INDEX('sales(1)'!$C$3:$C$53,MATCH(0,IF('sales(1)'!$C$3:$C$53<>"",COUNTIF($B$1:B44,'sales(1)'!$C$3:$C$53),1),0))),"") -> 143 | C45: =IFERROR(IF(ISERROR(INDEX('sales(1)'!$G$3:$G$53,MATCH(0,IF('sales(1)'!$G$3:$G$53<>"",COUNTIF($C$1:C44,'sales(1)'!$G$3:$G$53),1),0))),INDEX('Return)1('!$G$3:$G$12,MATCH(0,IF('Return)1('!$G$3:$G$12<>"",COUNTIF($C$1:C44,'Return)1('!$G$3:$G$12),1),0)),INDEX('sales(1)'!$G$3:$G$53,MATCH(0,IF('sales(1)'!$G$3:$G$53<>"",COUNTIF($C$1:C44,'sales(1)'!$G$3:$G$53),1),0))),"") ->  | D45: =IFERROR(IF(ISERROR(INDEX('sales(1)'!$H$3:$H$53,MATCH(0,IF('sales(1)'!$H$3:$H$53<>"",COUNTIF($D$1:D44,'sales(1)'!$H$3:$H$53),1),0))),INDEX('Return)1('!$H$3:$H$12,MATCH(0,IF('Return)1('!$H$3:$H$12<>"",COUNTIF($D$1:D44,'Return)1('!$H$3:$H$12),1),0)),INDEX('sales(1)'!$H$3:$H$53,MATCH(0,IF('sales(1)'!$H$3:$H$53<>"",COUNTIF($D$1:D44,'sales(1)'!$H$3:$H$53),1),0))),"") -> 
A46: =IFERROR(IF(ISERROR(INDEX('sales(1)'!$B$3:$B$53,MATCH(0,IF('sales(1)'!$B$3:$B$53<>"",COUNTIF($A$1:A45,'sales(1)'!$B$3:$B$53),1),0))),INDEX('Return)1('!$B$3:$B$12,MATCH(0,IF('Return)1('!$B$3:$B$12<>"",COUNTIF($A$1:A45,'Return)1('!$B$3:$B$12),1),0)),INDEX('sales(1)'!$B$3:$B$53,MATCH(0,IF('sales(1)'!$B$3:$B$53<>"",COUNTIF($A$1:A45,'sales(1)'!$B$3:$B$53),1),0))),"") ->  | B46: =IFERROR(IF(ISERROR(INDEX('sales(1)'!$C$3:$C$53,MATCH(0,IF('sales(1)'!$C$3:$C$53<>"",COUNTIF($B$1:B45,'sales(1)'!$C$3:$C$53),1),0))),INDEX('Return)1('!$C$3:$C$12,MATCH(0,IF('Return)1('!$C$3:$C$12<>"",COUNTIF($B$1:B45,'Return)1('!$C$3:$C$12),1),0)),INDEX('sales(1)'!$C$3:$C$53,MATCH(0,IF('sales(1)'!$C$3:$C$53<>"",COUNTIF($B$1:B45,'sales(1)'!$C$3:$C$53),1),0))),"") -> 144 | C46: =IFERROR(IF(ISERROR(INDEX('sales(1)'!$G$3:$G$53,MATCH(0,IF('sales(1)'!$G$3:$G$53<>"",COUNTIF($C$1:C45,'sales(1)'!$G$3:$G$53),1),0))),INDEX('Return)1('!$G$3:$G$12,MATCH(0,IF('Return)1('!$G$3:$G$12<>"",COUNTIF($C$1:C45,'Return)1('!$G$3:$G$12),1),0)),INDEX('sales(1)'!$G$3:$G$53,MATCH(0,IF('sales(1)'!$G$3:$G$53<>"",COUNTIF($C$1:C45,'sales(1)'!$G$3:$G$53),1),0))),"") ->  | D46: =IFERROR(IF(ISERROR(INDEX('sales(1)'!$H$3:$H$53,MATCH(0,IF('sales(1)'!$H$3:$H$53<>"",COUNTIF($D$1:D45,'sales(1)'!$H$3:$H$53),1),0))),INDEX('Return)1('!$H$3:$H$12,MATCH(0,IF('Return)1('!$H$3:$H$12<>"",COUNTIF($D$1:D45,'Return)1('!$H$3:$H$12),1),0)),INDEX('sales(1)'!$H$3:$H$53,MATCH(0,IF('sales(1)'!$H$3:$H$53<>"",COUNTIF($D$1:D45,'sales(1)'!$H$3:$H$53),1),0))),"") -> 
A47: =IFERROR(IF(ISERROR(INDEX('sales(1)'!$B$3:$B$53,MATCH(0,IF('sales(1)'!$B$3:$B$53<>"",COUNTIF($A$1:A46,'sales(1)'!$B$3:$B$53),1),0))),INDEX('Return)1('!$B$3:$B$12,MATCH(0,IF('Return)1('!$B$3:$B$12<>"",COUNTIF($A$1:A46,'Return)1('!$B$3:$B$12),1),0)),INDEX('sales(1)'!$B$3:$B$53,MATCH(0,IF('sales(1)'!$B$3:$B$53<>"",COUNTIF($A$1:A46,'sales(1)'!$B$3:$B$53),1),0))),"") ->  | B47: =IFERROR(IF(ISERROR(INDEX('sales(1)'!$C$3:$C$53,MATCH(0,IF('sales(1)'!$C$3:$C$53<>"",COUNTIF($B$1:B46,'sales(1)'!$C$3:$C$53),1),0))),INDEX('Return)1('!$C$3:$C$12,MATCH(0,IF('Return)1('!$C$3:$C$12<>"",COUNTIF($B$1:B46,'Return)1('!$C$3:$C$12),1),0)),INDEX('sales(1)'!$C$3:$C$53,MATCH(0,IF('sales(1)'!$C$3:$C$53<>"",COUNTIF($B$1:B46,'sales(1)'!$C$3:$C$53),1),0))),"") -> 145 | C47: =IFERROR(IF(ISERROR(INDEX('sales(1)'!$G$3:$G$53,MATCH(0,IF('sales(1)'!$G$3:$G$53<>"",COUNTIF($C$1:C46,'sales(1)'!$G$3:$G$53),1),0))),INDEX('Return)1('!$G$3:$G$12,MATCH(0,IF('Return)1('!$G$3:$G$12<>"",COUNTIF($C$1:C46,'Return)1('!$G$3:$G$12),1),0)),INDEX('sales(1)'!$G$3:$G$53,MATCH(0,IF('sales(1)'!$G$3:$G$53<>"",COUNTIF($C$1:C46,'sales(1)'!$G$3:$G$53),1),0))),"") ->  | D47: =IFERROR(IF(ISERROR(INDEX('sales(1)'!$H$3:$H$53,MATCH(0,IF('sales(1)'!$H$3:$H$53<>"",COUNTIF($D$1:D46,'sales(1)'!$H$3:$H$53),1),0))),INDEX('Return)1('!$H$3:$H$12,MATCH(0,IF('Return)1('!$H$3:$H$12<>"",COUNTIF($D$1:D46,'Return)1('!$H$3:$H$12),1),0)),INDEX('sales(1)'!$H$3:$H$53,MATCH(0,IF('sales(1)'!$H$3:$H$53<>"",COUNTIF($D$1:D46,'sales(1)'!$H$3:$H$53),1),0))),"") -> 
A48: =IFERROR(IF(ISERROR(INDEX('sales(1)'!$B$3:$B$53,MATCH(0,IF('sales(1)'!$B$3:$B$53<>"",COUNTIF($A$1:A47,'sales(1)'!$B$3:$B$53),1),0))),INDEX('Return)1('!$B$3:$B$12,MATCH(0,IF('Return)1('!$B$3:$B$12<>"",COUNTIF($A$1:A47,'Return)1('!$B$3:$B$12),1),0)),INDEX('sales(1)'!$B$3:$B$53,MATCH(0,IF('sales(1)'!$B$3:$B$53<>"",COUNTIF($A$1:A47,'sales(1)'!$B$3:$B$53),1),0))),"") ->  | B48: =IFERROR(IF(ISERROR(INDEX('sales(1)'!$C$3:$C$53,MATCH(0,IF('sales(1)'!$C$3:$C$53<>"",COUNTIF($B$1:B47,'sales(1)'!$C$3:$C$53),1),0))),INDEX('Return)1('!$C$3:$C$12,MATCH(0,IF('Return)1('!$C$3:$C$12<>"",COUNTIF($B$1:B47,'Return)1('!$C$3:$C$12),1),0)),INDEX('sales(1)'!$C$3:$C$53,MATCH(0,IF('sales(1)'!$C$3:$C$53<>"",COUNTIF($B$1:B47,'sales(1)'!$C$3:$C$53),1),0))),"") -> 146 | C48: =IFERROR(IF(ISERROR(INDEX('sales(1)'!$G$3:$G$53,MATCH(0,IF('sales(1)'!$G$3:$G$53<>"",COUNTIF($C$1:C47,'sales(1)'!$G$3:$G$53),1),0))),INDEX('Return)1('!$G$3:$G$12,MATCH(0,IF('Return)1('!$G$3:$G$12<>"",COUNTIF($C$1:C47,'Return)1('!$G$3:$G$12),1),0)),INDEX('sales(1)'!$G$3:$G$53,MATCH(0,IF('sales(1)'!$G$3:$G$53<>"",COUNTIF($C$1:C47,'sales(1)'!$G$3:$G$53),1),0))),"") ->  | D48: =IFERROR(IF(ISERROR(INDEX('sales(1)'!$H$3:$H$53,MATCH(0,IF('sales(1)'!$H$3:$H$53<>"",COUNTIF($D$1:D47,'sales(1)'!$H$3:$H$53),1),0))),INDEX('Return)1('!$H$3:$H$12,MATCH(0,IF('Return)1('!$H$3:$H$12<>"",COUNTIF($D$1:D47,'Return)1('!$H$3:$H$12),1),0)),INDEX('sales(1)'!$H$3:$H$53,MATCH(0,IF('sales(1)'!$H$3:$H$53<>"",COUNTIF($D$1:D47,'sales(1)'!$H$3:$H$53),1),0))),"") -> 
A49: =IFERROR(IF(ISERROR(INDEX('sales(1)'!$B$3:$B$53,MATCH(0,IF('sales(1)'!$B$3:$B$53<>"",COUNTIF($A$1:A48,'sales(1)'!$B$3:$B$53),1),0))),INDEX('Return)1('!$B$3:$B$12,MATCH(0,IF('Return)1('!$B$3:$B$12<>"",COUNTIF($A$1:A48,'Return)1('!$B$3:$B$12),1),0)),INDEX('sales(1)'!$B$3:$B$53,MATCH(0,IF('sales(1)'!$B$3:$B$53<>"",COUNTIF($A$1:A48,'sales(1)'!$B$3:$B$53),1),0))),"") ->  | B49: =IFERROR(IF(ISERROR(INDEX('sales(1)'!$C$3:$C$53,MATCH(0,IF('sales(1)'!$C$3:$C$53<>"",COUNTIF($B$1:B48,'sales(1)'!$C$3:$C$53),1),0))),INDEX('Return)1('!$C$3:$C$12,MATCH(0,IF('Return)1('!$C$3:$C$12<>"",COUNTIF($B$1:B48,'Return)1('!$C$3:$C$12),1),0)),INDEX('sales(1)'!$C$3:$C$53,MATCH(0,IF('sales(1)'!$C$3:$C$53<>"",COUNTIF($B$1:B48,'sales(1)'!$C$3:$C$53),1),0))),"") -> 147 | C49: =IFERROR(IF(ISERROR(INDEX('sales(1)'!$G$3:$G$53,MATCH(0,IF('sales(1)'!$G$3:$G$53<>"",COUNTIF($C$1:C48,'sales(1)'!$G$3:$G$53),1),0))),INDEX('Return)1('!$G$3:$G$12,MATCH(0,IF('Return)1('!$G$3:$G$12<>"",COUNTIF($C$1:C48,'Return)1('!$G$3:$G$12),1),0)),INDEX('sales(1)'!$G$3:$G$53,MATCH(0,IF('sales(1)'!$G$3:$G$53<>"",COUNTIF($C$1:C48,'sales(1)'!$G$3:$G$53),1),0))),"") ->  | D49: =IFERROR(IF(ISERROR(INDEX('sales(1)'!$H$3:$H$53,MATCH(0,IF('sales(1)'!$H$3:$H$53<>"",COUNTIF($D$1:D48,'sales(1)'!$H$3:$H$53),1),0))),INDEX('Return)1('!$H$3:$H$12,MATCH(0,IF('Return)1('!$H$3:$H$12<>"",COUNTIF($D$1:D48,'Return)1('!$H$3:$H$12),1),0)),INDEX('sales(1)'!$H$3:$H$53,MATCH(0,IF('sales(1)'!$H$3:$H$53<>"",COUNTIF($D$1:D48,'sales(1)'!$H$3:$H$53),1),0))),"") -> 
A50: =IFERROR(IF(ISERROR(INDEX('sales(1)'!$B$3:$B$53,MATCH(0,IF('sales(1)'!$B$3:$B$53<>"",COUNTIF($A$1:A49,'sales(1)'!$B$3:$B$53),1),0))),INDEX('Return)1('!$B$3:$B$12,MATCH(0,IF('Return)1('!$B$3:$B$12<>"",COUNTIF($A$1:A49,'Return)1('!$B$3:$B$12),1),0)),INDEX('sales(1)'!$B$3:$B$53,MATCH(0,IF('sales(1)'!$B$3:$B$53<>"",COUNTIF($A$1:A49,'sales(1)'!$B$3:$B$53),1),0))),"") ->  | B50: =IFERROR(IF(ISERROR(INDEX('sales(1)'!$C$3:$C$53,MATCH(0,IF('sales(1)'!$C$3:$C$53<>"",COUNTIF($B$1:B49,'sales(1)'!$C$3:$C$53),1),0))),INDEX('Return)1('!$C$3:$C$12,MATCH(0,IF('Return)1('!$C$3:$C$12<>"",COUNTIF($B$1:B49,'Return)1('!$C$3:$C$12),1),0)),INDEX('sales(1)'!$C$3:$C$53,MATCH(0,IF('sales(1)'!$C$3:$C$53<>"",COUNTIF($B$1:B49,'sales(1)'!$C$3:$C$53),1),0))),"") -> 148 | C50: =IFERROR(IF(ISERROR(INDEX('sales(1)'!$G$3:$G$53,MATCH(0,IF('sales(1)'!$G$3:$G$53<>"",COUNTIF($C$1:C49,'sales(1)'!$G$3:$G$53),1),0))),INDEX('Return)1('!$G$3:$G$12,MATCH(0,IF('Return)1('!$G$3:$G$12<>"",COUNTIF($C$1:C49,'Return)1('!$G$3:$G$12),1),0)),INDEX('sales(1)'!$G$3:$G$53,MATCH(0,IF('sales(1)'!$G$3:$G$53<>"",COUNTIF($C$1:C49,'sales(1)'!$G$3:$G$53),1),0))),"") ->  | D50: =IFERROR(IF(ISERROR(INDEX('sales(1)'!$H$3:$H$53,MATCH(0,IF('sales(1)'!$H$3:$H$53<>"",COUNTIF($D$1:D49,'sales(1)'!$H$3:$H$53),1),0))),INDEX('Return)1('!$H$3:$H$12,MATCH(0,IF('Return)1('!$H$3:$H$12<>"",COUNTIF($D$1:D49,'Return)1('!$H$3:$H$12),1),0)),INDEX('sales(1)'!$H$3:$H$53,MATCH(0,IF('sales(1)'!$H$3:$H$53<>"",COUNTIF($D$1:D49,'sales(1)'!$H$3:$H$53),1),0))),"") -> 
A51: =IFERROR(IF(ISERROR(INDEX('sales(1)'!$B$3:$B$53,MATCH(0,IF('sales(1)'!$B$3:$B$53<>"",COUNTIF($A$1:A50,'sales(1)'!$B$3:$B$53),1),0))),INDEX('Return)1('!$B$3:$B$12,MATCH(0,IF('Return)1('!$B$3:$B$12<>"",COUNTIF($A$1:A50,'Return)1('!$B$3:$B$12),1),0)),INDEX('sales(1)'!$B$3:$B$53,MATCH(0,IF('sales(1)'!$B$3:$B$53<>"",COUNTIF($A$1:A50,'sales(1)'!$B$3:$B$53),1),0))),"") ->  | B51: =IFERROR(IF(ISERROR(INDEX('sales(1)'!$C$3:$C$53,MATCH(0,IF('sales(1)'!$C$3:$C$53<>"",COUNTIF($B$1:B50,'sales(1)'!$C$3:$C$53),1),0))),INDEX('Return)1('!$C$3:$C$12,MATCH(0,IF('Return)1('!$C$3:$C$12<>"",COUNTIF($B$1:B50,'Return)1('!$C$3:$C$12),1),0)),INDEX('sales(1)'!$C$3:$C$53,MATCH(0,IF('sales(1)'!$C$3:$C$53<>"",COUNTIF($B$1:B50,'sales(1)'!$C$3:$C$53),1),0))),"") -> 149 | C51: =IFERROR(IF(ISERROR(INDEX('sales(1)'!$G$3:$G$53,MATCH(0,IF('sales(1)'!$G$3:$G$53<>"",COUNTIF($C$1:C50,'sales(1)'!$G$3:$G$53),1),0))),INDEX('Return)1('!$G$3:$G$12,MATCH(0,IF('Return)1('!$G$3:$G$12<>"",COUNTIF($C$1:C50,'Return)1('!$G$3:$G$12),1),0)),INDEX('sales(1)'!$G$3:$G$53,MATCH(0,IF('sales(1)'!$G$3:$G$53<>"",COUNTIF($C$1:C50,'sales(1)'!$G$3:$G$53),1),0))),"") ->  | D51: =IFERROR(IF(ISERROR(INDEX('sales(1)'!$H$3:$H$53,MATCH(0,IF('sales(1)'!$H$3:$H$53<>"",COUNTIF($D$1:D50,'sales(1)'!$H$3:$H$53),1),0))),INDEX('Return)1('!$H$3:$H$12,MATCH(0,IF('Return)1('!$H$3:$H$12<>"",COUNTIF($D$1:D50,'Return)1('!$H$3:$H$12),1),0)),INDEX('sales(1)'!$H$3:$H$53,MATCH(0,IF('sales(1)'!$H$3:$H$53<>"",COUNTIF($D$1:D50,'sales(1)'!$H$3:$H$53),1),0))),"") -> 
A52: =IFERROR(IF(ISERROR(INDEX('sales(1)'!$B$3:$B$53,MATCH(0,IF('sales(1)'!$B$3:$B$53<>"",COUNTIF($A$1:A51,'sales(1)'!$B$3:$B$53),1),0))),INDEX('Return)1('!$B$3:$B$12,MATCH(0,IF('Return)1('!$B$3:$B$12<>"",COUNTIF($A$1:A51,'Return)1('!$B$3:$B$12),1),0)),INDEX('sales(1)'!$B$3:$B$53,MATCH(0,IF('sales(1)'!$B$3:$B$53<>"",COUNTIF($A$1:A51,'sales(1)'!$B$3:$B$53),1),0))),"") ->  | B52: =IFERROR(IF(ISERROR(INDEX('sales(1)'!$C$3:$C$53,MATCH(0,IF('sales(1)'!$C$3:$C$53<>"",COUNTIF($B$1:B51,'sales(1)'!$C$3:$C$53),1),0))),INDEX('Return)1('!$C$3:$C$12,MATCH(0,IF('Return)1('!$C$3:$C$12<>"",COUNTIF($B$1:B51,'Return)1('!$C$3:$C$12),1),0)),INDEX('sales(1)'!$C$3:$C$53,MATCH(0,IF('sales(1)'!$C$3:$C$53<>"",COUNTIF($B$1:B51,'sales(1)'!$C$3:$C$53),1),0))),"") -> 150 | C52: =IFERROR(IF(ISERROR(INDEX('sales(1)'!$G$3:$G$53,MATCH(0,IF('sales(1)'!$G$3:$G$53<>"",COUNTIF($C$1:C51,'sales(1)'!$G$3:$G$53),1),0))),INDEX('Return)1('!$G$3:$G$12,MATCH(0,IF('Return)1('!$G$3:$G$12<>"",COUNTIF($C$1:C51,'Return)1('!$G$3:$G$12),1),0)),INDEX('sales(1)'!$G$3:$G$53,MATCH(0,IF('sales(1)'!$G$3:$G$53<>"",COUNTIF($C$1:C51,'sales(1)'!$G$3:$G$53),1),0))),"") ->  | D52: =IFERROR(IF(ISERROR(INDEX('sales(1)'!$H$3:$H$53,MATCH(0,IF('sales(1)'!$H$3:$H$53<>"",COUNTIF($D$1:D51,'sales(1)'!$H$3:$H$53),1),0))),INDEX('Return)1('!$H$3:$H$12,MATCH(0,IF('Return)1('!$H$3:$H$12<>"",COUNTIF($D$1:D51,'Return)1('!$H$3:$H$12),1),0)),INDEX('sales(1)'!$H$3:$H$53,MATCH(0,IF('sales(1)'!$H$3:$H$53<>"",COUNTIF($D$1:D51,'sales(1)'!$H$3:$H$53),1),0))),"") -> 
A53: =IFERROR(IF(ISERROR(INDEX('sales(1)'!$B$3:$B$53,MATCH(0,IF('sales(1)'!$B$3:$B$53<>"",COUNTIF($A$1:A52,'sales(1)'!$B$3:$B$53),1),0))),INDEX('Return)1('!$B$3:$B$12,MATCH(0,IF('Return)1('!$B$3:$B$12<>"",COUNTIF($A$1:A52,'Return)1('!$B$3:$B$12),1),0)),INDEX('sales(1)'!$B$3:$B$53,MATCH(0,IF('sales(1)'!$B$3:$B$53<>"",COUNTIF($A$1:A52,'sales(1)'!$B$3:$B$53),1),0))),"") ->  | B53: =IFERROR(IF(ISERROR(INDEX('sales(1)'!$C$3:$C$53,MATCH(0,IF('sales(1)'!$C$3:$C$53<>"",COUNTIF($B$1:B52,'sales(1)'!$C$3:$C$53),1),0))),INDEX('Return)1('!$C$3:$C$12,MATCH(0,IF('Return)1('!$C$3:$C$12<>"",COUNTIF($B$1:B52,'Return)1('!$C$3:$C$12),1),0)),INDEX('sales(1)'!$C$3:$C$53,MATCH(0,IF('sales(1)'!$C$3:$C$53<>"",COUNTIF($B$1:B52,'sales(1)'!$C$3:$C$53),1),0))),"") ->  | C53: =IFERROR(IF(ISERROR(INDEX('sales(1)'!$G$3:$G$53,MATCH(0,IF('sales(1)'!$G$3:$G$53<>"",COUNTIF($C$1:C52,'sales(1)'!$G$3:$G$53),1),0))),INDEX('Return)1('!$G$3:$G$12,MATCH(0,IF('Return)1('!$G$3:$G$12<>"",COUNTIF($C$1:C52,'Return)1('!$G$3:$G$12),1),0)),INDEX('sales(1)'!$G$3:$G$53,MATCH(0,IF('sales(1)'!$G$3:$G$53<>"",COUNTIF($C$1:C52,'sales(1)'!$G$3:$G$53),1),0))),"") ->  | D53: =IFERROR(IF(ISERROR(INDEX('sales(1)'!$H$3:$H$53,MATCH(0,IF('sales(1)'!$H$3:$H$53<>"",COUNTIF($D$1:D52,'sales(1)'!$H$3:$H$53),1),0))),INDEX('Return)1('!$H$3:$H$12,MATCH(0,IF('Return)1('!$H$3:$H$12<>"",COUNTIF($D$1:D52,'Return)1('!$H$3:$H$12),1),0)),INDEX('sales(1)'!$H$3:$H$53,MATCH(0,IF('sales(1)'!$H$3:$H$53<>"",COUNTIF($D$1:D52,'sales(1)'!$H$3:$H$53),1),0))),"") -> 
A54: =IFERROR(IF(ISERROR(INDEX('sales(1)'!$B$3:$B$53,MATCH(0,IF('sales(1)'!$B$3:$B$53<>"",COUNTIF($A$1:A53,'sales(1)'!$B$3:$B$53),1),0))),INDEX('Return)1('!$B$3:$B$12,MATCH(0,IF('Return)1('!$B$3:$B$12<>"",COUNTIF($A$1:A53,'Return)1('!$B$3:$B$12),1),0)),INDEX('sales(1)'!$B$3:$B$53,MATCH(0,IF('sales(1)'!$B$3:$B$53<>"",COUNTIF($A$1:A53,'sales(1)'!$B$3:$B$53),1),0))),"") ->  | B54: =IFERROR(IF(ISERROR(INDEX('sales(1)'!$C$3:$C$53,MATCH(0,IF('sales(1)'!$C$3:$C$53<>"",COUNTIF($B$1:B53,'sales(1)'!$C$3:$C$53),1),0))),INDEX('Return)1('!$C$3:$C$12,MATCH(0,IF('Return)1('!$C$3:$C$12<>"",COUNTIF($B$1:B53,'Return)1('!$C$3:$C$12),1),0)),INDEX('sales(1)'!$C$3:$C$53,MATCH(0,IF('sales(1)'!$C$3:$C$53<>"",COUNTIF($B$1:B53,'sales(1)'!$C$3:$C$53),1),0))),"") ->  | C54: =IFERROR(IF(ISERROR(INDEX('sales(1)'!$G$3:$G$53,MATCH(0,IF('sales(1)'!$G$3:$G$53<>"",COUNTIF($C$1:C53,'sales(1)'!$G$3:$G$53),1),0))),INDEX('Return)1('!$G$3:$G$12,MATCH(0,IF('Return)1('!$G$3:$G$12<>"",COUNTIF($C$1:C53,'Return)1('!$G$3:$G$12),1),0)),INDEX('sales(1)'!$G$3:$G$53,MATCH(0,IF('sales(1)'!$G$3:$G$53<>"",COUNTIF($C$1:C53,'sales(1)'!$G$3:$G$53),1),0))),"") ->  | D54: =IFERROR(IF(ISERROR(INDEX('sales(1)'!$H$3:$H$53,MATCH(0,IF('sales(1)'!$H$3:$H$53<>"",COUNTIF($D$1:D53,'sales(1)'!$H$3:$H$53),1),0))),INDEX('Return)1('!$H$3:$H$12,MATCH(0,IF('Return)1('!$H$3:$H$12<>"",COUNTIF($D$1:D53,'Return)1('!$H$3:$H$12),1),0)),INDEX('sales(1)'!$H$3:$H$53,MATCH(0,IF('sales(1)'!$H$3:$H$53<>"",COUNTIF($D$1:D53,'sales(1)'!$H$3:$H$53),1),0))),"") -> 
A55: =IFERROR(IF(ISERROR(INDEX('sales(1)'!$B$3:$B$53,MATCH(0,IF('sales(1)'!$B$3:$B$53<>"",COUNTIF($A$1:A54,'sales(1)'!$B$3:$B$53),1),0))),INDEX('Return)1('!$B$3:$B$12,MATCH(0,IF('Return)1('!$B$3:$B$12<>"",COUNTIF($A$1:A54,'Return)1('!$B$3:$B$12),1),0)),INDEX('sales(1)'!$B$3:$B$53,MATCH(0,IF('sales(1)'!$B$3:$B$53<>"",COUNTIF($A$1:A54,'sales(1)'!$B$3:$B$53),1),0))),"") ->  | B55: =IFERROR(IF(ISERROR(INDEX('sales(1)'!$C$3:$C$53,MATCH(0,IF('sales(1)'!$C$3:$C$53<>"",COUNTIF($B$1:B54,'sales(1)'!$C$3:$C$53),1),0))),INDEX('Return)1('!$C$3:$C$12,MATCH(0,IF('Return)1('!$C$3:$C$12<>"",COUNTIF($B$1:B54,'Return)1('!$C$3:$C$12),1),0)),INDEX('sales(1)'!$C$3:$C$53,MATCH(0,IF('sales(1)'!$C$3:$C$53<>"",COUNTIF($B$1:B54,'sales(1)'!$C$3:$C$53),1),0))),"") ->  | C55: =IFERROR(IF(ISERROR(INDEX('sales(1)'!$G$3:$G$53,MATCH(0,IF('sales(1)'!$G$3:$G$53<>"",COUNTIF($C$1:C54,'sales(1)'!$G$3:$G$53),1),0))),INDEX('Return)1('!$G$3:$G$12,MATCH(0,IF('Return)1('!$G$3:$G$12<>"",COUNTIF($C$1:C54,'Return)1('!$G$3:$G$12),1),0)),INDEX('sales(1)'!$G$3:$G$53,MATCH(0,IF('sales(1)'!$G$3:$G$53<>"",COUNTIF($C$1:C54,'sales(1)'!$G$3:$G$53),1),0))),"") ->  | D55: =IFERROR(IF(ISERROR(INDEX('sales(1)'!$H$3:$H$53,MATCH(0,IF('sales(1)'!$H$3:$H$53<>"",COUNTIF($D$1:D54,'sales(1)'!$H$3:$H$53),1),0))),INDEX('Return)1('!$H$3:$H$12,MATCH(0,IF('Return)1('!$H$3:$H$12<>"",COUNTIF($D$1:D54,'Return)1('!$H$3:$H$12),1),0)),INDEX('sales(1)'!$H$3:$H$53,MATCH(0,IF('sales(1)'!$H$3:$H$53<>"",COUNTIF($D$1:D54,'sales(1)'!$H$3:$H$53),1),0))),"") -> 
A56: =IFERROR(IF(ISERROR(INDEX('sales(1)'!$B$3:$B$53,MATCH(0,IF('sales(1)'!$B$3:$B$53<>"",COUNTIF($A$1:A55,'sales(1)'!$B$3:$B$53),1),0))),INDEX('Return)1('!$B$3:$B$12,MATCH(0,IF('Return)1('!$B$3:$B$12<>"",COUNTIF($A$1:A55,'Return)1('!$B$3:$B$12),1),0)),INDEX('sales(1)'!$B$3:$B$53,MATCH(0,IF('sales(1)'!$B$3:$B$53<>"",COUNTIF($A$1:A55,'sales(1)'!$B$3:$B$53),1),0))),"") ->  | B56: =IFERROR(IF(ISERROR(INDEX('sales(1)'!$C$3:$C$53,MATCH(0,IF('sales(1)'!$C$3:$C$53<>"",COUNTIF($B$1:B55,'sales(1)'!$C$3:$C$53),1),0))),INDEX('Return)1('!$C$3:$C$12,MATCH(0,IF('Return)1('!$C$3:$C$12<>"",COUNTIF($B$1:B55,'Return)1('!$C$3:$C$12),1),0)),INDEX('sales(1)'!$C$3:$C$53,MATCH(0,IF('sales(1)'!$C$3:$C$53<>"",COUNTIF($B$1:B55,'sales(1)'!$C$3:$C$53),1),0))),"") ->  | C56: =IFERROR(IF(ISERROR(INDEX('sales(1)'!$G$3:$G$53,MATCH(0,IF('sales(1)'!$G$3:$G$53<>"",COUNTIF($C$1:C55,'sales(1)'!$G$3:$G$53),1),0))),INDEX('Return)1('!$G$3:$G$12,MATCH(0,IF('Return)1('!$G$3:$G$12<>"",COUNTIF($C$1:C55,'Return)1('!$G$3:$G$12),1),0)),INDEX('sales(1)'!$G$3:$G$53,MATCH(0,IF('sales(1)'!$G$3:$G$53<>"",COUNTIF($C$1:C55,'sales(1)'!$G$3:$G$53),1),0))),"") ->  | D56: =IFERROR(IF(ISERROR(INDEX('sales(1)'!$H$3:$H$53,MATCH(0,IF('sales(1)'!$H$3:$H$53<>"",COUNTIF($D$1:D55,'sales(1)'!$H$3:$H$53),1),0))),INDEX('Return)1('!$H$3:$H$12,MATCH(0,IF('Return)1('!$H$3:$H$12<>"",COUNTIF($D$1:D55,'Return)1('!$H$3:$H$12),1),0)),INDEX('sales(1)'!$H$3:$H$53,MATCH(0,IF('sales(1)'!$H$3:$H$53<>"",COUNTIF($D$1:D55,'sales(1)'!$H$3:$H$53),1),0))),"") -> 
A57: =IFERROR(IF(ISERROR(INDEX('sales(1)'!$B$3:$B$53,MATCH(0,IF('sales(1)'!$B$3:$B$53<>"",COUNTIF($A$1:A56,'sales(1)'!$B$3:$B$53),1),0))),INDEX('Return)1('!$B$3:$B$12,MATCH(0,IF('Return)1('!$B$3:$B$12<>"",COUNTIF($A$1:A56,'Return)1('!$B$3:$B$12),1),0)),INDEX('sales(1)'!$B$3:$B$53,MATCH(0,IF('sales(1)'!$B$3:$B$53<>"",COUNTIF($A$1:A56,'sales(1)'!$B$3:$B$53),1),0))),"") ->  | B57: =IFERROR(IF(ISERROR(INDEX('sales(1)'!$C$3:$C$53,MATCH(0,IF('sales(1)'!$C$3:$C$53<>"",COUNTIF($B$1:B56,'sales(1)'!$C$3:$C$53),1),0))),INDEX('Return)1('!$C$3:$C$12,MATCH(0,IF('Return)1('!$C$3:$C$12<>"",COUNTIF($B$1:B56,'Return)1('!$C$3:$C$12),1),0)),INDEX('sales(1)'!$C$3:$C$53,MATCH(0,IF('sales(1)'!$C$3:$C$53<>"",COUNTIF($B$1:B56,'sales(1)'!$C$3:$C$53),1),0))),"") ->  | C57: =IFERROR(IF(ISERROR(INDEX('sales(1)'!$G$3:$G$53,MATCH(0,IF('sales(1)'!$G$3:$G$53<>"",COUNTIF($C$1:C56,'sales(1)'!$G$3:$G$53),1),0))),INDEX('Return)1('!$G$3:$G$12,MATCH(0,IF('Return)1('!$G$3:$G$12<>"",COUNTIF($C$1:C56,'Return)1('!$G$3:$G$12),1),0)),INDEX('sales(1)'!$G$3:$G$53,MATCH(0,IF('sales(1)'!$G$3:$G$53<>"",COUNTIF($C$1:C56,'sales(1)'!$G$3:$G$53),1),0))),"") ->  | D57: =IFERROR(IF(ISERROR(INDEX('sales(1)'!$H$3:$H$53,MATCH(0,IF('sales(1)'!$H$3:$H$53<>"",COUNTIF($D$1:D56,'sales(1)'!$H$3:$H$53),1),0))),INDEX('Return)1('!$H$3:$H$12,MATCH(0,IF('Return)1('!$H$3:$H$12<>"",COUNTIF($D$1:D56,'Return)1('!$H$3:$H$12),1),0)),INDEX('sales(1)'!$H$3:$H$53,MATCH(0,IF('sales(1)'!$H$3:$H$53<>"",COUNTIF($D$1:D56,'sales(1)'!$H$3:$H$53),1),0))),"") -> 
A58: =IFERROR(IF(ISERROR(INDEX('sales(1)'!$B$3:$B$53,MATCH(0,IF('sales(1)'!$B$3:$B$53<>"",COUNTIF($A$1:A57,'sales(1)'!$B$3:$B$53),1),0))),INDEX('Return)1('!$B$3:$B$12,MATCH(0,IF('Return)1('!$B$3:$B$12<>"",COUNTIF($A$1:A57,'Return)1('!$B$3:$B$12),1),0)),INDEX('sales(1)'!$B$3:$B$53,MATCH(0,IF('sales(1)'!$B$3:$B$53<>"",COUNTIF($A$1:A57,'sales(1)'!$B$3:$B$53),1),0))),"") ->  | B58: =IFERROR(IF(ISERROR(INDEX('sales(1)'!$C$3:$C$53,MATCH(0,IF('sales(1)'!$C$3:$C$53<>"",COUNTIF($B$1:B57,'sales(1)'!$C$3:$C$53),1),0))),INDEX('Return)1('!$C$3:$C$12,MATCH(0,IF('Return)1('!$C$3:$C$12<>"",COUNTIF($B$1:B57,'Return)1('!$C$3:$C$12),1),0)),INDEX('sales(1)'!$C$3:$C$53,MATCH(0,IF('sales(1)'!$C$3:$C$53<>"",COUNTIF($B$1:B57,'sales(1)'!$C$3:$C$53),1),0))),"") ->  | C58: =IFERROR(IF(ISERROR(INDEX('sales(1)'!$G$3:$G$53,MATCH(0,IF('sales(1)'!$G$3:$G$53<>"",COUNTIF($C$1:C57,'sales(1)'!$G$3:$G$53),1),0))),INDEX('Return)1('!$G$3:$G$12,MATCH(0,IF('Return)1('!$G$3:$G$12<>"",COUNTIF($C$1:C57,'Return)1('!$G$3:$G$12),1),0)),INDEX('sales(1)'!$G$3:$G$53,MATCH(0,IF('sales(1)'!$G$3:$G$53<>"",COUNTIF($C$1:C57,'sales(1)'!$G$3:$G$53),1),0))),"") ->  | D58: =IFERROR(IF(ISERROR(INDEX('sales(1)'!$H$3:$H$53,MATCH(0,IF('sales(1)'!$H$3:$H$53<>"",COUNTIF($D$1:D57,'sales(1)'!$H$3:$H$53),1),0))),INDEX('Return)1('!$H$3:$H$12,MATCH(0,IF('Return)1('!$H$3:$H$12<>"",COUNTIF($D$1:D57,'Return)1('!$H$3:$H$12),1),0)),INDEX('sales(1)'!$H$3:$H$53,MATCH(0,IF('sales(1)'!$H$3:$H$53<>"",COUNTIF($D$1:D57,'sales(1)'!$H$3:$H$53),1),0))),"") -> 
A59: =IFERROR(IF(ISERROR(INDEX('sales(1)'!$B$3:$B$53,MATCH(0,IF('sales(1)'!$B$3:$B$53<>"",COUNTIF($A$1:A58,'sales(1)'!$B$3:$B$53),1),0))),INDEX('Return)1('!$B$3:$B$12,MATCH(0,IF('Return)1('!$B$3:$B$12<>"",COUNTIF($A$1:A58,'Return)1('!$B$3:$B$12),1),0)),INDEX('sales(1)'!$B$3:$B$53,MATCH(0,IF('sales(1)'!$B$3:$B$53<>"",COUNTIF($A$1:A58,'sales(1)'!$B$3:$B$53),1),0))),"") ->  | B59: =IFERROR(IF(ISERROR(INDEX('sales(1)'!$C$3:$C$53,MATCH(0,IF('sales(1)'!$C$3:$C$53<>"",COUNTIF($B$1:B58,'sales(1)'!$C$3:$C$53),1),0))),INDEX('Return)1('!$C$3:$C$12,MATCH(0,IF('Return)1('!$C$3:$C$12<>"",COUNTIF($B$1:B58,'Return)1('!$C$3:$C$12),1),0)),INDEX('sales(1)'!$C$3:$C$53,MATCH(0,IF('sales(1)'!$C$3:$C$53<>"",COUNTIF($B$1:B58,'sales(1)'!$C$3:$C$53),1),0))),"") ->  | C59: =IFERROR(IF(ISERROR(INDEX('sales(1)'!$G$3:$G$53,MATCH(0,IF('sales(1)'!$G$3:$G$53<>"",COUNTIF($C$1:C58,'sales(1)'!$G$3:$G$53),1),0))),INDEX('Return)1('!$G$3:$G$12,MATCH(0,IF('Return)1('!$G$3:$G$12<>"",COUNTIF($C$1:C58,'Return)1('!$G$3:$G$12),1),0)),INDEX('sales(1)'!$G$3:$G$53,MATCH(0,IF('sales(1)'!$G$3:$G$53<>"",COUNTIF($C$1:C58,'sales(1)'!$G$3:$G$53),1),0))),"") ->  | D59: =IFERROR(IF(ISERROR(INDEX('sales(1)'!$H$3:$H$53,MATCH(0,IF('sales(1)'!$H$3:$H$53<>"",COUNTIF($D$1:D58,'sales(1)'!$H$3:$H$53),1),0))),INDEX('Return)1('!$H$3:$H$12,MATCH(0,IF('Return)1('!$H$3:$H$12<>"",COUNTIF($D$1:D58,'Return)1('!$H$3:$H$12),1),0)),INDEX('sales(1)'!$H$3:$H$53,MATCH(0,IF('sales(1)'!$H$3:$H$53<>"",COUNTIF($D$1:D58,'sales(1)'!$H$3:$H$53),1),0))),"") -> 
A60: =IFERROR(IF(ISERROR(INDEX('sales(1)'!$B$3:$B$53,MATCH(0,IF('sales(1)'!$B$3:$B$53<>"",COUNTIF($A$1:A59,'sales(1)'!$B$3:$B$53),1),0))),INDEX('Return)1('!$B$3:$B$12,MATCH(0,IF('Return)1('!$B$3:$B$12<>"",COUNTIF($A$1:A59,'Return)1('!$B$3:$B$12),1),0)),INDEX('sales(1)'!$B$3:$B$53,MATCH(0,IF('sales(1)'!$B$3:$B$53<>"",COUNTIF($A$1:A59,'sales(1)'!$B$3:$B$53),1),0))),"") ->  | B60: =IFERROR(IF(ISERROR(INDEX('sales(1)'!$C$3:$C$53,MATCH(0,IF('sales(1)'!$C$3:$C$53<>"",COUNTIF($B$1:B59,'sales(1)'!$C$3:$C$53),1),0))),INDEX('Return)1('!$C$3:$C$12,MATCH(0,IF('Return)1('!$C$3:$C$12<>"",COUNTIF($B$1:B59,'Return)1('!$C$3:$C$12),1),0)),INDEX('sales(1)'!$C$3:$C$53,MATCH(0,IF('sales(1)'!$C$3:$C$53<>"",COUNTIF($B$1:B59,'sales(1)'!$C$3:$C$53),1),0))),"") ->  | C60: =IFERROR(IF(ISERROR(INDEX('sales(1)'!$G$3:$G$53,MATCH(0,IF('sales(1)'!$G$3:$G$53<>"",COUNTIF($C$1:C59,'sales(1)'!$G$3:$G$53),1),0))),INDEX('Return)1('!$G$3:$G$12,MATCH(0,IF('Return)1('!$G$3:$G$12<>"",COUNTIF($C$1:C59,'Return)1('!$G$3:$G$12),1),0)),INDEX('sales(1)'!$G$3:$G$53,MATCH(0,IF('sales(1)'!$G$3:$G$53<>"",COUNTIF($C$1:C59,'sales(1)'!$G$3:$G$53),1),0))),"") ->  | D60: =IFERROR(IF(ISERROR(INDEX('sales(1)'!$H$3:$H$53,MATCH(0,IF('sales(1)'!$H$3:$H$53<>"",COUNTIF($D$1:D59,'sales(1)'!$H$3:$H$53),1),0))),INDEX('Return)1('!$H$3:$H$12,MATCH(0,IF('Return)1('!$H$3:$H$12<>"",COUNTIF($D$1:D59,'Return)1('!$H$3:$H$12),1),0)),INDEX('sales(1)'!$H$3:$H$53,MATCH(0,IF('sales(1)'!$H$3:$H$53<>"",COUNTIF($D$1:D59,'sales(1)'!$H$3:$H$53),1),0))),"") -> 
A61: =IFERROR(IF(ISERROR(INDEX('sales(1)'!$B$3:$B$53,MATCH(0,IF('sales(1)'!$B$3:$B$53<>"",COUNTIF($A$1:A60,'sales(1)'!$B$3:$B$53),1),0))),INDEX('Return)1('!$B$3:$B$12,MATCH(0,IF('Return)1('!$B$3:$B$12<>"",COUNTIF($A$1:A60,'Return)1('!$B$3:$B$12),1),0)),INDEX('sales(1)'!$B$3:$B$53,MATCH(0,IF('sales(1)'!$B$3:$B$53<>"",COUNTIF($A$1:A60,'sales(1)'!$B$3:$B$53),1),0))),"") ->  | B61: =IFERROR(IF(ISERROR(INDEX('sales(1)'!$C$3:$C$53,MATCH(0,IF('sales(1)'!$C$3:$C$53<>"",COUNTIF($B$1:B60,'sales(1)'!$C$3:$C$53),1),0))),INDEX('Return)1('!$C$3:$C$12,MATCH(0,IF('Return)1('!$C$3:$C$12<>"",COUNTIF($B$1:B60,'Return)1('!$C$3:$C$12),1),0)),INDEX('sales(1)'!$C$3:$C$53,MATCH(0,IF('sales(1)'!$C$3:$C$53<>"",COUNTIF($B$1:B60,'sales(1)'!$C$3:$C$53),1),0))),"") ->  | C61: =IFERROR(IF(ISERROR(INDEX('sales(1)'!$G$3:$G$53,MATCH(0,IF('sales(1)'!$G$3:$G$53<>"",COUNTIF($C$1:C60,'sales(1)'!$G$3:$G$53),1),0))),INDEX('Return)1('!$G$3:$G$12,MATCH(0,IF('Return)1('!$G$3:$G$12<>"",COUNTIF($C$1:C60,'Return)1('!$G$3:$G$12),1),0)),INDEX('sales(1)'!$G$3:$G$53,MATCH(0,IF('sales(1)'!$G$3:$G$53<>"",COUNTIF($C$1:C60,'sales(1)'!$G$3:$G$53),1),0))),"") ->  | D61: =IFERROR(IF(ISERROR(INDEX('sales(1)'!$H$3:$H$53,MATCH(0,IF('sales(1)'!$H$3:$H$53<>"",COUNTIF($D$1:D60,'sales(1)'!$H$3:$H$53),1),0))),INDEX('Return)1('!$H$3:$H$12,MATCH(0,IF('Return)1('!$H$3:$H$12<>"",COUNTIF($D$1:D60,'Return)1('!$H$3:$H$12),1),0)),INDEX('sales(1)'!$H$3:$H$53,MATCH(0,IF('sales(1)'!$H$3:$H$53<>"",COUNTIF($D$1:D60,'sales(1)'!$H$3:$H$53),1),0))),"") -> 
A62: =IFERROR(IF(ISERROR(INDEX('sales(1)'!$B$3:$B$53,MATCH(0,IF('sales(1)'!$B$3:$B$53<>"",COUNTIF($A$1:A61,'sales(1)'!$B$3:$B$53),1),0))),INDEX('Return)1('!$B$3:$B$12,MATCH(0,IF('Return)1('!$B$3:$B$12<>"",COUNTIF($A$1:A61,'Return)1('!$B$3:$B$12),1),0)),INDEX('sales(1)'!$B$3:$B$53,MATCH(0,IF('sales(1)'!$B$3:$B$53<>"",COUNTIF($A$1:A61,'sales(1)'!$B$3:$B$53),1),0))),"") ->  | B62: =IFERROR(IF(ISERROR(INDEX('sales(1)'!$C$3:$C$53,MATCH(0,IF('sales(1)'!$C$3:$C$53<>"",COUNTIF($B$1:B61,'sales(1)'!$C$3:$C$53),1),0))),INDEX('Return)1('!$C$3:$C$12,MATCH(0,IF('Return)1('!$C$3:$C$12<>"",COUNTIF($B$1:B61,'Return)1('!$C$3:$C$12),1),0)),INDEX('sales(1)'!$C$3:$C$53,MATCH(0,IF('sales(1)'!$C$3:$C$53<>"",COUNTIF($B$1:B61,'sales(1)'!$C$3:$C$53),1),0))),"") ->  | C62: =IFERROR(IF(ISERROR(INDEX('sales(1)'!$G$3:$G$53,MATCH(0,IF('sales(1)'!$G$3:$G$53<>"",COUNTIF($C$1:C61,'sales(1)'!$G$3:$G$53),1),0))),INDEX('Return)1('!$G$3:$G$12,MATCH(0,IF('Return)1('!$G$3:$G$12<>"",COUNTIF($C$1:C61,'Return)1('!$G$3:$G$12),1),0)),INDEX('sales(1)'!$G$3:$G$53,MATCH(0,IF('sales(1)'!$G$3:$G$53<>"",COUNTIF($C$1:C61,'sales(1)'!$G$3:$G$53),1),0))),"") ->  | D62: =IFERROR(IF(ISERROR(INDEX('sales(1)'!$H$3:$H$53,MATCH(0,IF('sales(1)'!$H$3:$H$53<>"",COUNTIF($D$1:D61,'sales(1)'!$H$3:$H$53),1),0))),INDEX('Return)1('!$H$3:$H$12,MATCH(0,IF('Return)1('!$H$3:$H$12<>"",COUNTIF($D$1:D61,'Return)1('!$H$3:$H$12),1),0)),INDEX('sales(1)'!$H$3:$H$53,MATCH(0,IF('sales(1)'!$H$3:$H$53<>"",COUNTIF($D$1:D61,'sales(1)'!$H$3:$H$53),1),0))),"") -> 
A63: =IFERROR(IF(ISERROR(INDEX('sales(1)'!$B$3:$B$53,MATCH(0,IF('sales(1)'!$B$3:$B$53<>"",COUNTIF($A$1:A62,'sales(1)'!$B$3:$B$53),1),0))),INDEX('Return)1('!$B$3:$B$12,MATCH(0,IF('Return)1('!$B$3:$B$12<>"",COUNTIF($A$1:A62,'Return)1('!$B$3:$B$12),1),0)),INDEX('sales(1)'!$B$3:$B$53,MATCH(0,IF('sales(1)'!$B$3:$B$53<>"",COUNTIF($A$1:A62,'sales(1)'!$B$3:$B$53),1),0))),"") ->  | B63: =IFERROR(IF(ISERROR(INDEX('sales(1)'!$C$3:$C$53,MATCH(0,IF('sales(1)'!$C$3:$C$53<>"",COUNTIF($A$1:B62,'sales(1)'!$C$3:$C$53),1),0))),INDEX('Return)1('!$C$3:$C$12,MATCH(0,IF('Return)1('!$C$3:$C$12<>"",COUNTIF($A$1:B62,'Return)1('!$C$3:$C$12),1),0)),INDEX('sales(1)'!$C$3:$C$53,MATCH(0,IF('sales(1)'!$C$3:$C$53<>"",COUNTIF($A$1:B62,'sales(1)'!$C$3:$C$53),1),0))),"") ->  | C63: =IFERROR(IF(ISERROR(INDEX('sales(1)'!$G$3:$G$53,MATCH(0,IF('sales(1)'!$G$3:$G$53<>"",COUNTIF($C$1:C62,'sales(1)'!$G$3:$G$53),1),0))),INDEX('Return)1('!$G$3:$G$12,MATCH(0,IF('Return)1('!$G$3:$G$12<>"",COUNTIF($C$1:C62,'Return)1('!$G$3:$G$12),1),0)),INDEX('sales(1)'!$G$3:$G$53,MATCH(0,IF('sales(1)'!$G$3:$G$53<>"",COUNTIF($C$1:C62,'sales(1)'!$G$3:$G$53),1),0))),"") ->  | D63: =IFERROR(IF(ISERROR(INDEX('sales(1)'!$H$3:$H$53,MATCH(0,IF('sales(1)'!$H$3:$H$53<>"",COUNTIF($D$1:D62,'sales(1)'!$H$3:$H$53),1),0))),INDEX('Return)1('!$H$3:$H$12,MATCH(0,IF('Return)1('!$H$3:$H$12<>"",COUNTIF($D$1:D62,'Return)1('!$H$3:$H$12),1),0)),INDEX('sales(1)'!$H$3:$H$53,MATCH(0,IF('sales(1)'!$H$3:$H$53<>"",COUNTIF($D$1:D62,'sales(1)'!$H$3:$H$53),1),0))),"") -> 
A64: =IFERROR(IF(ISERROR(INDEX('sales(1)'!$B$3:$B$53,MATCH(0,IF('sales(1)'!$B$3:$B$53<>"",COUNTIF($A$1:A63,'sales(1)'!$B$3:$B$53),1),0))),INDEX('Return)1('!$B$3:$B$12,MATCH(0,IF('Return)1('!$B$3:$B$12<>"",COUNTIF($A$1:A63,'Return)1('!$B$3:$B$12),1),0)),INDEX('sales(1)'!$B$3:$B$53,MATCH(0,IF('sales(1)'!$B$3:$B$53<>"",COUNTIF($A$1:A63,'sales(1)'!$B$3:$B$53),1),0))),"") ->  | B64: =IFERROR(IF(ISERROR(INDEX('sales(1)'!$C$3:$C$53,MATCH(0,IF('sales(1)'!$C$3:$C$53<>"",COUNTIF($A$1:B63,'sales(1)'!$C$3:$C$53),1),0))),INDEX('Return)1('!$C$3:$C$12,MATCH(0,IF('Return)1('!$C$3:$C$12<>"",COUNTIF($A$1:B63,'Return)1('!$C$3:$C$12),1),0)),INDEX('sales(1)'!$C$3:$C$53,MATCH(0,IF('sales(1)'!$C$3:$C$53<>"",COUNTIF($A$1:B63,'sales(1)'!$C$3:$C$53),1),0))),"") ->  | C64: =IFERROR(IF(ISERROR(INDEX('sales(1)'!$G$3:$G$53,MATCH(0,IF('sales(1)'!$G$3:$G$53<>"",COUNTIF($C$1:C63,'sales(1)'!$G$3:$G$53),1),0))),INDEX('Return)1('!$G$3:$G$12,MATCH(0,IF('Return)1('!$G$3:$G$12<>"",COUNTIF($C$1:C63,'Return)1('!$G$3:$G$12),1),0)),INDEX('sales(1)'!$G$3:$G$53,MATCH(0,IF('sales(1)'!$G$3:$G$53<>"",COUNTIF($C$1:C63,'sales(1)'!$G$3:$G$53),1),0))),"") ->  | D64: =IFERROR(IF(ISERROR(INDEX('sales(1)'!$H$3:$H$53,MATCH(0,IF('sales(1)'!$H$3:$H$53<>"",COUNTIF($D$1:D63,'sales(1)'!$H$3:$H$53),1),0))),INDEX('Return)1('!$H$3:$H$12,MATCH(0,IF('Return)1('!$H$3:$H$12<>"",COUNTIF($D$1:D63,'Return)1('!$H$3:$H$12),1),0)),INDEX('sales(1)'!$H$3:$H$53,MATCH(0,IF('sales(1)'!$H$3:$H$53<>"",COUNTIF($D$1:D63,'sales(1)'!$H$3:$H$53),1),0))),"") -> 
A65: =IFERROR(IF(ISERROR(INDEX('sales(1)'!$B$3:$B$53,MATCH(0,IF('sales(1)'!$B$3:$B$53<>"",COUNTIF($A$1:A64,'sales(1)'!$B$3:$B$53),1),0))),INDEX('Return)1('!$B$3:$B$12,MATCH(0,IF('Return)1('!$B$3:$B$12<>"",COUNTIF($A$1:A64,'Return)1('!$B$3:$B$12),1),0)),INDEX('sales(1)'!$B$3:$B$53,MATCH(0,IF('sales(1)'!$B$3:$B$53<>"",COUNTIF($A$1:A64,'sales(1)'!$B$3:$B$53),1),0))),"") ->  | B65: =IFERROR(IF(ISERROR(INDEX('sales(1)'!$C$3:$C$53,MATCH(0,IF('sales(1)'!$C$3:$C$53<>"",COUNTIF($A$1:B64,'sales(1)'!$C$3:$C$53),1),0))),INDEX('Return)1('!$C$3:$C$12,MATCH(0,IF('Return)1('!$C$3:$C$12<>"",COUNTIF($A$1:B64,'Return)1('!$C$3:$C$12),1),0)),INDEX('sales(1)'!$C$3:$C$53,MATCH(0,IF('sales(1)'!$C$3:$C$53<>"",COUNTIF($A$1:B64,'sales(1)'!$C$3:$C$53),1),0))),"") ->  | C65: =IFERROR(IF(ISERROR(INDEX('sales(1)'!$G$3:$G$53,MATCH(0,IF('sales(1)'!$G$3:$G$53<>"",COUNTIF($C$1:C64,'sales(1)'!$G$3:$G$53),1),0))),INDEX('Return)1('!$G$3:$G$12,MATCH(0,IF('Return)1('!$G$3:$G$12<>"",COUNTIF($C$1:C64,'Return)1('!$G$3:$G$12),1),0)),INDEX('sales(1)'!$G$3:$G$53,MATCH(0,IF('sales(1)'!$G$3:$G$53<>"",COUNTIF($C$1:C64,'sales(1)'!$G$3:$G$53),1),0))),"") ->  | D65: =IFERROR(IF(ISERROR(INDEX('sales(1)'!$H$3:$H$53,MATCH(0,IF('sales(1)'!$H$3:$H$53<>"",COUNTIF($D$1:D64,'sales(1)'!$H$3:$H$53),1),0))),INDEX('Return)1('!$H$3:$H$12,MATCH(0,IF('Return)1('!$H$3:$H$12<>"",COUNTIF($D$1:D64,'Return)1('!$H$3:$H$12),1),0)),INDEX('sales(1)'!$H$3:$H$53,MATCH(0,IF('sales(1)'!$H$3:$H$53<>"",COUNTIF($D$1:D64,'sales(1)'!$H$3:$H$53),1),0))),"") -> 
A66: =IFERROR(IF(ISERROR(INDEX('sales(1)'!$B$3:$B$53,MATCH(0,IF('sales(1)'!$B$3:$B$53<>"",COUNTIF($A$1:A65,'sales(1)'!$B$3:$B$53),1),0))),INDEX('Return)1('!$B$3:$B$12,MATCH(0,IF('Return)1('!$B$3:$B$12<>"",COUNTIF($A$1:A65,'Return)1('!$B$3:$B$12),1),0)),INDEX('sales(1)'!$B$3:$B$53,MATCH(0,IF('sales(1)'!$B$3:$B$53<>"",COUNTIF($A$1:A65,'sales(1)'!$B$3:$B$53),1),0))),"") ->  | B66: =IFERROR(IF(ISERROR(INDEX('sales(1)'!$C$3:$C$53,MATCH(0,IF('sales(1)'!$C$3:$C$53<>"",COUNTIF($A$1:B65,'sales(1)'!$C$3:$C$53),1),0))),INDEX('Return)1('!$C$3:$C$12,MATCH(0,IF('Return)1('!$C$3:$C$12<>"",COUNTIF($A$1:B65,'Return)1('!$C$3:$C$12),1),0)),INDEX('sales(1)'!$C$3:$C$53,MATCH(0,IF('sales(1)'!$C$3:$C$53<>"",COUNTIF($A$1:B65,'sales(1)'!$C$3:$C$53),1),0))),"") ->  | C66: =IFERROR(IF(ISERROR(INDEX('sales(1)'!$G$3:$G$53,MATCH(0,IF('sales(1)'!$G$3:$G$53<>"",COUNTIF($C$1:C65,'sales(1)'!$G$3:$G$53),1),0))),INDEX('Return)1('!$G$3:$G$12,MATCH(0,IF('Return)1('!$G$3:$G$12<>"",COUNTIF($C$1:C65,'Return)1('!$G$3:$G$12),1),0)),INDEX('sales(1)'!$G$3:$G$53,MATCH(0,IF('sales(1)'!$G$3:$G$53<>"",COUNTIF($C$1:C65,'sales(1)'!$G$3:$G$53),1),0))),"") ->  | D66: =IFERROR(IF(ISERROR(INDEX('sales(1)'!$H$3:$H$53,MATCH(0,IF('sales(1)'!$H$3:$H$53<>"",COUNTIF($D$1:D65,'sales(1)'!$H$3:$H$53),1),0))),INDEX('Return)1('!$H$3:$H$12,MATCH(0,IF('Return)1('!$H$3:$H$12<>"",COUNTIF($D$1:D65,'Return)1('!$H$3:$H$12),1),0)),INDEX('sales(1)'!$H$3:$H$53,MATCH(0,IF('sales(1)'!$H$3:$H$53<>"",COUNTIF($D$1:D65,'sales(1)'!$H$3:$H$53),1),0))),"") -> 
A67: =IFERROR(IF(ISERROR(INDEX('sales(1)'!$B$3:$B$53,MATCH(0,IF('sales(1)'!$B$3:$B$53<>"",COUNTIF($A$1:A66,'sales(1)'!$B$3:$B$53),1),0))),INDEX('Return)1('!$B$3:$B$12,MATCH(0,IF('Return)1('!$B$3:$B$12<>"",COUNTIF($A$1:A66,'Return)1('!$B$3:$B$12),1),0)),INDEX('sales(1)'!$B$3:$B$53,MATCH(0,IF('sales(1)'!$B$3:$B$53<>"",COUNTIF($A$1:A66,'sales(1)'!$B$3:$B$53),1),0))),"") -> 
A68: =IFERROR(IF(ISERROR(INDEX('sales(1)'!$B$3:$B$53,MATCH(0,IF('sales(1)'!$B$3:$B$53<>"",COUNTIF($A$1:A67,'sales(1)'!$B$3:$B$53),1),0))),INDEX('Return)1('!$B$3:$B$12,MATCH(0,IF('Return)1('!$B$3:$B$12<>"",COUNTIF($A$1:A67,'Return)1('!$B$3:$B$12),1),0)),INDEX('sales(1)'!$B$3:$B$53,MATCH(0,IF('sales(1)'!$B$3:$B$53<>"",COUNTIF($A$1:A67,'sales(1)'!$B$3:$B$53),1),0))),"") -> 
